Workbook

Sheet EventConfig
A1: ID | B1: EventLinksId | C1: EventTriggerType | D1: EventTag | E1: EventType | F1: Score | G1: EventQuality | H1: PrizeType | I1: PrizeIDs | J1: PrizeNums | K1: RefreshProbability | L1: RefreshCount | M1: placeID | N1: XiantuID | O1: =SUMIF(C:C,2,K:K) -> 0 | P1: EventConditionId | Q1: EventValue | R1: EventCount | S1: EventName | T1: Description
A2: int | B2: int[] | C2: int | D2: int | E2: int | F2: int | G2: int | H2: int[] | I2: int[] | J2: int[] | K2: int | L2: int | M2: int | N2: int | P2: int | Q2: int[] | R2: int | S2: int | T2: int
X3: 1 | Y3: 2 | Z3: 3 | AA3: 4 | AB3: 5 | AC3: 6 | AD3: 7 | AE3: 8 | AF3: 9 | AG3: 10 | AH3: 11 | AI3: 12 | AJ3: 13 | AK3: 14 | AL3: 15 | AM3: 16 | AN3: 17 | AO3: 18 | AP3: 19 | AQ3: 20
A4: ID | B4: 事件包含的ID | C4: 事件类型： 1.通用事件 2.挂机事件 4.主线任务 5.仙山探险 6.支线事件 88.特定任务触发的事件 99.无标记 | D4: tag 1主线2支线 3通用 4地图通用 5道友6任务 7资源 | E4: 1.正常触发 2.直接结算 | F4: 增加进度值 | G4: 事件品质 | H4: 产出tag 在辅助表查询 | I4: 事件结局奖励 | J4: 事件结局奖励数量 | K4: 刷新的概率 （100=100%） | L4: 最大刷新数量 | M4: 属于哪张地图 | N4: 仙途日志ID | O4: 触发条件 | P4: 触发条件类型 只能配处于什么状态和数值，不能配变化的数值 | Q4: 触发效果值 | R4: 触发判定数量or次数 | S4: 任务标题 | T4: 任务详情界面的总描述 | U4: 标题 | V4: 整体描述 | W4: 总步数 | X4: 步骤1 | Y4: 步骤2 | Z4: 步骤3 | AA4: 步骤4 | AB4: 步骤5 | AC4: 步骤6 | AD4: 步骤7 | AE4: 步骤8 | AF4: 步骤9 | AG4: 步骤10 | AH4: 步骤11 | AI4: 步骤12 | AJ4: 步骤13 | AK4: 步骤14 | AL4: 步骤15 | AM4: 步骤16 | AN4: 步骤17 | AO4: 步骤18 | AP4: 步骤19 | AQ4: 步骤20 | AR4: 道具1 | AS4: 数量1 | AT4: 道具2 | AU4: 数量2
A5: 1 | B5: =IF(A5="","",_xlfn.TEXTJOIN(";",1,X5:AQ5,102)) -> 1001;1002;1003;1004;1005;100;102 | C5: 1 | D5: 7 | E5: 1 | F5: 0 | G5: 1 | H5: 5 | I5: =_xlfn.TEXTJOIN(";",1,AR5,AT5) -> 1003;999001 | J5: =_xlfn.TEXTJOIN(";",1,AS5,AU5) -> -1000;1 | K5: 100 | O5: =IF(P5="","",VLOOKUP(P5,条件类型查询!A:B,2,FALSE)) ->  | S5: 4001 | T5: 4076 | U5: 受伤的狼 | V5: 你发现一只奄奄一息的狼，决定上前一探究竟。 | W5: =COUNTIF(EventLinkConfig!O:O,EventConfig!A5) -> 5 | X5: 1001 | Y5: 1002 | Z5: 1003 | AA5: 1004 | AB5: 1005 | AQ5: 100 | AR5: 1003 | AS5: -1000 | AT5: 999001 | AU5: 1
A6: 2 | B6: =IF(A6="","",_xlfn.TEXTJOIN(";",1,X6:AQ6,102)) -> 1010;1011;1012;1013;1014;1015;1016;100;102 | C6: 1 | D6: 7 | E6: 1 | F6: 0 | G6: 1 | H6: 6 | I6: =_xlfn.TEXTJOIN(";",1,AR6,AT6) -> 1003;999002 | J6: =_xlfn.TEXTJOIN(";",1,AS6,AU6) -> -1000;1 | K6: 100 | O6: =IF(P6="","",VLOOKUP(P6,条件类型查询!A:B,2,FALSE)) ->  | S6: 4002 | T6: 4077 | U6: 鹬蚌相争 | V6: 附近的小树林闹的不可开交，你决定去看看怎么回事。 | W6: =COUNTIF(EventLinkConfig!O:O,EventConfig!A6) -> 6 | X6: 1010 | Y6: 1011 | Z6: 1012 | AA6: 1013 | AB6: 1014 | AC6: 1015 | AD6: 1016 | AQ6: 100 | AR6: 1003 | AS6: -1000 | AT6: 999002 | AU6: 1
A7: 4 | B7: 1030;100;102 | C7: 1 | D7: 7 | E7: 2 | F7: 0 | G7: 1 | H7: 1 | I7: 1003;1001 | J7: -1000;-5000 | K7: 100 | O7: =IF(P7="","",VLOOKUP(P7,条件类型查询!A:B,2,FALSE)) ->  | S7: 4003 | T7: 4078 | U7: 溅血背包 | V7: 不远处有一个小红点，走近一看你发现是一个带血的背包。 | W7: =COUNTIF(EventLinkConfig!O:O,EventConfig!A7) -> 1 | X7: 1030 | AQ7: 100 | AR7: 1003 | AS7: -1000 | AT7: 1001 | AU7: -5000
A8: 5 | B8: 1040;100;102 | C8: 1 | D8: 7 | E8: 2 | F8: 0 | G8: 1 | H8: 2 | I8: 1003;1005 | J8: -1000;-5000 | K8: 100 | O8: =IF(P8="","",VLOOKUP(P8,条件类型查询!A:B,2,FALSE)) ->  | S8: 4004 | T8: 4079 | U8: 废弃矿山 | V8: 底下一座矿山甚是磅礴雄伟，走，去看一看。 | W8: =COUNTIF(EventLinkConfig!O:O,EventConfig!A8) -> 1 | X8: 1040 | AQ8: 100 | AR8: 1003 | AS8: -1000 | AT8: 1005 | AU8: -5000
A9: 6 | B9: 1050;100;102 | C9: 1 | D9: 7 | E9: 2 | F9: 0 | G9: 1 | H9: 3 | I9: 1003;1006 | J9: -1000;-5000 | K9: 100 | O9: =IF(P9="","",VLOOKUP(P9,条件类型查询!A:B,2,FALSE)) ->  | S9: 4005 | T9: 4080 | U9: 吵架声 | V9: 你被一男一女的吵架声吸引。 | W9: =COUNTIF(EventLinkConfig!O:O,EventConfig!A9) -> 1 | X9: 1050 | AQ9: 100 | AR9: 1003 | AS9: -1000 | AT9: 1006 | AU9: -5000
A10: 7 | B10: 1060;100;102 | C10: 1 | D10: 7 | E10: 2 | F10: 0 | G10: 1 | H10: 4 | I10: 1003;999001 | J10: -1000;1 | K10: 100 | O10: =IF(P10="","",VLOOKUP(P10,条件类型查询!A:B,2,FALSE)) ->  | S10: 4006 | T10: 4081 | U10: 一座道观 | V10: 远处一座道观仙气缭绕，似有仙人在此。 | W10: =COUNTIF(EventLinkConfig!O:O,EventConfig!A10) -> 1 | X10: 1060 | AQ10: 100 | AR10: 1003 | AS10: -1000 | AT10: 999001 | AU10: 1
A11: 1011 | B11: =IF(A11="","",_xlfn.TEXTJOIN(";",1,X11:AQ11,102)) -> 101101;100;102 | C11: 1 | D11: 7 | E11: 1 | F11: 0 | G11: 1 | H11: 7 | I11: 1003;999002 | J11: -1000;1 | K11: 100 | S11: 4007 | T11: 4082 | U11: 药田 | V11: 神识探索至一处山洞之中，似乎别有洞天 | W11: =COUNTIF(EventLinkConfig!O:O,EventConfig!A11) -> 1 | X11: =IF($W11>=X$3,$A11*100+X$3,"") -> 101101 | AQ11: 100 | AR11: 1003 | AS11: -1000 | AT11: 999002 | AU11: 1
A12: 1012 | B12: 101201;100;102 | C12: 1 | D12: 7 | E12: 1 | F12: 0 | G12: 3 | H12: 7 | I12: 1003;1001 | J12: -1000;-5000 | K12: 100 | S12: 4008 | T12: 4083 | U12: 矿井 | V12: 神识探索至一处矿井之中，此处灵气氤氲 | W12: =COUNTIF(EventLinkConfig!O:O,EventConfig!A12) -> 1 | X12: 101201 | AQ12: 100 | AR12: 1003 | AS12: -1000 | AT12: 1001 | AU12: -5000
A13: 1013 | B13: 101301;100;102 | C13: 1 | D13: 7 | E13: 1 | F13: 0 | G13: 3 | H13: 7 | I13: 1003;1005 | J13: -1000;-5000 | K13: 100 | S13: 4009 | T13: 4084 | U13: 寺庙 | V13: 神识经过一处荒废寺庙之外，寺庙之中似乎有不同寻常之物 | W13: =COUNTIF(EventLinkConfig!O:O,EventConfig!A13) -> 1 | X13: 101301 | AQ13: 100 | AR13: 1003 | AS13: -1000 | AT13: 1005 | AU13: -5000
A14: 1014 | B14: 101401;100;102 | C14: 1 | D14: 7 | E14: 1 | F14: 0 | G14: 3 | H14: 7 | I14: 1003;1006 | J14: -1000;-5000 | K14: 100 | S14: 4010 | T14: 4085 | U14: 洞府遗址 | V14: 神识至一处灵气充盈之地，似乎是处洞府 | W14: =COUNTIF(EventLinkConfig!O:O,EventConfig!A14) -> 1 | X14: 101401 | AQ14: 100 | AR14: 1003 | AS14: -1000 | AT14: 1006 | AU14: -5000
A15: 1015 | B15: 101501;101502;100;102 | C15: 1 | D15: 7 | E15: 1 | F15: 0 | G15: 1 | H15: 8 | I15: 1003;999001 | J15: -1000;1 | K15: 100 | S15: 4011 | T15: 4086 | U15: 拦路山贼 | V15: 一个不知好歹的山贼拦住了你的去路 | W15: =COUNTIF(EventLinkConfig!O:O,EventConfig!A15) -> 2 | X15: 101501 | Y15: 101502 | AQ15: 100 | AR15: 1003 | AS15: -1000 | AT15: 999001 | AU15: 1
A16: 1016 | B16: 101601;101602;100;102 | C16: 1 | D16: 7 | E16: 1 | F16: 0 | G16: 1 | H16: 8 | I16: 1003;999002 | J16: -1000;1 | K16: 100 | S16: 4012 | T16: 4087 | U16: 丢袈裟的和尚 | V16: 一位和尚叫住了你，似乎有什么急事 | W16: =COUNTIF(EventLinkConfig!O:O,EventConfig!A16) -> 2 | X16: 101601 | Y16: 101602 | AQ16: 100 | AR16: 1003 | AS16: -1000 | AT16: 999002 | AU16: 1
A17: 1017 | B17: 101701;100;102 | C17: 1 | D17: 7 | E17: 1 | F17: 0 | G17: 1 | H17: 8 | I17: 1003;1001 | J17: -1000;-5000 | K17: 100 | P17: 10 | Q17: 30009 | S17: 4013 | T17: 4088 | U17: 丢袈裟的和尚 | V17: 将袈裟还给和尚 | W17: =COUNTIF(EventLinkConfig!O:O,EventConfig!A17) -> 1 | X17: 101701 | AQ17: 100 | AR17: 1003 | AS17: -1000 | AT17: 1001 | AU17: -5000
A18: 1018 | B18: 101801;101802;101803;101804;100;102 | C18: 1 | D18: 7 | E18: 1 | F18: 0 | G18: 1 | H18: 8 | I18: 1003;1005 | J18: -1000;-5000 | K18: 100 | S18: 4014 | T18: 4089 | U18: 云游修士 | V18: 一名云游修士前来问道 | W18: =COUNTIF(EventLinkConfig!O:O,EventConfig!A18) -> 4 | X18: 101801 | Y18: 101802 | Z18: 101803 | AA18: 101804 | AQ18: 100 | AR18: 1003 | AS18: -1000 | AT18: 1005 | AU18: -5000
A19: 1019 | B19: 101901;101902;101903;100;102 | C19: 1 | D19: 7 | E19: 1 | F19: 0 | G19: 1 | H19: 9 | I19: 1003;1006 | J19: -1000;-5000 | K19: 100 | S19: 4015 | T19: 4090 | U19: 镇压妖王 | V19: 逍遥宗长老前来求教 | W19: =COUNTIF(EventLinkConfig!O:O,EventConfig!A19) -> 3 | X19: 101901 | Y19: 101902 | Z19: 101903 | AQ19: 100 | AR19: 1003 | AS19: -1000 | AT19: 1006 | AU19: -5000
A20: 1020 | B20: 102001;102002;100;102 | C20: 1 | D20: 7 | E20: 1 | F20: 0 | G20: 1 | H20: 9 | I20: 1003;999001 | J20: -1000;1 | K20: 100 | S20: 4016 | T20: 4091 | U20: 清剿妖兽 | V20: 妖兽入侵了村子，消灭掉它们 | W20: =COUNTIF(EventLinkConfig!O:O,EventConfig!A20) -> 2 | X20: 102001 | Y20: 102002 | AQ20: 100 | AR20: 1003 | AS20: -1000 | AT20: 999001 | AU20: 1
A21: 1021 | B21: 102101;102102;102103;100;102 | C21: 1 | D21: 7 | E21: 1 | F21: 0 | G21: 1 | H21: 9 | I21: 1003;999002 | J21: -1000;1 | K21: 100 | S21: 4017 | T21: 4092 | U21: 失窃的琉璃盏 | V21: 琉璃盏被妖兽盗窃，前去寻回 | W21: =COUNTIF(EventLinkConfig!O:O,EventConfig!A21) -> 3 | X21: =IF($W21>=X$3,$A21*100+X$3,"") -> 102101 | Y21: 102102 | Z21: 102103 | AQ21: 100 | AR21: 1003 | AS21: -1000 | AT21: 999002 | AU21: 1
A22: 1022 | B22: 102201;102202;102203;102204;102205;102206;102207;100;102 | C22: 1 | D22: 7 | E22: 1 | F22: 0 | G22: 1 | H22: 10 | I22: 1003;1001 | J22: -1000;-5000 | K22: 100 | S22: 4018 | T22: 4093 | U22: 论道何长 | V22: 明镜道长前来论道 | W22: =COUNTIF(EventLinkConfig!O:O,EventConfig!A22) -> 7 | X22: 102201 | Y22: 102202 | Z22: 102203 | AA22: 102204 | AB22: 102205 | AC22: 102206 | AD22: 102207 | AQ22: 100 | AR22: 1003 | AS22: -1000 | AT22: 1001 | AU22: -5000
A23: 1023 | B23: 102301;102302;102303;100;102 | C23: 1 | D23: 7 | E23: 1 | F23: 0 | G23: 1 | H23: 10 | I23: 1003;1005 | J23: -1000;-5000 | K23: 100 | S23: 4019 | T23: 4094 | U23: 炼丹药童 | V23: 炼丹药童前来询问丹药 | W23: =COUNTIF(EventLinkConfig!O:O,EventConfig!A23) -> 3 | X23: 102301 | Y23: 102302 | Z23: 102303 | AQ23: 100 | AR23: 1003 | AS23: -1000 | AT23: 1005 | AU23: -5000
A24: 1024 | B24: 102401;102402;102403;100;102 | C24: 1 | D24: 7 | E24: 1 | F24: 0 | G24: 1 | H24: 11 | I24: 1003;1006 | J24: -1000;-5000 | K24: 100 | S24: 4020 | T24: 4095 | U24: 风无咎前来切磋 | V24: 风无咎前来与你武艺论道 | W24: =COUNTIF(EventLinkConfig!O:O,EventConfig!A24) -> 3 | X24: 102401 | Y24: 102402 | Z24: 102403 | AQ24: 100 | AR24: 1003 | AS24: -1000 | AT24: 1006 | AU24: -5000
A25: 1025 | B25: 102501;102502;102503;100;102 | C25: 1 | D25: 7 | E25: 1 | F25: 0 | G25: 1 | H25: 1 | I25: 1003;1002 | J25: -1000;100 | K25: 100 | S25: 4021 | T25: 4096 | U25: 魔族来犯 | V25: 与魔族交涉 | W25: =COUNTIF(EventLinkConfig!O:O,EventConfig!A25) -> 3 | X25: 102501 | Y25: 102502 | Z25: 102503 | AQ25: 100 | AR25: 1003 | AS25: -1000 | AT25: 1002 | AU25: 100
A26: 1026 | B26: 102601;102602;100;102 | C26: 1 | D26: 7 | E26: 1 | F26: 0 | G26: 1 | H26: 2 | I26: 1003;1004 | J26: -1000;10 | K26: 100 | S26: 4022 | T26: 4097 | U26: 妖族入侵 | V26: 击败妖族 | W26: =COUNTIF(EventLinkConfig!O:O,EventConfig!A26) -> 2 | X26: 102601 | Y26: 102602 | AQ26: 100 | AR26: 1003 | AS26: -1000 | AT26: 1004 | AU26: 10
A27: 1027 | B27: 102701;102702;100;102 | C27: 1 | D27: 7 | E27: 1 | F27: 0 | G27: 1 | H27: 3 | I27: 1003;1501 | J27: -1000;1 | K27: 100 | S27: 4023 | T27: 4098 | U27: 北海危机 | V27: 击败拦路妖兽 | W27: =COUNTIF(EventLinkConfig!O:O,EventConfig!A27) -> 2 | X27: 102701 | Y27: 102702 | AQ27: 100 | AR27: 1003 | AS27: -1000 | AT27: 1501 | AU27: 1
A28: 1028 | B28: 102801;102802;102803;102804;102805;100;102 | C28: 1 | D28: 7 | E28: 1 | F28: 0 | G28: 1 | H28: 4 | I28: 1003;1601 | J28: -1000;1 | K28: 100 | S28: 4024 | T28: 4099 | U28: 保护北海 | V28: 击败入侵妖兽 | W28: =COUNTIF(EventLinkConfig!O:O,EventConfig!A28) -> 5 | X28: 102801 | Y28: 102802 | Z28: 102803 | AA28: 102804 | AB28: 102805 | AQ28: 100 | AR28: 1003 | AS28: -1000 | AT28: 1601 | AU28: 1
A29: 1029 | B29: 102901;102902;102903;102904;102905;102906;102907;102908;100;102 | C29: 1 | D29: 7 | E29: 1 | F29: 0 | G29: 1 | H29: 7 | I29: 1003;21012 | J29: -1000;1 | K29: 100 | S29: 4025 | T29: 4100 | U29: 境明论道 | V29: 境明道长邀请你与其论道 | W29: =COUNTIF(EventLinkConfig!O:O,EventConfig!A29) -> 8 | X29: 102901 | Y29: 102902 | Z29: 102903 | AA29: 102904 | AB29: 102905 | AC29: 102906 | AD29: 102907 | AE29: 102908 | AQ29: 100 | AR29: 1003 | AS29: -1000 | AT29: 21012 | AU29: 1
A30: 1030 | B30: 103001;103002;103003;103004;103005;103006;103007;100;102 | C30: 1 | D30: 7 | E30: 1 | F30: 0 | G30: 1 | H30: 8 | I30: 1003;21013 | J30: -1000;1 | K30: 100 | S30: 4026 | T30: 4101 | U30: 听经习道 | V30: 前去寺庙之中听经 | W30: =COUNTIF(EventLinkConfig!O:O,EventConfig!A30) -> 7 | X30: 103001 | Y30: 103002 | Z30: 103003 | AA30: 103004 | AB30: 103005 | AC30: 103006 | AD30: 103007 | AQ30: 100 | AR30: 1003 | AS30: -1000 | AT30: 21013 | AU30: 1
A31: 1031 | B31: 103101;103102;103103;103104;103105;100;102 | C31: 1 | D31: 7 | E31: 1 | F31: 0 | G31: 1 | H31: 9 | I31: 1003;1002 | J31: -1000;50 | K31: 100 | S31: 4027 | T31: 4102 | U31: 境明论道二 | V31: 境明道长邀请你与其论道 | W31: =COUNTIF(EventLinkConfig!O:O,EventConfig!A31) -> 5 | X31: 103101 | Y31: 103102 | Z31: 103103 | AA31: 103104 | AB31: 103105 | AQ31: 100 | AR31: 1003 | AS31: -1000 | AT31: 1002 | AU31: 50
C33: 2 | D33: 3 | E33: 1 | F33: 0 | G33: 1 | I33: =_xlfn.TEXTJOIN(";",1,AR33,AT33) -> 1003 | J33: =_xlfn.TEXTJOIN(";",1,AS33,AU33) -> -5 | U33: 挂机1 | V33: 修为 | W33: =COUNTIF(EventLinkConfig!O:O,EventConfig!A33) -> 0 | X33: =IF($W33>=X$3,$A33*100+X$3,"") ->  | AQ33: 100 | AR33: 1003 | AS33: -5
C34: 2 | D34: 3 | E34: 1 | F34: 0 | G34: 1 | I34: =_xlfn.TEXTJOIN(";",1,AR34,AT34) -> 1005 | J34: =_xlfn.TEXTJOIN(";",1,AS34,AU34) -> -5 | U34: 挂机2 | V34: 灵气 | W34: =COUNTIF(EventLinkConfig!O:O,EventConfig!A34) -> 0 | AQ34: 100 | AR34: 1005 | AS34: -5
C35: 2 | D35: 3 | E35: 1 | F35: 0 | G35: 1 | I35: 1006 | J35: -5 | U35: 挂机3 | V35: 玄晶 | W35: =COUNTIF(EventLinkConfig!O:O,EventConfig!A35) -> 0 | AQ35: 100 | AR35: 1006 | AS35: -5
C36: 2 | D36: 3 | E36: 1 | F36: 0 | G36: 1 | I36: 1001 | J36: -5 | U36: 挂机4 | V36: 灵石 | W36: =COUNTIF(EventLinkConfig!O:O,EventConfig!A36) -> 0 | AQ36: 100 | AR36: 1001 | AS36: -5
C37: 2 | D37: 3 | E37: 1 | F37: 0 | G37: 1 | I37: 1001 | J37: -5 | U37: 挂机5 | V37: 神识丹 | W37: =COUNTIF(EventLinkConfig!O:O,EventConfig!A37) -> 0 | AQ37: 100 | AR37: 1001 | AS37: -5
B38: =IF(A38="","",_xlfn.TEXTJOIN(";",1,X38:AQ38,102)) ->  | C38: 2 | D38: 3 | E38: 1 | F38: 0 | G38: 1 | I38: 1001 | J38: -5 | U38: 挂机6 | V38: 妖丹 | W38: =COUNTIF(EventLinkConfig!O:O,EventConfig!A38) -> 0 | AQ38: 100 | AR38: 1001 | AS38: -5
O39: =IF(P39="","",VLOOKUP(P39,条件类型查询!A:B,2,FALSE)) -> 
A40: 10001 | B40: =IF(W40>0,_xlfn.TEXTJOIN(";", 1, ROW(INDIRECT(CONCATENATE("",A40*100+1,":",A40*100+W40,""))),102),"") -> 1000101;1000102;1000103;1000104;102 | C40: 4 | D40: 1 | E40: 1 | F40: 10 | G40: 1 | I40: 1701;1401 | J40: 1;2 | M40: 1 | N40: 1 | S40: 4028 | T40: 4103 | U40: 鲲鹏何在 | V40: 神识未灭 | W40: =COUNTIF(EventLinkConfig!O:O,EventConfig!A40) -> 4 | X40: =IF($W40>=X$3,$A40*100+X$3,"") -> 1000101 | Y40: 1000102 | Z40: 1000103 | AA40: 1000104
A41: 10002 | B41: =IF(W41>0,_xlfn.TEXTJOIN(";", 1, ROW(INDIRECT(CONCATENATE("",A41*100+1,":",A41*100+W41,""))),102),"") -> 1000201;1000202;1000203;102 | C41: 4 | D41: 1 | E41: 1 | F41: 10 | G41: 1 | I41: 1701;1401 | J41: 1;2 | M41: 1 | N41: 1 | S41: 4029 | T41: 4104 | U41: 北海迷径1 | V41: 御剑而行 | W41: =COUNTIF(EventLinkConfig!O:O,EventConfig!A41) -> 3 | X41: 1000201 | Y41: 1000202 | Z41: 1000203
A42: 10003 | B42: =IF(W42>0,_xlfn.TEXTJOIN(";", 1, ROW(INDIRECT(CONCATENATE("",A42*100+1,":",A42*100+W42,""))),102),"") -> 1000301;1000302;1000303;1000304;1000305;1000306;1000307;1000308;1000309;102 | C42: 4 | D42: 1 | E42: 1 | F42: 10 | G42: 1 | I42: 1701;1401 | J42: 1;2 | M42: 1 | N42: 1 | S42: 4030 | T42: 4105 | U42: 北海迷径2 | V42: 雀笑大鹏 | W42: =COUNTIF(EventLinkConfig!O:O,EventConfig!A42) -> 9 | X42: 1000301 | Y42: 1000302 | Z42: 1000303 | AA42: 1000304 | AB42: 1000305 | AC42: 1000306 | AD42: 1000307 | AE42: 1000308 | AF42: 1000309
A43: 10004 | B43: =IF(W43>0,_xlfn.TEXTJOIN(";", 1, ROW(INDIRECT(CONCATENATE("",A43*100+1,":",A43*100+W43,""))),102),"") -> 1000401;1000402;1000403;1000404;102 | C43: 4 | D43: 1 | E43: 1 | F43: 10 | G43: 1 | I43: 1701;1401 | J43: 1;2 | M43: 1 | N43: 1 | S43: 4031 | T43: 4106 | U43: 古径阵法 | V43: 击败结界兽 | W43: =COUNTIF(EventLinkConfig!O:O,EventConfig!A43) -> 4 | X43: 1000401 | Y43: 1000402 | Z43: 1000403 | AA43: 1000404
A44: 10005 | B44: =IF(W44>0,_xlfn.TEXTJOIN(";", 1, ROW(INDIRECT(CONCATENATE("",A44*100+1,":",A44*100+W44,""))),102),"") -> 1000501;1000502;1000503;1000504;1000505;1000506;1000507;1000508;1000509;1000510;1000511;1000512;1000513;1000514;102 | C44: 4 | D44: 1 | E44: 1 | F44: 10 | G44: 1 | I44: 1701;1401 | J44: 1;2 | M44: 1 | N44: 1 | O44: 11 | S44: 4032 | T44: 4107 | U44: 浮空之岛1 | V44: 初见疯道人 | W44: =COUNTIF(EventLinkConfig!O:O,EventConfig!A44) -> 14 | X44: 1000501 | Y44: 1000502 | Z44: 1000503 | AA44: 1000504 | AB44: 1000505 | AC44: 1000506 | AD44: 1000507 | AE44: 1000508 | AF44: 1000509 | AG44: 1000510 | AH44: 1000511 | AI44: 1000512 | AJ44: 1000513 | AK44: 1000514
A45: 10006 | B45: =IF(W45>0,_xlfn.TEXTJOIN(";", 1, ROW(INDIRECT(CONCATENATE("",A45*100+1,":",A45*100+W45,""))),102),"") -> 1000601;1000602;1000603;1000604;1000605;1000606;102 | C45: 4 | D45: 1 | E45: 1 | F45: 10 | G45: 1 | I45: 1701;1401 | J45: 2;2 | M45: 1 | N45: 1 | S45: 4033 | T45: 4108 | U45: 浮空之岛2 | V45: 筑基中期 | W45: =COUNTIF(EventLinkConfig!O:O,EventConfig!A45) -> 6 | X45: 1000601 | Y45: 1000602 | Z45: 1000603 | AA45: 1000604 | AB45: 1000605 | AC45: 1000606
A46: 10007 | B46: =IF(W46>0,_xlfn.TEXTJOIN(";", 1, ROW(INDIRECT(CONCATENATE("",A46*100+1,":",A46*100+W46,""))),102),"") -> 1000701;1000702;1000703;1000704;1000705;102 | C46: 4 | D46: 1 | E46: 1 | F46: 10 | G46: 1 | I46: 1701;1401 | J46: 2;2 | M46: 1 | N46: 1 | S46: 4034 | T46: 4109 | U46: 风中洞府1 | V46: 击败痴道人 | W46: =COUNTIF(EventLinkConfig!O:O,EventConfig!A46) -> 5 | X46: 1000701 | Y46: 1000702 | Z46: 1000703 | AA46: 1000704 | AB46: 1000705
A47: 10008 | B47: =IF(W47>0,_xlfn.TEXTJOIN(";", 1, ROW(INDIRECT(CONCATENATE("",A47*100+1,":",A47*100+W47,""))),102),"") -> 1000801;1000802;1000803;1000804;1000805;1000806;1000807;1000808;1000809;1000810;1000811;1000812;1000813;1000814;102 | C47: 4 | D47: 1 | E47: 1 | F47: 10 | G47: 1 | I47: 1701;1401 | J47: 2;2 | M47: 1 | N47: 1 | S47: 4035 | T47: 4110 | U47: 风中洞府2 | V47: 疯痴相聚 | W47: =COUNTIF(EventLinkConfig!O:O,EventConfig!A47) -> 14 | X47: 1000801 | Y47: 1000802 | Z47: 1000803 | AA47: 1000804 | AB47: 1000805 | AC47: 1000806 | AD47: 1000807 | AE47: 1000808 | AF47: 1000809 | AG47: 1000810 | AH47: 1000811 | AI47: 1000812 | AJ47: 1000813 | AK47: 1000814
A48: 10009 | B48: =IF(W48>0,_xlfn.TEXTJOIN(";", 1, ROW(INDIRECT(CONCATENATE("",A48*100+1,":",A48*100+W48,""))),102),"") -> 1000901;1000902;1000903;102 | C48: 4 | D48: 1 | E48: 1 | F48: 10 | G48: 1 | I48: 1701;1401 | J48: 2;2 | M48: 1 | N48: 1 | O48: 21 | S48: 4036 | T48: 4111 | U48: 风灵之力 | V48: 筑基后期 | W48: =COUNTIF(EventLinkConfig!O:O,EventConfig!A48) -> 3 | X48: 1000901 | Y48: 1000902 | Z48: 1000903
A49: 10010 | B49: =IF(W49>0,_xlfn.TEXTJOIN(";", 1, ROW(INDIRECT(CONCATENATE("",A49*100+1,":",A49*100+W49,""))),102),"") -> 1001001;102 | C49: 4 | D49: 1 | E49: 1 | F49: 10 | G49: 1 | I49: 1701;1401 | J49: 2;2 | M49: 1 | N49: 1 | S49: 4037 | T49: 4112 | U49: 北海深处1 | V49: 妖兽横行 | W49: =COUNTIF(EventLinkConfig!O:O,EventConfig!A49) -> 1 | X49: 1001001
A50: 10011 | B50: =IF(W50>0,_xlfn.TEXTJOIN(";", 1, ROW(INDIRECT(CONCATENATE("",A50*100+1,":",A50*100+W50,""))),102),"") -> 1001101;102 | C50: 4 | D50: 1 | E50: 1 | F50: 10 | G50: 1 | I50: 1702;1401 | J50: 1;2 | M50: 1 | N50: 1 | O50: 31 | S50: 4038 | T50: 4113 | U50: 北海深处2 | V50: 遇见鲲鹏 | W50: =COUNTIF(EventLinkConfig!O:O,EventConfig!A50) -> 1 | X50: =IF($W50>=X$3,$A50*100+X$3,"") -> 1001101
A51: 10012 | B51: =IF(W51>0,_xlfn.TEXTJOIN(";", 1, ROW(INDIRECT(CONCATENATE("",A51*100+1,":",A51*100+W51,""))),102),"") -> 1001201;102 | C51: 4 | D51: 1 | E51: 1 | F51: 10 | G51: 1 | I51: 1702;1401 | J51: 1;2 | M51: 2 | N51: 1 | S51: 4039 | T51: 4114 | U51: 尧都寻踪 | W51: =COUNTIF(EventLinkConfig!O:O,EventConfig!A51) -> 1 | X51: 1001201
A52: 10013 | B52: =IF(W52>0,_xlfn.TEXTJOIN(";", 1, ROW(INDIRECT(CONCATENATE("",A52*100+1,":",A52*100+W52,""))),102),"") -> 1001301;1001302;1001303;1001304;1001305;1001306;1001307;1001308;1001309;1001310;1001311;1001312;102 | C52: 4 | D52: 1 | E52: 1 | F52: 10 | G52: 1 | I52: 1702;1401 | J52: 1;2 | M52: 2 | N52: 1 | S52: 4040 | T52: 4115 | U52: 尧之都 | V52: 尧让天下 | W52: =COUNTIF(EventLinkConfig!O:O,EventConfig!A52) -> 12 | X52: 1001301 | Y52: 1001302 | Z52: 1001303 | AA52: 1001304 | AB52: 1001305 | AC52: 1001306 | AD52: 1001307 | AE52: 1001308 | AF52: 1001309 | AG52: 1001310 | AH52: 1001311 | AI52: 1001312
A53: 10014 | B53: =IF(W53>0,_xlfn.TEXTJOIN(";", 1, ROW(INDIRECT(CONCATENATE("",A53*100+1,":",A53*100+W53,""))),102),"") -> 1001401;1001402;1001403;1001404;1001405;1001406;1001407;1001408;1001409;1001410;1001411;1001412;1001413;1001414;1001415;1001416;102 | C53: 4 | D53: 1 | E53: 1 | F53: 10 | G53: 1 | I53: 1702;1402 | J53: 1;2 | M53: 2 | N53: 1 | O53: 41 | S53: 4041 | T53: 4116 | U53: 山林清音 | V53: 访贤许由 | W53: =COUNTIF(EventLinkConfig!O:O,EventConfig!A53) -> 16 | X53: 1001401 | Y53: 1001402 | Z53: 1001403 | AA53: 1001404 | AB53: 1001405 | AC53: 1001406 | AD53: 1001407 | AE53: 1001408 | AF53: 1001409 | AG53: 1001410 | AH53: 1001411 | AI53: 1001412 | AJ53: 1001413 | AK53: 1001414 | AL53: 1001415 | AM53: 1001416
A54: 10015 | B54: =IF(W54>0,_xlfn.TEXTJOIN(";", 1, ROW(INDIRECT(CONCATENATE("",A54*100+1,":",A54*100+W54,""))),102),"") -> 1001501;1001502;1001503;1001504;1001505;1001506;1001507;1001508;102 | C54: 4 | D54: 1 | E54: 1 | F54: 10 | G54: 1 | I54: 1702;1402 | J54: 1;2 | M54: 2 | N54: 1 | S54: 4042 | T54: 4117 | U54: 山中劳作 | V54: 割草喝茶 | W54: =COUNTIF(EventLinkConfig!O:O,EventConfig!A54) -> 8 | X54: 1001501 | Y54: 1001502 | Z54: 1001503 | AA54: 1001504 | AB54: 1001505 | AC54: 1001506 | AD54: 1001507 | AE54: 1001508
A55: 10016 | B55: =IF(W55>0,_xlfn.TEXTJOIN(";", 1, ROW(INDIRECT(CONCATENATE("",A55*100+1,":",A55*100+W55,""))),102),"") -> 1001601;1001602;1001603;1001604;1001605;1001606;1001607;1001608;102 | C55: 4 | D55: 1 | E55: 1 | F55: 10 | G55: 1 | I55: 1702;1402 | J55: 1;2 | M55: 2 | N55: 1 | O55: 51 | S55: 4043 | T55: 4118 | U55: 风起夜战 | V55: 再来一杯 | W55: =COUNTIF(EventLinkConfig!O:O,EventConfig!A55) -> 8 | X55: 1001601 | Y55: 1001602 | Z55: 1001603 | AA55: 1001604 | AB55: 1001605 | AC55: 1001606 | AD55: 1001607 | AE55: 1001608
A56: 10017 | B56: =IF(W56>0,_xlfn.TEXTJOIN(";", 1, ROW(INDIRECT(CONCATENATE("",A56*100+1,":",A56*100+W56,""))),102),"") -> 1001701;1001702;1001703;1001704;1001705;1001706;1001707;1001708;1001709;1001710;1001711;1001712;1001713;102 | C56: 4 | D56: 1 | E56: 1 | F56: 10 | G56: 1 | I56: 1702;1402 | J56: 1;2 | M56: 2 | N56: 1 | S56: 4044 | T56: 4119 | U56: 吃茶三问 | V56: 战胜妖王 | W56: =COUNTIF(EventLinkConfig!O:O,EventConfig!A56) -> 13 | X56: 1001701 | Y56: 1001702 | Z56: 1001703 | AA56: 1001704 | AB56: 1001705 | AC56: 1001706 | AD56: 1001707 | AE56: 1001708 | AF56: 1001709 | AG56: 1001710 | AH56: 1001711 | AI56: 1001712 | AJ56: 1001713
A57: 10018 | B57: =IF(W57>0,_xlfn.TEXTJOIN(";", 1, ROW(INDIRECT(CONCATENATE("",A57*100+1,":",A57*100+W57,""))),102),"") -> 1001801;1001802;1001803;1001804;1001805;1001806;1001807;1001808;1001809;1001810;102 | C57: 4 | D57: 1 | E57: 1 | F57: 10 | G57: 1 | I57: 1702;1402 | J57: 1;2 | M57: 2 | N57: 1 | O57: 61 | S57: 4045 | T57: 4120 | U57: 尧让天下 | V57: 复命尧帝 | W57: =COUNTIF(EventLinkConfig!O:O,EventConfig!A57) -> 10 | X57: 1001801 | Y57: 1001802 | Z57: 1001803 | AA57: 1001804 | AB57: 1001805 | AC57: 1001806 | AD57: 1001807 | AE57: 1001808 | AF57: 1001809 | AG57: 1001810
A58: 10019 | B58: =IF(W58>0,_xlfn.TEXTJOIN(";", 1, ROW(INDIRECT(CONCATENATE("",A58*100+1,":",A58*100+W58,""))),102),"") -> 1001901;1001902;1001903;1001904;1001905;1001906;1001907;1001908;1001909;1001910;1001911;1001912;1001913;1001914;1001915;1001916;1001917;1001918;1001919;1001920;102 | C58: 4 | D58: 1 | E58: 1 | F58: 10 | G58: 1 | I58: 1702;1403 | J58: 2;2 | M58: 2 | N58: 1 | S58: 4046 | T58: 4121 | U58: 无用之树 | V58: 树下闲话 | W58: =COUNTIF(EventLinkConfig!O:O,EventConfig!A58) -> 20 | X58: 1001901 | Y58: 1001902 | Z58: 1001903 | AA58: 1001904 | AB58: 1001905 | AC58: 1001906 | AD58: 1001907 | AE58: 1001908 | AF58: 1001909 | AG58: 1001910 | AH58: 1001911 | AI58: 1001912 | AJ58: 1001913 | AK58: 1001914 | AL58: 1001915 | AM58: 1001916 | AN58: =IF($W58>=AN$3,$A58*100+AN$3,"") -> 1001917 | AO58: =IF($W58>=AO$3,$A58*100+AO$3,"") -> 1001918 | AP58: =IF($W58>=AP$3,$A58*100+AP$3,"") -> 1001919 | AQ58: =IF($W58>=AQ$3,$A58*100+AQ$3,"") -> 1001920
A59: 10020 | B59: =IF(W59>0,_xlfn.TEXTJOIN(";", 1, ROW(INDIRECT(CONCATENATE("",A59*100+1,":",A59*100+W59,""))),102),"") -> 1002001;1002002;102 | C59: 4 | D59: 1 | E59: 1 | F59: 10 | G59: 1 | I59: 1702;1403 | J59: 2;2 | M59: 2 | N59: 1 | S59: 4047 | T59: 4122 | U59: 樗木之灵 | V59: 切磋切磋 | W59: =COUNTIF(EventLinkConfig!O:O,EventConfig!A59) -> 2 | X59: 1002001 | Y59: 1002002
A60: 10021 | B60: =IF(W60>0,_xlfn.TEXTJOIN(";", 1, ROW(INDIRECT(CONCATENATE("",A60*100+1,":",A60*100+W60,""))),102),"") -> 1002101;1002102;1002103;1002104;102 | C60: 4 | D60: 1 | E60: 1 | F60: 10 | G60: 1 | I60: 1702;1403 | J60: 2;2 | M60: 2 | N60: 1 | O60: 71 | S60: 4048 | T60: 4123 | U60: 游尧都 | V60: 金丹前期 | W60: =COUNTIF(EventLinkConfig!O:O,EventConfig!A60) -> 4 | X60: 1002101 | Y60: 1002102 | Z60: 1002103 | AA60: 1002104
A61: 10022 | B61: =IF(W61>0,_xlfn.TEXTJOIN(";", 1, ROW(INDIRECT(CONCATENATE("",A61*100+1,":",A61*100+W61,""))),102),"") -> 1002201;1002202;1002203;1002204;1002205;1002206;1002207;1002208;1002209;1002210;1002211;1002212;102 | C61: 4 | D61: 1 | E61: 1 | F61: 10 | G61: 1 | I61: 1702;1403 | J61: 2;2 | M61: 2 | N61: 1 | O61: 81 | S61: 4049 | T61: 4124 | U61: 再见尧帝 | V61: 仙山传说 | W61: =COUNTIF(EventLinkConfig!O:O,EventConfig!A61) -> 12 | X61: =IF($W61>=X$3,$A61*100+X$3,"") -> 1002201 | Y61: 1002202 | Z61: 1002203 | AA61: 1002204 | AB61: 1002205 | AC61: 1002206 | AD61: 1002207 | AE61: 1002208 | AF61: 1002209 | AG61: 1002210 | AH61: 1002211 | AI61: 1002212
A62: 10023 | B62: =IF(W62>0,_xlfn.TEXTJOIN(";", 1, ROW(INDIRECT(CONCATENATE("",A62*100+1,":",A62*100+W62,""))),102),"") -> 1002301;1002302;1002303;102 | C62: 4 | D62: 1 | E62: 1 | F62: 10 | G62: 1 | I62: 1702;1403 | J62: 2;2 | M62: 3 | N62: 1 | S62: 4050 | T62: 4125 | U62: 云海漫行 | V62: 入山幻阵 | W62: =COUNTIF(EventLinkConfig!O:O,EventConfig!A62) -> 3 | X62: 1002301 | Y62: 1002302 | Z62: 1002303
A63: 10024 | B63: =IF(W63>0,_xlfn.TEXTJOIN(";", 1, ROW(INDIRECT(CONCATENATE("",A63*100+1,":",A63*100+W63,""))),102),"") -> 1002401;1002402;1002403;1002404;1002405;1002406;1002407;1002408;1002409;1002410;1002411;1002412;1002413;102 | C63: 4 | D63: 1 | E63: 1 | F63: 10 | G63: 1 | I63: 1702;1403 | J63: 2;2 | M63: 3 | N63: 1 | O63: 91 | S63: 4051 | T63: 4126 | U63: 初见惠子 | V63: 葫芦种子 | W63: =COUNTIF(EventLinkConfig!O:O,EventConfig!A63) -> 13 | X63: 1002401 | Y63: 1002402 | Z63: 1002403 | AA63: 1002404 | AB63: 1002405 | AC63: 1002406 | AD63: 1002407 | AE63: 1002408 | AF63: 1002409 | AG63: 1002410 | AH63: 1002411 | AI63: 1002412 | AJ63: 1002413
A64: 10025 | B64: =IF(W64>0,_xlfn.TEXTJOIN(";", 1, ROW(INDIRECT(CONCATENATE("",A64*100+1,":",A64*100+W64,""))),102),"") -> 1002501;1002502;1002503;1002504;1002505;1002506;1002507;1002508;102 | C64: 4 | D64: 1 | E64: 1 | F64: 10 | G64: 1 | I64: 1703;1404 | J64: 1;2 | M64: 3 | N64: 1 | O64: 101 | S64: 4052 | T64: 4127 | U64: 葫芦肥料 | V64: 天肥地肥 | W64: =COUNTIF(EventLinkConfig!O:O,EventConfig!A64) -> 8 | X64: 1002501 | Y64: 1002502 | Z64: 1002503 | AA64: 1002504 | AB64: 1002505 | AC64: 1002506 | AD64: 1002507 | AE64: 1002508
A65: 10026 | B65: =IF(W65>0,_xlfn.TEXTJOIN(";", 1, ROW(INDIRECT(CONCATENATE("",A65*100+1,":",A65*100+W65,""))),102),"") -> 1002601;1002602;1002603;1002604;1002605;1002606;1002607;1002608;1002609;102 | C65: 4 | D65: 1 | E65: 1 | F65: 10 | G65: 1 | I65: 1703;1404 | J65: 1;2 | M65: 3 | N65: 1 | O65: 111 | S65: 4053 | T65: 4128 | U65: 藐姑射山 | V65: 登山 | W65: =COUNTIF(EventLinkConfig!O:O,EventConfig!A65) -> 9 | X65: 1002601 | Y65: 1002602 | Z65: 1002603 | AA65: 1002604 | AB65: 1002605 | AC65: 1002606 | AD65: 1002607 | AE65: 1002608 | AF65: 1002609
A66: 10027 | B66: =IF(W66>0,_xlfn.TEXTJOIN(";", 1, ROW(INDIRECT(CONCATENATE("",A66*100+1,":",A66*100+W66,""))),102),"") -> 1002701;1002702;1002703;1002704;1002705;1002706;1002707;1002708;1002709;1002710;1002711;1002712;1002713;1002714;1002715;1002716;1002717;1002718;1002719;1002720;1002721;1002722;1002723;1002724;1002725;1002726;1002727;1002728;1002729;1002730;1002731;1002732;1002733;1002734;1002735;1002736;102 | C66: 4 | D66: 1 | E66: 1 | F66: 10 | G66: 1 | I66: 1703;1404 | J66: 1;2 | M66: 3 | N66: 1 | O66: 121 | S66: 4054 | T66: 4129 | U66: 藐姑射山 | V66: 雾中幻径 | W66: =COUNTIF(EventLinkConfig!O:O,EventConfig!A66) -> 36 | X66: 1002701 | Y66: 1002702 | Z66: 1002703 | AA66: 1002704 | AB66: 1002705 | AC66: 1002706 | AD66: 1002707 | AE66: 1002708 | AF66: 1002709 | AG66: 1002710 | AH66: 1002711 | AI66: 1002712 | AJ66: 1002713 | AK66: 1002714 | AL66: 1002715 | AM66: 1002716
A67: 10028 | B67: =IF(W67>0,_xlfn.TEXTJOIN(";", 1, ROW(INDIRECT(CONCATENATE("",A67*100+1,":",A67*100+W67,""))),102),"") -> 1002801;102 | C67: 4 | D67: 1 | E67: 1 | F67: 10 | G67: 1 | I67: 1703;1404 | J67: 1;2 | M67: 3 | N67: 1 | S67: 4055 | T67: 4130 | U67: 露水清心 | W67: =COUNTIF(EventLinkConfig!O:O,EventConfig!A67) -> 1 | X67: 1002801
A68: 10029 | B68: =IF(W68>0,_xlfn.TEXTJOIN(";", 1, ROW(INDIRECT(CONCATENATE("",A68*100+1,":",A68*100+W68,""))),102),"") -> 1002901;1002902;1002903;1002904;1002905;1002906;1002907;1002908;1002909;1002910;1002911;1002912;1002913;1002914;1002915;1002916;1002917;1002918;1002919;1002920;102 | C68: 4 | D68: 1 | E68: 1 | F68: 10 | G68: 1 | I68: 1703;1404 | J68: 1;2 | M68: 3 | N68: 1 | O68: 131 | S68: 4056 | T68: 4131 | U68: 山顶神仙 | W68: =COUNTIF(EventLinkConfig!O:O,EventConfig!A68) -> 20 | X68: 1002901 | Y68: 1002902 | Z68: 1002903 | AA68: 1002904 | AB68: 1002905 | AC68: 1002906 | AD68: 1002907 | AE68: 1002908 | AF68: 1002909 | AG68: 1002910 | AH68: 1002911 | AI68: 1002912 | AJ68: 1002913 | AK68: 1002914 | AL68: 1002915 | AM68: 1002916
A69: 10030 | B69: =IF(W69>0,_xlfn.TEXTJOIN(";", 1, ROW(INDIRECT(CONCATENATE("",A69*100+1,":",A69*100+W69,""))),102),"") -> 1003001;1003002;1003003;1003004;1003005;1003006;1003007;1003008;102 | C69: 4 | D69: 1 | E69: 1 | F69: 10 | G69: 1 | I69: 1703;1404 | J69: 1;2 | M69: 3 | N69: 1 | O69: 141 | S69: 4057 | T69: 4132 | U69: 心魔之战 | V69: 破除枷锁 | W69: =COUNTIF(EventLinkConfig!O:O,EventConfig!A69) -> 8 | X69: 1003001 | Y69: 1003002 | Z69: 1003003 | AA69: 1003004 | AB69: 1003005 | AC69: 1003006 | AD69: 1003007 | AE69: 1003008
A70: 10031 | B70: =IF(W70>0,_xlfn.TEXTJOIN(";", 1, ROW(INDIRECT(CONCATENATE("",A70*100+1,":",A70*100+W70,""))),102),"") -> 1003101;1003102;1003103;1003104;1003105;1003106;1003107;1003108;1003109;1003110;1003111;1003112;1003113;1003114;1003115;1003116;102 | C70: 4 | D70: 1 | E70: 1 | F70: 10 | G70: 1 | I70: 1703;1404 | J70: 1;2 | M70: 3 | N70: 1 | O70: 151 | S70: 4057 | T70: 4132 | U70: 鲲鹏飞天 | W70: =COUNTIF(EventLinkConfig!O:O,EventConfig!A70) -> 16 | X70: 1003101 | Y70: 1003102 | Z70: 1003103 | AA70: 1003104 | AB70: 1003105 | AC70: 1003106 | AD70: 1003107 | AE70: 1003108 | AF70: 1003109 | AG70: 1003110 | AH70: 1003111 | AI70: 1003112 | AJ70: 1003113 | AK70: 1003114 | AL70: 1003115 | AM70: 1003116
A72: 20001 | B72: 1001;1002;1003;1004;1005;102 | C72: 5 | E72: 1 | F72: 0 | G72: 1 | I72: 1001 | J72: 10 | S72: 4058 | T72: 4133 | U72: 受伤的狼 | V72: 你发现一只奄奄一息的狼，决定上前一探究竟。 | X72: 1001 | Y72: 1002 | Z72: 1003 | AA72: 1004 | AB72: 1005
A73: 20002 | B73: =IF(A73="","",_xlfn.TEXTJOIN(";",1,X73:AQ73,102)) -> 1010;1011;1012;1013;1014;1015;1016;102 | C73: 5 | E73: 1 | F73: 0 | G73: 1 | I73: 1001 | J73: 10 | O73: =IF(P73="","",VLOOKUP(P73,条件类型查询!A:B,2,FALSE)) ->  | S73: 4059 | T73: 4134 | U73: 鹬蚌相争 | V73: 附近的小树林闹的不可开交，你决定去看看怎么回事。 | X73: 1010 | Y73: 1011 | Z73: 1012 | AA73: 1013 | AB73: 1014 | AC73: 1015 | AD73: 1016
A74: 20003 | B74: 1001;1002;1003;1004;1005;102 | C74: 5 | E74: 1 | F74: 0 | G74: 1 | I74: 1001 | J74: 10 | S74: 4060 | T74: 4135 | U74: 受伤的鸟 | V74: 你发现一只奄奄一息的鸟，决定上前一探究竟。 | X74: 1001 | Y74: 1002 | Z74: 1003 | AA74: 1004 | AB74: 1005
A76: 9001 | B76: 1001;1002;1003;1004;1005;102 | C76: 6 | D76: 3 | E76: 1 | F76: 0 | G76: 1 | I76: 1001 | J76: 10 | S76: 4061 | T76: 4136 | U76: 受伤的狼 | V76: 你发现一只奄奄一息的狼，决定上前一探究竟。 | X76: 1001 | Y76: 1002 | Z76: 1003 | AA76: 1004 | AB76: 1005
A77: 9002 | B77: 1010;1011;1012;1013;1014;1015;1016;102 | C77: 6 | D77: 3 | E77: 1 | F77: 0 | G77: 1 | I77: 1001 | J77: 10 | O77: =IF(P77="","",VLOOKUP(P77,条件类型查询!A:B,2,FALSE)) ->  | S77: 4062 | T77: 4137 | U77: 鹬蚌相争 | V77: 附近的小树林闹的不可开交，你决定去看看怎么回事。 | X77: 1010 | Y77: 1011 | Z77: 1012 | AA77: 1013 | AB77: 1014 | AC77: 1015 | AD77: 1016
A78: 9025 | B78: 102 | C78: 6 | D78: 3 | E78: 1 | F78: 0 | G78: 1 | I78: 1001 | J78: 10 | M78: 1 | N78: 2 | S78: 4063 | T78: 4138 | U78: 惠子.没用的大葫芦 | V78: 惠子种的葫芦没用，他非常生气
A79: 9014 | B79: 9014;102 | C79: 6 | D79: 3 | E79: 1 | F79: 0 | G79: 1 | I79: 1001 | J79: 10 | M79: 2 | N79: 2 | S79: 4064 | T79: 4139 | U79: 发现魔修 | V79: 发现一群魔修，正在夺人钱财 | X79: 9014
A80: 9031 | B80: 9031;102 | C80: 6 | D80: 3 | E80: 1 | F80: 0 | G80: 1 | I80: 1001 | J80: 10 | K80: 30 | L80: 2 | M80: 3 | N80: 2 | S80: 4065 | T80: 4140 | U80: 魔修 | V80: 打败魔休 | X80: 9031
A81: 9003 | B81: 9003;9004;9005;9006;9007;9008;102 | C81: 6 | D81: 5 | E81: 1 | F81: 0 | G81: 1 | I81: 1001 | J81: 10 | S81: 4066 | T81: 4141 | U81: 幽谷剑鸣 | V81: 你在闭关修炼时，感受到一股凌厉的剑意波动。深入探查，发现一名白衣剑修“清霜”盘坐于谷中，周围剑气环绕，正与一柄散发不祥气息的灵剑对峙。她似在参悟剑诀，却灵气不足，剑灵桀骜。 | X81: 9003 | Y81: 9004 | Z81: 9005 | AA81: 9006 | AB81: 9007 | AC81: 9008
A83: 9101 | B83: =IF(A83="","",_xlfn.TEXTJOIN(";",1,X83:AQ83,102)) -> 910101;102 | C83: 1 | D83: 5 | E83: 1 | F83: 0 | G83: 1 | I83: 1501 | J83: 1 | U83: 初遇道友1 | V83: 你偶遇正在修炼的道友1 | W83: =COUNTIF(EventLinkConfig!O:O,EventConfig!A83) -> 1 | X83: =IF($W83>=X$3,$A83*100+X$3,"") -> 910101
A84: 9102 | B84: =IF(A84="","",_xlfn.TEXTJOIN(";",1,X84:AQ84,102)) -> 910201;102 | C84: 1 | D84: 5 | E84: 1 | F84: 0 | G84: 1 | I84: 1501 | J84: 1 | U84: 初遇道友2 | V84: 你偶遇正在修炼的道友2 | W84: =COUNTIF(EventLinkConfig!O:O,EventConfig!A84) -> 1 | X84: 910201
A85: 9103 | B85: 910301;102 | C85: 1 | D85: 5 | E85: 1 | F85: 0 | G85: 1 | I85: 1501 | J85: 1 | U85: 初遇道友3 | V85: 你偶遇正在修炼的道友3 | W85: =COUNTIF(EventLinkConfig!O:O,EventConfig!A85) -> 1 | X85: 910301
A86: 9104 | B86: =IF(A86="","",_xlfn.TEXTJOIN(";",1,X86:AQ86,102)) -> 910401;102 | C86: 1 | D86: 5 | E86: 1 | F86: 0 | G86: 1 | I86: 1501 | J86: 1 | U86: 初遇道友4 | V86: 你偶遇正在修炼的道友4 | W86: =COUNTIF(EventLinkConfig!O:O,EventConfig!A86) -> 1 | X86: 910401
A87: 9105 | B87: 910501;102 | C87: 1 | D87: 5 | E87: 1 | F87: 0 | G87: 1 | I87: 1501 | J87: 1 | U87: 初遇道友5 | V87: 你偶遇正在修炼的道友5 | W87: =COUNTIF(EventLinkConfig!O:O,EventConfig!A87) -> 1 | X87: 910501
A88: 9106 | B88: 910601;102 | C88: 1 | D88: 5 | E88: 1 | F88: 0 | G88: 1 | I88: 1501 | J88: 1 | U88: 初遇道友6 | V88: 你偶遇正在修炼的道友6 | W88: =COUNTIF(EventLinkConfig!O:O,EventConfig!A88) -> 1 | X88: 910601
A89: 9107 | B89: 910701;102 | C89: 1 | D89: 5 | E89: 1 | F89: 0 | G89: 1 | I89: 1501 | J89: 1 | U89: 初遇道友7 | V89: 你偶遇正在修炼的道友7 | W89: =COUNTIF(EventLinkConfig!O:O,EventConfig!A89) -> 1 | X89: 910701
A90: 9108 | B90: =IF(A90="","",_xlfn.TEXTJOIN(";",1,X90:AQ90,102)) -> 910801;102 | C90: 1 | D90: 5 | E90: 1 | F90: 0 | G90: 1 | I90: 1501 | J90: 1 | U90: 初遇道友8 | V90: 你偶遇正在修炼的道友8 | W90: =COUNTIF(EventLinkConfig!O:O,EventConfig!A90) -> 1 | X90: 910801
A91: 9109 | B91: 910901;102 | C91: 1 | D91: 5 | E91: 1 | F91: 0 | G91: 1 | I91: 1501 | J91: 1 | U91: 初遇道友9 | V91: 你偶遇正在修炼的道友9 | W91: =COUNTIF(EventLinkConfig!O:O,EventConfig!A91) -> 1 | X91: 910901
A92: 9110 | B92: =IF(A92="","",_xlfn.TEXTJOIN(";",1,X92:AQ92,102)) -> 911001;102 | C92: 1 | D92: 5 | E92: 1 | F92: 0 | G92: 1 | I92: 1501 | J92: 1 | U92: 初遇道友10 | V92: 你偶遇正在修炼的道友10 | W92: =COUNTIF(EventLinkConfig!O:O,EventConfig!A92) -> 1 | X92: 911001
A94: 3 | B94: =IF(A94="","",_xlfn.TEXTJOIN(";",1,X94:AQ94,102)) -> 1020;1021;1022;1023;1024;1025;1026;102 | C94: 99 | D94: 2 | E94: 1 | F94: 10 | G94: 1 | I94: 1001 | J94: 10 | M94: 1 | N94: 4 | O94: =IF(P94="","",VLOOKUP(P94,条件类型查询!A:B,2,FALSE)) -> 拥有特定道具 | P94: 1 | Q94: 1004 | R94: 1 | S94: 4067 | T94: 4142 | U94: 鹬蚌相争2 | V94: 附近的小树林闹的不可开交，你决定去看看怎么回事。 | X94: 1020 | Y94: 1021 | Z94: 1022 | AA94: 1023 | AB94: 1024 | AC94: 1025 | AD94: 1026
A95: 1001 | B95: =IF(A95="","",_xlfn.TEXTJOIN(";",1,X95:AQ95,102)) -> 1001;1002;1003;1004;1005;100;102 | C95: 99 | D95: 4 | E95: 1 | F95: 10 | G95: 1 | I95: 1001 | J95: 10 | O95: =IF(P95="","",VLOOKUP(P95,条件类型查询!A:B,2,FALSE)) ->  | S95: 4068 | T95: 4143 | U95: 受伤的鸟 | V95: 你发现一只奄奄一息的鸟，决定上前一探究竟。 | X95: 1001 | Y95: 1002 | Z95: 1003 | AA95: 1004 | AB95: 1005 | AQ95: 100
A96: 30001 | B96: 100;102 | C96: 98 | D96: 6 | E96: 1 | F96: 0 | G96: 1 | K96: 50 | L96: 5 | O96: =IF(P96="","",VLOOKUP(P96,条件类型查询!A:B,2,FALSE)) ->  | W96: =COUNTIF(EventLinkConfig!O:O,EventConfig!A96) -> 0 | X96: =IF($W96>=X$3,$A96*100+X$3,"") ->  | AQ96: 100
A97: 30002 | B97: 100;102 | C97: 98 | D97: 6 | E97: 1 | F97: 0 | G97: 1 | K97: 50 | L97: 1 | O97: =IF(P97="","",VLOOKUP(P97,条件类型查询!A:B,2,FALSE)) ->  | W97: =COUNTIF(EventLinkConfig!O:O,EventConfig!A97) -> 0 | AQ97: 100
A98: 30003 | B98: 3000301;100;102 | C98: 98 | D98: 6 | E98: 1 | F98: 0 | G98: 1 | K98: 50 | L98: 1 | M98: 1 | O98: =IF(P98="","",VLOOKUP(P98,条件类型查询!A:B,2,FALSE)) ->  | W98: =COUNTIF(EventLinkConfig!O:O,EventConfig!A98) -> 1 | X98: 3000301 | AQ98: 100
A99: 30004 | B99: 3000401;100;102 | C99: 98 | D99: 6 | E99: 1 | F99: 0 | G99: 1 | K99: 50 | L99: 3 | M99: 2 | O99: =IF(P99="","",VLOOKUP(P99,条件类型查询!A:B,2,FALSE)) ->  | W99: =COUNTIF(EventLinkConfig!O:O,EventConfig!A99) -> 1 | X99: 3000401 | AQ99: 100
A100: 30005 | B100: 3000501;100;102 | C100: 98 | D100: 6 | E100: 1 | F100: 0 | G100: 1 | K100: 50 | L100: 1 | M100: 2 | O100: =IF(P100="","",VLOOKUP(P100,条件类型查询!A:B,2,FALSE)) ->  | W100: =COUNTIF(EventLinkConfig!O:O,EventConfig!A100) -> 1 | X100: 3000501 | AQ100: 100
A101: 30006 | B101: 3000601;100;102 | C101: 98 | D101: 6 | E101: 1 | F101: 0 | G101: 1 | K101: 50 | L101: 1 | M101: 2 | O101: =IF(P101="","",VLOOKUP(P101,条件类型查询!A:B,2,FALSE)) ->  | W101: =COUNTIF(EventLinkConfig!O:O,EventConfig!A101) -> 1 | X101: 3000601 | AQ101: 100
A102: 30007 | B102: 3000701;100;102 | C102: 98 | D102: 6 | E102: 1 | F102: 0 | G102: 1 | K102: 50 | L102: 1 | M102: 3 | O102: =IF(P102="","",VLOOKUP(P102,条件类型查询!A:B,2,FALSE)) ->  | W102: =COUNTIF(EventLinkConfig!O:O,EventConfig!A102) -> 1 | X102: 3000701 | AQ102: 100
A103: 30008 | B103: 3000801;100;102 | C103: 98 | D103: 6 | E103: 1 | F103: 0 | G103: 1 | K103: 15 | L103: 1 | M103: 3 | O103: =IF(P103="","",VLOOKUP(P103,条件类型查询!A:B,2,FALSE)) ->  | W103: =COUNTIF(EventLinkConfig!O:O,EventConfig!A103) -> 1 | X103: 3000801 | AQ103: 100
A104: 30009 | B104: 3000901;3000902;100;102 | C104: 98 | D104: 6 | E104: 1 | F104: 0 | G104: 1 | I104: 1301 | J104: 1 | K104: 100 | L104: 1 | M104: 3 | O104: =IF(P104="","",VLOOKUP(P104,条件类型查询!A:B,2,FALSE)) ->  | W104: =COUNTIF(EventLinkConfig!O:O,EventConfig!A104) -> 2 | X104: 3000901 | Y104: 3000902 | AQ104: 100
A105: 30010 | B105: 3001001;100;102 | C105: 98 | D105: 6 | E105: 1 | F105: 0 | G105: 1 | I105: 1001 | J105: 1 | K105: 100 | L105: 1 | M105: 3 | O105: =IF(P105="","",VLOOKUP(P105,条件类型查询!A:B,2,FALSE)) -> 前置事件 | P105: 10 | Q105: 1021 | W105: =COUNTIF(EventLinkConfig!O:O,EventConfig!A105) -> 1 | X105: 3001001 | AQ105: 100
A106: 30011 | B106: 3001101;3001102;100;102 | C106: 98 | D106: 6 | E106: 1 | F106: 0 | G106: 1 | I106: 20003 | J106: 3 | K106: 100 | L106: 1 | M106: 2 | O106: =IF(P106="","",VLOOKUP(P106,条件类型查询!A:B,2,FALSE)) ->  | W106: =COUNTIF(EventLinkConfig!O:O,EventConfig!A106) -> 2 | X106: 3001101 | Y106: 3001102 | AQ106: 100
A107: 30012 | B107: 3001201;102 | C107: 98 | D107: 6 | E107: 1 | F107: 0 | G107: 1 | I107: 20004 | J107: 1 | K107: 20 | L107: 1 | M107: 2 | O107: =IF(P107="","",VLOOKUP(P107,条件类型查询!A:B,2,FALSE)) ->  | W107: =COUNTIF(EventLinkConfig!O:O,EventConfig!A107) -> 1 | X107: 3001201
A109: 5001 | B109: 500101;500102;500103;500104;500105;500106;500107;500108;500109;500110;500111;500112;500113;500114;500115;500116;500117;500118;500119;102 | C109: 99 | D109: 5 | E109: 1 | F109: 10 | G109: 1 | H109: 10 | I109: 1501 | J109: 1 | M109: 1 | N109: 1 | O109: =IF(P109="","",VLOOKUP(P109,条件类型查询!A:B,2,FALSE)) ->  | S109: 4069 | T109: 4144 | U109: 风影为二 | V109: 风影为二详情占位 | W109: =COUNTIF(EventLinkConfig!O:O,EventConfig!A109) -> 19 | X109: =IF($W109>=X$3,$A109*100+X$3,"") -> 500101 | Y109: 500102 | Z109: 500103 | AA109: 500104 | AB109: 500105 | AC109: 500106 | AD109: 500107 | AE109: 500108 | AF109: 500109 | AG109: 500110 | AH109: =IF($W109>=AH$3,$A109*100+AH$3,"") -> 500111 | AI109: 500112 | AJ109: 500113 | AK109: 500114 | AL109: 500115 | AM109: 500116 | AN109: 500117 | AO109: 500118 | AP109: 500119
A110: 5002 | B110: 500201;500202;500203;500204;500205;500206;500207;500208;500209;500210;500211;500212;500213;500214;500215;500216;102 | C110: 99 | D110: 5 | E110: 1 | F110: 10 | G110: 1 | H110: 11 | I110: 1601 | J110: 1 | M110: 1 | N110: 1 | O110: =IF(P110="","",VLOOKUP(P110,条件类型查询!A:B,2,FALSE)) -> 前置事件 | P110: 10 | Q110: 5001 | S110: 4070 | T110: 4145 | U110: 风影合一 | V110: 风影合一详情占位 | W110: =COUNTIF(EventLinkConfig!O:O,EventConfig!A110) -> 16 | X110: 500201 | Y110: 500202 | Z110: 500203 | AA110: 500204 | AB110: 500205 | AC110: 500206 | AD110: 500207 | AE110: 500208 | AF110: 500209 | AG110: 500210 | AH110: 500211 | AI110: 500212 | AJ110: 500213 | AK110: 500214 | AL110: 500215 | AM110: 500216
A111: 5003 | B111: 500301;500302;500303;500304;500305;500306;500307;500308;500309;500310;500311;500312;500313;500314;500315;500316;500317;500318;500319;500320;102 | C111: 99 | D111: 2 | E111: 1 | F111: 0 | G111: 1 | H111: 1 | I111: 1001 | J111: 500 | M111: 1 | N111: 1 | O111: =IF(P111="","",VLOOKUP(P111,条件类型查询!A:B,2,FALSE)) ->  | S111: 4071 | T111: 4146 | U111: 北海剑妖 | V111: 百年化妖为红颜，一剑焚海断孽缘 | W111: =COUNTIF(EventLinkConfig!O:O,EventConfig!A111) -> 20 | X111: 500301 | Y111: 500302 | Z111: 500303 | AA111: 500304 | AB111: 500305 | AC111: 500306 | AD111: 500307 | AE111: 500308 | AF111: 500309 | AG111: 500310 | AH111: 500311 | AI111: 500312 | AJ111: 500313 | AK111: 500314 | AL111: 500315 | AM111: 500316 | AN111: 500317 | AO111: 500318 | AP111: 500319 | AQ111: 500320
A112: 5004 | B112: =IF(A112="","",_xlfn.TEXTJOIN(";",1,X112:AQ112,102)) -> 500401;102 | C112: 99 | D112: 7 | E112: 1 | F112: 0 | G112: 1 | H112: 1 | I112: 1001 | J112: -20000 | O112: =IF(P112="","",VLOOKUP(P112,条件类型查询!A:B,2,FALSE)) ->  | S112: 4072 | T112: 4147 | U112: 【纳福】灵石 | V112: 大量获取灵石 | W112: =COUNTIF(EventLinkConfig!O:O,EventConfig!A112) -> 1 | X112: 500401
A113: 5005 | B113: =IF(A113="","",_xlfn.TEXTJOIN(";",1,X113:AQ113,102)) -> 500501;102 | C113: 99 | D113: 7 | E113: 1 | F113: 0 | G113: 1 | H113: 1 | I113: 1003 | J113: -20000 | O113: =IF(P113="","",VLOOKUP(P113,条件类型查询!A:B,2,FALSE)) ->  | S113: 4073 | T113: 4148 | U113: 【纳福】修为 | V113: 大量获取修为 | W113: =COUNTIF(EventLinkConfig!O:O,EventConfig!A113) -> 1 | X113: 500501
A114: 5006 | B114: 500601;102 | C114: 99 | D114: 7 | E114: 1 | F114: 0 | G114: 1 | H114: 1 | I114: 1005 | J114: -20000 | O114: =IF(P114="","",VLOOKUP(P114,条件类型查询!A:B,2,FALSE)) ->  | S114: 4074 | T114: 4149 | U114: 【纳福】灵气 | V114: 大量获取灵气 | W114: =COUNTIF(EventLinkConfig!O:O,EventConfig!A114) -> 1 | X114: 500601
A115: 5007 | B115: =IF(A115="","",_xlfn.TEXTJOIN(";",1,X115:AQ115,102)) -> 500701;102 | C115: 99 | D115: 7 | E115: 1 | F115: 0 | G115: 1 | H115: 1 | I115: 1006 | J115: -20000 | O115: =IF(P115="","",VLOOKUP(P115,条件类型查询!A:B,2,FALSE)) ->  | S115: 4075 | T115: 4150 | U115: 【纳福】玄晶 | V115: 大量获取玄晶 | W115: =COUNTIF(EventLinkConfig!O:O,EventConfig!A115) -> 1 | X115: 500701

Sheet EventLinkConfig
A1: ID | B1: conciseEventMessage | D1: EventConditionMessage | G1: PreShow | H1: PreShowPar | J1: NPCID | L1: LanID | N1: DialogueType | O1: EventID | Q1: ConditionId | U1: optionType | V1: optionPara1 | W1: optionPara2 | AD1: PrizeIDs | AE1: PrizeNums | AF1: ResultType | AG1: ResultOptions
A2: int | B2: int | D2: int | G2: int | H2: int | J2: int | L2: int[] | N2: int | O2: int | Q2: int[] | U2: int | V2: int[] | W2: int[] | AD2: int[] | AE2: int[] | AF2: int | AG2: int[]
C3: 5001 | AI3: 5000
A4: ID | B4: 任务列表中的简洁描述 | C4: 任务列表中的简洁描述 | D4: 无任务目标时的补充文本 | E4: 无任务目标时的补充文本 | G4: 前置表现 1飞行 | H4: 前置表现参数 | J4: 对话NPCID | K4: NPC | L4: 对话 | M4: 对话1 | N4: 对话框类型 | O4: 属于哪个事件 | P4: 步骤 | Q4: 条件判断类型 | R4: 任务目标1 | S4: 任务目标2 | T4: 条件判断内容 | U4: 步骤类型 1=提供选项 2=进入战斗 5=自动退出 3=获得奖励 4=扣除道具 | V4: 事件常量1 1=步骤IDs 2=战斗ID | W4: 事件常量2 1=事件文本 | X4: 选择1 | Y4: 选择1 步骤：填选项文本1 战斗：填战斗ID | Z4: 选择1 步骤1：跳转到哪一步 不填默认跳转到下一步 | AA4: 选择2 | AB4: 选择2 步骤：填选项文本2 | AC4: 选择1 步骤2：跳转到哪一步 不填默认跳转到下一步 | AD4: 事件结局奖励 | AE4: 事件结局奖励数量 | AF4: 事件结束类型 1：跳转步骤 2：根据战斗结果跳转 3.触发新事件 | AG4: 事件结局后提供的选项 1.EventLinkId 2.胜利id;失败id 3.EventConfigId | AH4: 1.步骤ID（不填默认为下一个步骤ID） 2.胜利ID（不填默认为下一个步骤ID） 3.事件ID（不填默认为下一个事件ID） | AI4: 语言表最大值
A5: 100 | B5: =IF(C5="","",IF(C5=C4,B4,MAX(AI4,AI3)+1)) ->  | D5: =IF(E5="","",IF(E5=E4,D4,MAX(AI4,AI3,B5)+1)) ->  | L5: =IF(M5="","",MAX(AI4,AI3,B5,D5)+1) -> 5001 | M5: 你被怪物击败，神识也随之消散了。 | Q5: =_xlfn.TEXTJOIN(";",1,R5:S5) ->  | T5: =IF(R5="","","-"&VLOOKUP(R5,EventConditionConfig!A:C,3,FALSE)&IF(S5="","",CHAR(10)&"-"&VLOOKUP(S5,EventConditionConfig!A:C,3,FALSE))) ->  | X5: =IF(OR(ISNUMBER(Y5),Y5=""),"",MAX(AI4,AI3,B5,D5,L5)+1) ->  | AA5: =IF(OR(ISNUMBER(AB5),AB5=""),"",X5+1) ->  | AI5: =IF(A5="","",MAX(B5,D5,L5,X5,AA5,AI4,AI3)) -> 5001
A6: 101 | B6: =IF(C6="","",IF(C6=C5,B5,MAX(AI5,AI4)+1)) ->  | D6: =IF(E6="","",IF(E6=E5,D5,MAX(AI5,AI4,B6)+1)) ->  | L6: =IF(M6="","",MAX(AI5,AI4,B6,D6)+1) -> 5002 | M6: 你败下阵来，感到头晕目眩，试图努力回忆起刚才发生的事情。 | Q6: =_xlfn.TEXTJOIN(";",1,R6:S6) ->  | T6: =IF(R6="","","-"&VLOOKUP(R6,EventConditionConfig!A:C,3,FALSE)&IF(S6="","",CHAR(10)&"-"&VLOOKUP(S6,EventConditionConfig!A:C,3,FALSE))) ->  | X6: =IF(OR(ISNUMBER(Y6),Y6=""),"",MAX(AI5,AI4,B6,D6,L6)+1) ->  | AA6: =IF(OR(ISNUMBER(AB6),AB6=""),"",X6+1) ->  | AI6: =IF(A6="","",MAX(B6,D6,L6,X6,AA6,AI5,AI4)) -> 5002
A7: 102 | L7: 5003 | M7: 战斗胜利，你的任务进度增加了。 | AI7: 5003
T8: =IF(R8="","","-"&VLOOKUP(R8,EventConditionConfig!A:C,3,FALSE)&IF(S8="","",CHAR(10)&"-"&VLOOKUP(S8,EventConditionConfig!A:C,3,FALSE))) -> 
A9: 1001 | J9: 2 | L9: 5004 | M9: 你遇到一只奄奄一息的野狼，从周围四散的血迹来看，想必它刚才经历了一场恶战。 | O9: 1 | T9: =IF(R9="","","-"&VLOOKUP(R9,EventConditionConfig!A:C,3,FALSE)&IF(S9="","",CHAR(10)&"-"&VLOOKUP(S9,EventConditionConfig!A:C,3,FALSE))) ->  | U9: 1 | V9: 1002;1003 | W9: 198;199 | X9: 5005 | Y9: 趁它虚弱赶紧除掉它！ | AA9: 5006 | AB9: 你不忍见它受苦，选择帮它减轻痛苦。 | AI9: 5006
A10: 1002 | L10: 5007 | M10: 野狼用它最后一口气，朝你扑了过来！ | O10: 1 | T10: =IF(R10="","","-"&VLOOKUP(R10,EventConditionConfig!A:C,3,FALSE)&IF(S10="","",CHAR(10)&"-"&VLOOKUP(S10,EventConditionConfig!A:C,3,FALSE))) ->  | U10: 2 | V10: 100001 | AF10: 2 | AG10: 1004;100 | AI10: 5007
A11: 1003 | L11: 5008 | M11: 你抽出匕首准备了结它的生命，却发现怀中还躺着一只刚出生的狼崽。 | O11: 1 | T11: =IF(R11="","","-"&VLOOKUP(R11,EventConditionConfig!A:C,3,FALSE)&IF(S11="","",CHAR(10)&"-"&VLOOKUP(S11,EventConditionConfig!A:C,3,FALSE))) ->  | U11: 1 | V11: 1005 | W11: 200 | AI11: 5008
A12: 1004 | L12: 5009 | M12: 随着你的最后一击，野狼应声倒下，你罔顾它幽怨的眼神，从它怀中拿走了一些财物。 | O12: 1 | T12: =IF(R12="","","-"&VLOOKUP(R12,EventConditionConfig!A:C,3,FALSE)&IF(S12="","",CHAR(10)&"-"&VLOOKUP(S12,EventConditionConfig!A:C,3,FALSE))) ->  | U12: 3 | AD12: 1002 | AE12: 100 | AI12: 5009
A13: 1005 | L13: 5010 | M13: 母狼似乎懂你要做什么，眼神归于平静。你终结了她，决定收养这只小狼仔。 | O13: 1 | T13: =IF(R13="","","-"&VLOOKUP(R13,EventConditionConfig!A:C,3,FALSE)&IF(S13="","",CHAR(10)&"-"&VLOOKUP(S13,EventConditionConfig!A:C,3,FALSE))) ->  | U13: 3 | AD13: 1001 | AE13: 50 | AI13: 5010
T14: =IF(R14="","","-"&VLOOKUP(R14,EventConditionConfig!A:C,3,FALSE)&IF(S14="","",CHAR(10)&"-"&VLOOKUP(S14,EventConditionConfig!A:C,3,FALSE))) -> 
A15: 1010 | L15: 5011 | M15: 从不远处传来刀剑声，听起来双方已经精疲力尽了。 | O15: 2 | T15: =IF(R15="","","-"&VLOOKUP(R15,EventConditionConfig!A:C,3,FALSE)&IF(S15="","",CHAR(10)&"-"&VLOOKUP(S15,EventConditionConfig!A:C,3,FALSE))) ->  | U15: 1 | V15: 1011;1012 | W15: 201;202 | X15: 5012 | Y15: 去看看 | AA15: 5013 | AB15: (需拥有法宝凝神珠）听起来都是鸡毛蒜皮的小摩擦，你选择祭出凝神珠化解他们的怨气。 | AI15: 5013
A16: 1011 | L16: 5014 | M16: 你走进一看，原来是一伙山贼分赃不均内讧了起来。你看着旁边被砍的七零八落的轿子和这群山贼，选择怎么做呢： | O16: 2 | T16: =IF(R16="","","-"&VLOOKUP(R16,EventConditionConfig!A:C,3,FALSE)&IF(S16="","",CHAR(10)&"-"&VLOOKUP(S16,EventConditionConfig!A:C,3,FALSE))) ->  | U16: 1 | V16: 1014;1015 | W16: 203;204 | X16: 5015 | Y16: 你顿时杀心四起，决定杀了贼寇，救出轿中之人 | AA16: 5016 | AB16: 盗贼们个个双眼杀的通红，你决定来个渔翁得利。 | AI16: 5016
A17: 1012 | L17: 5017 | M17: 法宝现身，效果立竿见影，刀剑声逐渐消失，这个世界安静了。 | O17: 2 | T17: =IF(R17="","","-"&VLOOKUP(R17,EventConditionConfig!A:C,3,FALSE)&IF(S17="","",CHAR(10)&"-"&VLOOKUP(S17,EventConditionConfig!A:C,3,FALSE))) ->  | U17: 3 | AD17: 1001 | AE17: 10 | AI17: 5017 | AJ17: 1 | AK17: 1001;1
A18: 1014 | L18: 5018 | M18: 你怒斥贼寇的恶行，贼寇们被你激怒了，准备迎战！ | O18: 2 | T18: =IF(R18="","","-"&VLOOKUP(R18,EventConditionConfig!A:C,3,FALSE)&IF(S18="","",CHAR(10)&"-"&VLOOKUP(S18,EventConditionConfig!A:C,3,FALSE))) ->  | U18: 2 | V18: 100002 | AF18: 2 | AG18: 1016;100 | AI18: 5018 | AJ18: 2 | AK18: 4;150
A19: 1015 | L19: 5019 | M19: 你趁人不备顺走了轿内主人的包裹，任留轿内人痛苦的挣扎。 | O19: 2 | T19: =IF(R19="","","-"&VLOOKUP(R19,EventConditionConfig!A:C,3,FALSE)&IF(S19="","",CHAR(10)&"-"&VLOOKUP(S19,EventConditionConfig!A:C,3,FALSE))) ->  | U19: 3 | AD19: 1003 | AE19: 1000 | AI19: 5019
A20: 1016 | L20: 5020 | M20: 杀退贼寇，你上演了一出英雄救美的桥段。姑娘为了答谢你的救命之恩，将藏在贴身处的珍贵首饰赠与你作为定情信物。 | O20: 2 | T20: =IF(R20="","","-"&VLOOKUP(R20,EventConditionConfig!A:C,3,FALSE)&IF(S20="","",CHAR(10)&"-"&VLOOKUP(S20,EventConditionConfig!A:C,3,FALSE))) ->  | AD20: 1001 | AE20: 200 | AI20: 5020
T21: =IF(R21="","","-"&VLOOKUP(R21,EventConditionConfig!A:C,3,FALSE)&IF(S21="","",CHAR(10)&"-"&VLOOKUP(S21,EventConditionConfig!A:C,3,FALSE))) -> 
A22: 1020 | L22: 5021 | M22: 从不远处传来刀剑声，听起来双方已经精疲力尽了。 | T22: =IF(R22="","","-"&VLOOKUP(R22,EventConditionConfig!A:C,3,FALSE)&IF(S22="","",CHAR(10)&"-"&VLOOKUP(S22,EventConditionConfig!A:C,3,FALSE))) ->  | U22: 1 | V22: 1021;1022 | W22: 201;202 | X22: 5022 | Y22: 去看看 | AA22: 5023 | AB22: 使用法宝息事宁人 | AI22: 5023
A23: 1021 | L23: 5024 | M23: 你走进一看，原来是一伙山贼抢了一名坐在官轿内的女子，因分赃不均内讧了起来。山贼二话不说就朝你冲了过来！ | T23: =IF(R23="","","-"&VLOOKUP(R23,EventConditionConfig!A:C,3,FALSE)&IF(S23="","",CHAR(10)&"-"&VLOOKUP(S23,EventConditionConfig!A:C,3,FALSE))) ->  | U23: 2 | V23: 100003 | AD23: 1002 | AE23: 100 | AF23: 2 | AG23: 1026;100 | AI23: 5024
A24: 1022 | L24: 5025 | M24: 法宝现身，效果立竿见影，刀剑声逐渐消失，这个世界安静了。 | T24: =IF(R24="","","-"&VLOOKUP(R24,EventConditionConfig!A:C,3,FALSE)&IF(S24="","",CHAR(10)&"-"&VLOOKUP(S24,EventConditionConfig!A:C,3,FALSE))) ->  | U24: 4 | AD24: 1002 | AE24: 10 | AI24: 5025 | AJ24: 1 | AK24: 1001;1
A25: 1024 | L25: 5026 | M25: 你大声怒斥贼寇的恶行，贼首发现你了，准备迎战！ | T25: =IF(R25="","","-"&VLOOKUP(R25,EventConditionConfig!A:C,3,FALSE)&IF(S25="","",CHAR(10)&"-"&VLOOKUP(S25,EventConditionConfig!A:C,3,FALSE))) ->  | U25: 2 | V25: 100004 | AD25: 1004 | AE25: 100 | AF25: 2 | AG25: 1016;100 | AI25: 5026 | AJ25: 2 | AK25: 4;150
A26: 1025 | L26: 5027 | M26: 你趁人不备顺走了轿内主人的包裹，任留轿内人痛苦的挣扎。 | T26: =IF(R26="","","-"&VLOOKUP(R26,EventConditionConfig!A:C,3,FALSE)&IF(S26="","",CHAR(10)&"-"&VLOOKUP(S26,EventConditionConfig!A:C,3,FALSE))) ->  | U26: 3 | AD26: 1002 | AE26: 1000 | AI26: 5027
A27: 1026 | L27: 5028 | M27: 你将山贼们打的落花流水，成功吸引了山贼头子的注意。 | T27: =IF(R27="","","-"&VLOOKUP(R27,EventConditionConfig!A:C,3,FALSE)&IF(S27="","",CHAR(10)&"-"&VLOOKUP(S27,EventConditionConfig!A:C,3,FALSE))) ->  | U27: 1 | V27: 1024;1025 | W27: 205;206 | X27: 5029 | Y27: 选择正面迎战山贼头领（困难） | AA27: 5030 | AB27: 你决定避开山贼头领的视线，来个渔翁得利。 | AI27: 5030
T28: =IF(R28="","","-"&VLOOKUP(R28,EventConditionConfig!A:C,3,FALSE)&IF(S28="","",CHAR(10)&"-"&VLOOKUP(S28,EventConditionConfig!A:C,3,FALSE))) -> 
A29: 1030 | L29: 5031 | M29: 发现一个血迹斑斑的背包，好像刚刚发生了战斗，我翻翻背包... | O29: 4 | T29: =IF(R29="","","-"&VLOOKUP(R29,EventConditionConfig!A:C,3,FALSE)&IF(S29="","",CHAR(10)&"-"&VLOOKUP(S29,EventConditionConfig!A:C,3,FALSE))) ->  | U29: 3 | AD29: 1002 | AE29: 10 | AI29: 5031
T30: =IF(R30="","","-"&VLOOKUP(R30,EventConditionConfig!A:C,3,FALSE)&IF(S30="","",CHAR(10)&"-"&VLOOKUP(S30,EventConditionConfig!A:C,3,FALSE))) -> 
A31: 1040 | L31: 5032 | M31: 啥也没有....除了钱 | O31: 5 | T31: =IF(R31="","","-"&VLOOKUP(R31,EventConditionConfig!A:C,3,FALSE)&IF(S31="","",CHAR(10)&"-"&VLOOKUP(S31,EventConditionConfig!A:C,3,FALSE))) ->  | U31: 3 | AD31: 1002 | AE31: 10 | AI31: 5032
T32: =IF(R32="","","-"&VLOOKUP(R32,EventConditionConfig!A:C,3,FALSE)&IF(S32="","",CHAR(10)&"-"&VLOOKUP(S32,EventConditionConfig!A:C,3,FALSE))) -> 
A33: 1050 | L33: 5033 | M33: 两夫妻在吵架，似乎为了一件大事.. | O33: 6 | T33: =IF(R33="","","-"&VLOOKUP(R33,EventConditionConfig!A:C,3,FALSE)&IF(S33="","",CHAR(10)&"-"&VLOOKUP(S33,EventConditionConfig!A:C,3,FALSE))) ->  | U33: 3 | AD33: 1002;1001 | AE33: 10;20 | AI33: 5033
T34: =IF(R34="","","-"&VLOOKUP(R34,EventConditionConfig!A:C,3,FALSE)&IF(S34="","",CHAR(10)&"-"&VLOOKUP(S34,EventConditionConfig!A:C,3,FALSE))) -> 
A35: 1060 | L35: 5034 | M35: 没有任何发现，但感觉空气很好....下次有空再来看看 | O35: 7 | T35: =IF(R35="","","-"&VLOOKUP(R35,EventConditionConfig!A:C,3,FALSE)&IF(S35="","",CHAR(10)&"-"&VLOOKUP(S35,EventConditionConfig!A:C,3,FALSE))) ->  | AI35: 5034
T36: =IF(R36="","","-"&VLOOKUP(R36,EventConditionConfig!A:C,3,FALSE)&IF(S36="","",CHAR(10)&"-"&VLOOKUP(S36,EventConditionConfig!A:C,3,FALSE))) -> 
A37: =O37*100+P37 -> 1101 | L37: 5035 | M37: 你遇到一只拦路的妖兽，它看起来饥肠辘辘 | O37: 11 | P37: =IF(O37=O36,P36+1,1) -> 1 | T37: =IF(R37="","","-"&VLOOKUP(R37,EventConditionConfig!A:C,3,FALSE)&IF(S37="","",CHAR(10)&"-"&VLOOKUP(S37,EventConditionConfig!A:C,3,FALSE))) ->  | AF37: 1 | AG37: =A38 -> 1102 | AI37: 5035
A38: =O38*100+P38 -> 1102 | L38: 5036 | M38: 你扔出一块鹿肉，趁它抢食之际，你祭出腰间的法宝 | O38: 11 | P38: =IF(O38=O37,P37+1,1) -> 2 | T38: =IF(R38="","","-"&VLOOKUP(R38,EventConditionConfig!A:C,3,FALSE)&IF(S38="","",CHAR(10)&"-"&VLOOKUP(S38,EventConditionConfig!A:C,3,FALSE))) ->  | AF38: 1 | AG38: =A39 -> 1103 | AI38: 5036
A39: =O39*100+P39 -> 1103 | L39: 5037 | M39: 你成功诱捕了怪物，并从它身上吸取了一些修为 | O39: 11 | P39: =IF(O39=O38,P38+1,1) -> 3 | Q39: =_xlfn.TEXTJOIN(";",1,R39:S39) ->  | T39: =IF(R39="","","-"&VLOOKUP(R39,EventConditionConfig!A:C,3,FALSE)&IF(S39="","",CHAR(10)&"-"&VLOOKUP(S39,EventConditionConfig!A:C,3,FALSE))) ->  | AI39: 5037
T40: =IF(R40="","","-"&VLOOKUP(R40,EventConditionConfig!A:C,3,FALSE)&IF(S40="","",CHAR(10)&"-"&VLOOKUP(S40,EventConditionConfig!A:C,3,FALSE))) -> 
A41: =O41*100+P41 -> 1201 | L41: 5038 | M41: 你偶遇一处仙气四溢无人生活的洞穴 | O41: 12 | P41: =IF(O41=O40,P40+1,1) -> 1 | T41: =IF(R41="","","-"&VLOOKUP(R41,EventConditionConfig!A:C,3,FALSE)&IF(S41="","",CHAR(10)&"-"&VLOOKUP(S41,EventConditionConfig!A:C,3,FALSE))) ->  | AF41: 1 | AG41: =A42 -> 1202 | AI41: 5038
A42: =O42*100+P42 -> 1202 | L42: 5039 | M42: 不知哪位高人在洞穴内壁留下绝世秘籍 | O42: 12 | P42: =IF(O42=O41,P41+1,1) -> 2 | T42: =IF(R42="","","-"&VLOOKUP(R42,EventConditionConfig!A:C,3,FALSE)&IF(S42="","",CHAR(10)&"-"&VLOOKUP(S42,EventConditionConfig!A:C,3,FALSE))) ->  | AF42: 1 | AG42: =A43 -> 1203 | AI42: 5039
A43: =O43*100+P43 -> 1203 | L43: 5040 | M43: 你仔细研读后，功法得到精进 | O43: 12 | P43: =IF(O43=O42,P42+1,1) -> 3 | T43: =IF(R43="","","-"&VLOOKUP(R43,EventConditionConfig!A:C,3,FALSE)&IF(S43="","",CHAR(10)&"-"&VLOOKUP(S43,EventConditionConfig!A:C,3,FALSE))) ->  | AI43: 5040
T44: =IF(R44="","","-"&VLOOKUP(R44,EventConditionConfig!A:C,3,FALSE)&IF(S44="","",CHAR(10)&"-"&VLOOKUP(S44,EventConditionConfig!A:C,3,FALSE))) -> 
A45: =O45*100+P45 -> 1301 | L45: 5041 | M45: 你偶然发现一只枯萎的葫芦，但泛着蓝光 | O45: 13 | P45: =IF(O45=O44,P44+1,1) -> 1 | T45: =IF(R45="","","-"&VLOOKUP(R45,EventConditionConfig!A:C,3,FALSE)&IF(S45="","",CHAR(10)&"-"&VLOOKUP(S45,EventConditionConfig!A:C,3,FALSE))) ->  | AF45: 1 | AG45: =A46 -> 1302 | AI45: 5041
A46: =O46*100+P46 -> 1302 | L46: 5042 | M46: 好奇的你凑近一看，不知谁将这件法宝遗落于此 | O46: 13 | P46: =IF(O46=O45,P45+1,1) -> 2 | T46: =IF(R46="","","-"&VLOOKUP(R46,EventConditionConfig!A:C,3,FALSE)&IF(S46="","",CHAR(10)&"-"&VLOOKUP(S46,EventConditionConfig!A:C,3,FALSE))) ->  | AF46: 1 | AG46: =A47 -> 1303 | AI46: 5042
A47: 1303 | L47: 5043 | M47: 但法宝已经枯竭，你后悔没有早点发现它 | O47: 13 | P47: 3 | T47: =IF(R47="","","-"&VLOOKUP(R47,EventConditionConfig!A:C,3,FALSE)&IF(S47="","",CHAR(10)&"-"&VLOOKUP(S47,EventConditionConfig!A:C,3,FALSE))) ->  | AF47: 1 | AG47: =A48 -> 1304 | AI47: 5043
A48: 1304 | L48: 5044 | M48: 最后你从法宝中回收了一些玄晶 | O48: 13 | P48: 4 | T48: =IF(R48="","","-"&VLOOKUP(R48,EventConditionConfig!A:C,3,FALSE)&IF(S48="","",CHAR(10)&"-"&VLOOKUP(S48,EventConditionConfig!A:C,3,FALSE))) ->  | AI48: 5044
T49: =IF(R49="","","-"&VLOOKUP(R49,EventConditionConfig!A:C,3,FALSE)&IF(S49="","",CHAR(10)&"-"&VLOOKUP(S49,EventConditionConfig!A:C,3,FALSE))) -> 
A50: =O50*100+P50 -> 1401 | L50: 5045 | M50: 你路过一座矿山，一个闪光点引起了你的注意 | O50: 14 | P50: =IF(O50=O49,P49+1,1) -> 1 | Q50: =_xlfn.TEXTJOIN(";",1,R50:S50) ->  | T50: =IF(R50="","","-"&VLOOKUP(R50,EventConditionConfig!A:C,3,FALSE)&IF(S50="","",CHAR(10)&"-"&VLOOKUP(S50,EventConditionConfig!A:C,3,FALSE))) ->  | AF50: 1 | AG50: =A51 -> 1402 | AI50: 5045
A51: =O51*100+P51 -> 1402 | L51: 5046 | M51: 原来这是一颗珍贵的绿玛瑙 | O51: 14 | P51: =IF(O51=O50,P50+1,1) -> 2 | T51: =IF(R51="","","-"&VLOOKUP(R51,EventConditionConfig!A:C,3,FALSE)&IF(S51="","",CHAR(10)&"-"&VLOOKUP(S51,EventConditionConfig!A:C,3,FALSE))) ->  | AF51: 1 | AG51: =A52 -> 1403 | AI51: 5046
A52: =O52*100+P52 -> 1403 | L52: 5047 | M52: 你祭出法宝，将它转化成一些灵石 | O52: 14 | P52: =IF(O52=O51,P51+1,1) -> 3 | T52: =IF(R52="","","-"&VLOOKUP(R52,EventConditionConfig!A:C,3,FALSE)&IF(S52="","",CHAR(10)&"-"&VLOOKUP(S52,EventConditionConfig!A:C,3,FALSE))) ->  | AI52: 5047
A54: =O54*100+P54 -> 1501 | L54: 5048 | M54: 漫漫旅途，你通过神识释放增进不少阅历 | O54: 15 | P54: =IF(O54=O53,P53+1,1) -> 1 | Q54: =_xlfn.TEXTJOIN(";",1,R54:S54) ->  | T54: =IF(R54="","","-"&VLOOKUP(R54,EventConditionConfig!A:C,3,FALSE)&IF(S54="","",CHAR(10)&"-"&VLOOKUP(S54,EventConditionConfig!A:C,3,FALSE))) ->  | AF54: 1 | AG54: =A55 -> 1502 | AI54: 5048
A55: =O55*100+P55 -> 1502 | L55: 5049 | M55: 但随之而来的是神识用尽的空虚感 | O55: 15 | P55: =IF(O55=O54,P54+1,1) -> 2 | T55: =IF(R55="","","-"&VLOOKUP(R55,EventConditionConfig!A:C,3,FALSE)&IF(S55="","",CHAR(10)&"-"&VLOOKUP(S55,EventConditionConfig!A:C,3,FALSE))) ->  | AF55: 1 | AG55: =A56 -> 1503 | AI55: 5049
A56: =O56*100+P56 -> 1503 | L56: 5050 | M56: 但这种感受何尝又不是一种新的阅历呢 | O56: 15 | P56: =IF(O56=O55,P55+1,1) -> 3 | T56: =IF(R56="","","-"&VLOOKUP(R56,EventConditionConfig!A:C,3,FALSE)&IF(S56="","",CHAR(10)&"-"&VLOOKUP(S56,EventConditionConfig!A:C,3,FALSE))) ->  | AF56: 1 | AG56: =A57 -> 1504 | AI56: 5050
A57: =O57*100+P57 -> 1504 | L57: 5051 | M57: 你将这些新的感悟存进了一颗神识丹 | O57: 15 | P57: =IF(O57=O56,P56+1,1) -> 4 | Q57: =_xlfn.TEXTJOIN(";",1,R57:S57) ->  | T57: =IF(R57="","","-"&VLOOKUP(R57,EventConditionConfig!A:C,3,FALSE)&IF(S57="","",CHAR(10)&"-"&VLOOKUP(S57,EventConditionConfig!A:C,3,FALSE))) ->  | AI57: 5051
A59: =O59*100+P59 -> 1601 | L59: 5052 | M59: 两只体型硕大的妖兽正在为了一颗灵丹而缠斗 | O59: 16 | P59: =IF(O59=O58,P58+1,1) -> 1 | Q59: =_xlfn.TEXTJOIN(";",1,R59:S59) ->  | T59: =IF(R59="","","-"&VLOOKUP(R59,EventConditionConfig!A:C,3,FALSE)&IF(S59="","",CHAR(10)&"-"&VLOOKUP(S59,EventConditionConfig!A:C,3,FALSE))) ->  | AF59: 1 | AG59: =A60 -> 1602 | AI59: 5052
A60: =O60*100+P60 -> 1602 | L60: 5053 | M60: 突然一道闪电自天而降，正中两只妖兽 | O60: 16 | P60: =IF(O60=O59,P59+1,1) -> 2 | T60: =IF(R60="","","-"&VLOOKUP(R60,EventConditionConfig!A:C,3,FALSE)&IF(S60="","",CHAR(10)&"-"&VLOOKUP(S60,EventConditionConfig!A:C,3,FALSE))) ->  | AF60: 1 | AG60: =A61 -> 1603 | AI60: 5053
A61: =O61*100+P61 -> 1603 | L61: 5054 | M61: 何其悲哉，念完往生咒，你顺手拿走了这颗珍贵的妖丹 | O61: 16 | P61: =IF(O61=O60,P60+1,1) -> 3 | T61: =IF(R61="","","-"&VLOOKUP(R61,EventConditionConfig!A:C,3,FALSE)&IF(S61="","",CHAR(10)&"-"&VLOOKUP(S61,EventConditionConfig!A:C,3,FALSE))) ->  | AI61: 5054
A63: 9003 | L63: 5055 | M63: 你在闭关修炼时，感受到一股凌厉的剑意波动。深入探查，发现一名白衣剑修“清霜”盘坐于谷中，周围剑气环绕，正与一柄散发不祥气息的灵剑对峙。她似在参悟剑诀，却灵气不足，剑灵桀骜。 | T63: =IF(R63="","","-"&VLOOKUP(R63,EventConditionConfig!A:C,3,FALSE)&IF(S63="","",CHAR(10)&"-"&VLOOKUP(S63,EventConditionConfig!A:C,3,FALSE))) ->  | U63: 1 | V63: 9004;9006 | W63: 2041;2042 | AI63: 5055
A64: 9004 | L64: 5056 | M64: 你上前以剑意对抗剑灵 | T64: =IF(R64="","","-"&VLOOKUP(R64,EventConditionConfig!A:C,3,FALSE)&IF(S64="","",CHAR(10)&"-"&VLOOKUP(S64,EventConditionConfig!A:C,3,FALSE))) ->  | U64: 2 | V64: 100001 | AF64: 2 | AG64: 9005;100 | AI64: 5056
A65: 9005 | L65: 5057 | M65: 成功压制剑灵，清霜赠你“霜华剑符”并结下道友之谊 | T65: =IF(R65="","","-"&VLOOKUP(R65,EventConditionConfig!A:C,3,FALSE)&IF(S65="","",CHAR(10)&"-"&VLOOKUP(S65,EventConditionConfig!A:C,3,FALSE))) ->  | AI65: 5057
A66: 9006 | L66: 5058 | M66: 你察觉谷中灵气匮乏，清霜剑意凝滞。神识探查得知，附近秘境可采集“玄冰花” | T66: =IF(R66="","","-"&VLOOKUP(R66,EventConditionConfig!A:C,3,FALSE)&IF(S66="","",CHAR(10)&"-"&VLOOKUP(S66,EventConditionConfig!A:C,3,FALSE))) ->  | AI66: 5058
A67: 9007 | L67: 5059 | M67: 献上玄冰花，清霜炼化灵气突破瓶颈，赠你“玄霜剑意” | T67: =IF(R67="","","-"&VLOOKUP(R67,EventConditionConfig!A:C,3,FALSE)&IF(S67="","",CHAR(10)&"-"&VLOOKUP(S67,EventConditionConfig!A:C,3,FALSE))) ->  | U67: 4 | AF67: 1 | AG67: 9007 | AI67: 5059
A68: 9008 | T68: =IF(R68="","","-"&VLOOKUP(R68,EventConditionConfig!A:C,3,FALSE)&IF(S68="","",CHAR(10)&"-"&VLOOKUP(S68,EventConditionConfig!A:C,3,FALSE))) ->  | U68: 3 | AD68: 1001 | AE68: 999 | AI68: 5059
T69: =IF(R69="","","-"&VLOOKUP(R69,EventConditionConfig!A:C,3,FALSE)&IF(S69="","",CHAR(10)&"-"&VLOOKUP(S69,EventConditionConfig!A:C,3,FALSE))) -> 
A70: 9025 | B70: =IF(C70="","",IF(C70=C69,B69,MAX(AI69,AI68)+1)) ->  | D70: =IF(E70="","",IF(E70=E69,D69,MAX(AI69,AI68,B70)+1)) -> 5060 | E70: 和惠子交谈 | L70: =IF(M70="","",MAX(AI69,AI68,B70,D70)+1) -> 5061 | M70: 惠子种的葫芦没用，他非常生气，需要打败魔休 | T70: =IF(R70="","","-"&VLOOKUP(R70,EventConditionConfig!A:C,3,FALSE)&IF(S70="","",CHAR(10)&"-"&VLOOKUP(S70,EventConditionConfig!A:C,3,FALSE))) ->  | U70: 1 | V70: 9026 | W70: 2075 | X70: =IF(OR(ISNUMBER(Y70),Y70=""),"",MAX(AI69,AI68,B70,D70,L70)+1) ->  | AA70: =IF(OR(ISNUMBER(AB70),AB70=""),"",X70+1) ->  | AI70: =IF(A70="","",MAX(B70,D70,L70,X70,AA70,AI69,AI68)) -> 5061
A71: 9026 | L71: 5062 | M71: 选择后接新的事件 | T71: =IF(R71="","","-"&VLOOKUP(R71,EventConditionConfig!A:C,3,FALSE)&IF(S71="","",CHAR(10)&"-"&VLOOKUP(S71,EventConditionConfig!A:C,3,FALSE))) ->  | X71: 5063 | Y71: 接受任务 | AF71: 3 | AG71: 9014 | AI71: 5063
T72: =IF(R72="","","-"&VLOOKUP(R72,EventConditionConfig!A:C,3,FALSE)&IF(S72="","",CHAR(10)&"-"&VLOOKUP(S72,EventConditionConfig!A:C,3,FALSE))) -> 
A73: 9014 | D73: 5064 | E73: 击杀魔休 | Q73: 3 | R73: 3 | T73: =IF(R73="","","-"&VLOOKUP(R73,EventConditionConfig!A:C,3,FALSE)&IF(S73="","",CHAR(10)&"-"&VLOOKUP(S73,EventConditionConfig!A:C,3,FALSE))) -> -击杀魔休 | AI73: 5064
Q74: =_xlfn.TEXTJOIN(";",1,R74:S74) ->  | T74: =IF(R74="","","-"&VLOOKUP(R74,EventConditionConfig!A:C,3,FALSE)&IF(S74="","",CHAR(10)&"-"&VLOOKUP(S74,EventConditionConfig!A:C,3,FALSE))) -> 
A75: 9031 | B75: 5065 | C75: 出现Boss魔修 | D75: 5066 | E75: 打败魔修 | T75: =IF(R75="","","-"&VLOOKUP(R75,EventConditionConfig!A:C,3,FALSE)&IF(S75="","",CHAR(10)&"-"&VLOOKUP(S75,EventConditionConfig!A:C,3,FALSE))) ->  | U75: 2 | V75: 100001 | AI75: 5066
T76: =IF(R76="","","-"&VLOOKUP(R76,EventConditionConfig!A:C,3,FALSE)&IF(S76="","",CHAR(10)&"-"&VLOOKUP(S76,EventConditionConfig!A:C,3,FALSE))) -> 
A77: =O77*100+P77 -> 1000101 | B77: 5067 | C77: 使用风铃唤醒还未泯灭的神识 | L77: 5068 | M77: 北冥有鱼，其名为鲲…… | N77: 2 | O77: 10001 | P77: =IF(O77=O76,P76+1,1) -> 1 | T77: =IF(R77="","","-"&VLOOKUP(R77,EventConditionConfig!A:C,3,FALSE)&IF(S77="","",CHAR(10)&"-"&VLOOKUP(S77,EventConditionConfig!A:C,3,FALSE))) ->  | AF77: =IF(A77="","",IF(U77=1,"",IF(A78="",3,1))) -> 1 | AG77: =IF(AF77=1,A78,IF(AF77=3,LEFT(A77,5)+1,"")) -> 1000102 | AI77: 5068
A78: =O78*100+P78 -> 1000102 | B78: 5067 | C78: 使用风铃唤醒还未泯灭的神识 | L78: 5069 | M78: 不过北海遥远，何时能寻得鲲鹏的踪迹。 | N78: 2 | O78: 10001 | P78: =IF(O78=O77,P77+1,1) -> 2 | T78: =IF(R78="","","-"&VLOOKUP(R78,EventConditionConfig!A:C,3,FALSE)&IF(S78="","",CHAR(10)&"-"&VLOOKUP(S78,EventConditionConfig!A:C,3,FALSE))) ->  | AF78: =IF(A78="","",IF(U78=1,"",IF(A79="",3,1))) -> 1 | AG78: =IF(AF78=1,A79,IF(AF78=3,LEFT(A78,5)+1,"")) -> 1000103 | AI78: 5069
A79: =O79*100+P79 -> 1000103 | B79: 5067 | C79: 使用风铃唤醒还未泯灭的神识 | L79: 5070 | M79: 好在我的神识尚在，可探天地，再加上刚刚的风铃，或许能寻得前路线索。 | N79: 2 | O79: 10001 | P79: 3 | T79: =IF(R79="","","-"&VLOOKUP(R79,EventConditionConfig!A:C,3,FALSE)&IF(S79="","",CHAR(10)&"-"&VLOOKUP(S79,EventConditionConfig!A:C,3,FALSE))) ->  | AF79: 1 | AG79: 1000104 | AI79: 5070
A80: =O80*100+P80 -> 1000104 | B80: 5067 | C80: 使用风铃唤醒还未泯灭的神识 | O80: 10001 | P80: 4 | Q80: 5 | R80: 5 | T80: =IF(R80="","","-"&VLOOKUP(R80,EventConditionConfig!A:C,3,FALSE)&IF(S80="","",CHAR(10)&"-"&VLOOKUP(S80,EventConditionConfig!A:C,3,FALSE))) -> -使用神识 | AF80: 3 | AG80: 10002 | AI80: 5070
T81: =IF(R81="","","-"&VLOOKUP(R81,EventConditionConfig!A:C,3,FALSE)&IF(S81="","",CHAR(10)&"-"&VLOOKUP(S81,EventConditionConfig!A:C,3,FALSE))) -> 
A82: =O82*100+P82 -> 1000201 | B82: 5071 | C82: 前往妖兽盘踞的地方 | D82: 5072 | E82: 御剑飞行 | L82: 5073 | M82: 神识发现有一条古径，隐于云山之间，不过似乎有妖兽盘踞。 | N82: 3 | O82: 10002 | P82: 1 | T82: =IF(R82="","","-"&VLOOKUP(R82,EventConditionConfig!A:C,3,FALSE)&IF(S82="","",CHAR(10)&"-"&VLOOKUP(S82,EventConditionConfig!A:C,3,FALSE))) ->  | AF82: 1 | AG82: =IF(AF82=1,A83,IF(AF82=3,LEFT(A82,5)+1,"")) -> 1000202 | AI82: 5073
A83: =O83*100+P83 -> 1000202 | B83: 5071 | C83: 前往妖兽盘踞的地方 | D83: 5072 | E83: 御剑飞行 | L83: 5074 | M83: 没其他办法了，过去看看吧。 | N83: 3 | O83: 10002 | P83: 2 | T83: =IF(R83="","","-"&VLOOKUP(R83,EventConditionConfig!A:C,3,FALSE)&IF(S83="","",CHAR(10)&"-"&VLOOKUP(S83,EventConditionConfig!A:C,3,FALSE))) ->  | AF83: 1 | AG83: 1000203 | AI83: 5074
A84: =O84*100+P84 -> 1000203 | B84: 5071 | C84: 前往妖兽盘踞的地方 | D84: 5072 | E84: 御剑飞行 | G84: 1 | H84: 1 | O84: 10002 | P84: 3 | T84: =IF(R84="","","-"&VLOOKUP(R84,EventConditionConfig!A:C,3,FALSE)&IF(S84="","",CHAR(10)&"-"&VLOOKUP(S84,EventConditionConfig!A:C,3,FALSE))) ->  | AF84: 3 | AG84: 10003 | AI84: 5074
T85: =IF(R85="","","-"&VLOOKUP(R85,EventConditionConfig!A:C,3,FALSE)&IF(S85="","",CHAR(10)&"-"&VLOOKUP(S85,EventConditionConfig!A:C,3,FALSE))) -> 
A86: 1000301 | B86: 5075 | C86: 蜩鸟和小麻雀对你的到来很好奇 | K86: =IF(J86="","",VLOOKUP(J86,EventNPC!A:E,5,FALSE)) ->  | L86: 5076 | M86: 应该就是这里了，似乎有古老的阵法挡住了去路 | O86: 10003 | P86: 1 | T86: =IF(R86="","","-"&VLOOKUP(R86,EventConditionConfig!A:C,3,FALSE)&IF(S86="","",CHAR(10)&"-"&VLOOKUP(S86,EventConditionConfig!A:C,3,FALSE))) ->  | AF86: 1 | AG86: 1000302 | AI86: 5076
A87: =O87*100+P87 -> 1000302 | B87: 5075 | C87: 蜩鸟和小麻雀对你的到来很好奇 | K87: =IF(J87="","",VLOOKUP(J87,EventNPC!A:E,5,FALSE)) ->  | L87: 5077 | M87: （结界门前，三只小鸟飞来，落在一旁古松上） | O87: 10003 | P87: 2 | T87: =IF(R87="","","-"&VLOOKUP(R87,EventConditionConfig!A:C,3,FALSE)&IF(S87="","",CHAR(10)&"-"&VLOOKUP(S87,EventConditionConfig!A:C,3,FALSE))) ->  | AF87: 1 | AG87: 1000303 | AI87: 5077
A88: =O88*100+P88 -> 1000303 | B88: 5075 | C88: 蜩鸟和小麻雀对你的到来很好奇 | J88: 101 | K88: =IF(J88="","",VLOOKUP(J88,EventNPC!A:E,5,FALSE)) -> 蜩鸟 | L88: 5078 | M88: （拍翅）：“咦？又是妄图穿行北海之人？” | O88: 10003 | P88: =IF(O88=O87,P87+1,1) -> 3 | T88: =IF(R88="","","-"&VLOOKUP(R88,EventConditionConfig!A:C,3,FALSE)&IF(S88="","",CHAR(10)&"-"&VLOOKUP(S88,EventConditionConfig!A:C,3,FALSE))) ->  | U88: 1 | V88: =A89 -> 1000304 | W88: =_xlfn.TEXTJOIN(";",1,X88,AA88) -> 5079 | X88: 5079 | Y88: 我在寻找鲲鹏，你们知道它在哪里吗？ | AI88: 5079
A89: =O89*100+P89 -> 1000304 | B89: 5075 | C89: 蜩鸟和小麻雀对你的到来很好奇 | J89: 102 | K89: =IF(J89="","",VLOOKUP(J89,EventNPC!A:E,5,FALSE)) -> 小麻雀 | L89: 5080 | M89: （扑棱翅膀）是想要从北海飞往南海的超级大鸟吧？ | O89: 10003 | P89: =IF(O89=O88,P88+1,1) -> 4 | T89: =IF(R89="","","-"&VLOOKUP(R89,EventConditionConfig!A:C,3,FALSE)&IF(S89="","",CHAR(10)&"-"&VLOOKUP(S89,EventConditionConfig!A:C,3,FALSE))) ->  | AF89: 1 | AG89: 1000305 | AI89: 5080
A90: =O90*100+P90 -> 1000305 | B90: 5075 | C90: 蜩鸟和小麻雀对你的到来很好奇 | J90: 102 | K90: =IF(J90="","",VLOOKUP(J90,EventNPC!A:E,5,FALSE)) -> 小麻雀 | L90: 5081 | M90: 我就想不明白，她为何要飞如此之远，太奇怪啦！ | O90: 10003 | P90: =IF(O90=O89,P89+1,1) -> 5 | T90: =IF(R90="","","-"&VLOOKUP(R90,EventConditionConfig!A:C,3,FALSE)&IF(S90="","",CHAR(10)&"-"&VLOOKUP(S90,EventConditionConfig!A:C,3,FALSE))) ->  | U90: 1 | V90: =A91 -> 1000306 | W90: 5082 | X90: 5082 | Y90: 鲲鹏是在追求心中的目标吧。 | AI90: 5082
A91: =O91*100+P91 -> 1000306 | B91: 5075 | C91: 蜩鸟和小麻雀对你的到来很好奇 | J91: 102 | K91: =IF(J91="","",VLOOKUP(J91,EventNPC!A:E,5,FALSE)) -> 小麻雀 | L91: 5083 | M91: （偏头想了想）目标？我天天在这里上蹿下跳，在附近树林飞来飞去，就已经很幸福啦。 | O91: 10003 | P91: =IF(O91=O90,P90+1,1) -> 6 | T91: =IF(R91="","","-"&VLOOKUP(R91,EventConditionConfig!A:C,3,FALSE)&IF(S91="","",CHAR(10)&"-"&VLOOKUP(S91,EventConditionConfig!A:C,3,FALSE))) ->  | AF91: 1 | AG91: 1000307 | AI91: 5083
A92: =O92*100+P92 -> 1000307 | B92: 5075 | C92: 蜩鸟和小麻雀对你的到来很好奇 | J92: 102 | K92: =IF(J92="","",VLOOKUP(J92,EventNPC!A:E,5,FALSE)) -> 小麻雀 | L92: 5084 | M92: 就那大傻鸟，非要飞那么远，又笨又蠢...真没意思。 | O92: 10003 | P92: =IF(O92=O91,P91+1,1) -> 7 | T92: =IF(R92="","","-"&VLOOKUP(R92,EventConditionConfig!A:C,3,FALSE)&IF(S92="","",CHAR(10)&"-"&VLOOKUP(S92,EventConditionConfig!A:C,3,FALSE))) ->  | U92: 1 | V92: =IF(U92=1,_xlfn.TEXTJOIN(";",1,IF(Z92="",A92+1,Z92),IF(AND(AA92<>"",AC92=""),A92+1,AC92)),IF(U92=2,Y92,"")) -> 1000308;1000308 | W92: 5085;5086 | X92: 5085 | Y92: 你说得也有一定道理… | AA92: 5086 | AB92: 你懂什么..这大鹏鸟可比你更有志向多了。 | AI92: 5086
A93: =O93*100+P93 -> 1000308 | B93: 5075 | C93: 蜩鸟和小麻雀对你的到来很好奇 | J93: 101 | K93: =IF(J93="","",VLOOKUP(J93,EventNPC!A:E,5,FALSE)) -> 蜩鸟 | L93: 5087 | M93: （翻飞一圈）志向有什么用？到头来还不是风停了就落地。 | O93: 10003 | P93: =IF(O93=O92,P92+1,1) -> 8 | T93: =IF(R93="","","-"&VLOOKUP(R93,EventConditionConfig!A:C,3,FALSE)&IF(S93="","",CHAR(10)&"-"&VLOOKUP(S93,EventConditionConfig!A:C,3,FALSE))) ->  | U93: 1 | V93: =A94 -> 1000309 | W93: 5088 | X93: 5088 | Y93: ...... | AI93: 5088
A94: =O94*100+P94 -> 1000309 | B94: 5075 | C94: 蜩鸟和小麻雀对你的到来很好奇 | K94: =IF(J94="","",VLOOKUP(J94,EventNPC!A:E,5,FALSE)) ->  | L94: 5089 | M94: （此时，结界微动，一缕风穿林而过，古径阵法竟有一丝松动） | O94: 10003 | P94: =IF(O94=O93,P93+1,1) -> 9 | T94: =IF(R94="","","-"&VLOOKUP(R94,EventConditionConfig!A:C,3,FALSE)&IF(S94="","",CHAR(10)&"-"&VLOOKUP(S94,EventConditionConfig!A:C,3,FALSE))) ->  | AF94: 3 | AG94: 10004 | AI94: 5089
T95: =IF(R95="","","-"&VLOOKUP(R95,EventConditionConfig!A:C,3,FALSE)&IF(S95="","",CHAR(10)&"-"&VLOOKUP(S95,EventConditionConfig!A:C,3,FALSE))) -> 
A96: =O96*100+P96 -> 1000401 | B96: 5090 | C96: 原来它们就是镇守阵法的结界兽 | D96: 5091 | E96: 击败结界兽 | J96: 101 | K96: =IF(J96="","",VLOOKUP(J96,EventNPC!A:E,5,FALSE)) -> 蜩鸟 | L96: 5092 | M96: 这结界似乎有所反应… | O96: 10004 | P96: =IF(O96=O95,P95+1,1) -> 1 | T96: =IF(R96="","","-"&VLOOKUP(R96,EventConditionConfig!A:C,3,FALSE)&IF(S96="","",CHAR(10)&"-"&VLOOKUP(S96,EventConditionConfig!A:C,3,FALSE))) ->  | U96: 1 | V96: =A97 -> 1000402 | W96: =_xlfn.TEXTJOIN(";",1,X96,AA96) -> 5093 | X96: 5093 | Y96: 与你们聊天很有意思，不过今天我是非过去不可，没人能阻止我重返仙途！ | AI96: 5093
A97: =O97*100+P97 -> 1000402 | B97: 5090 | C97: 原来它们就是镇守阵法的结界兽 | D97: 5091 | E97: 击败结界兽 | J97: 102 | K97: =IF(J97="","",VLOOKUP(J97,EventNPC!A:E,5,FALSE)) -> 小麻雀 | L97: 5094 | M97: "小鸟.."现身吧！ | O97: 10004 | P97: =IF(O97=O96,P96+1,1) -> 2 | T97: =IF(R97="","","-"&VLOOKUP(R97,EventConditionConfig!A:C,3,FALSE)&IF(S97="","",CHAR(10)&"-"&VLOOKUP(S97,EventConditionConfig!A:C,3,FALSE))) ->  | W97: =_xlfn.TEXTJOIN(";",1,X97,AA97) ->  | AF97: =IF(A97="","",IF(U97=1,"",IF(A98="",3,1))) -> 1 | AG97: =IF(AF97=1,A98,IF(AF97=3,LEFT(A97,5)+1,"")) -> 1000403 | AI97: 5094
A98: =O98*100+P98 -> 1000403 | B98: 5090 | C98: 原来它们就是镇守阵法的结界兽 | D98: 5091 | E98: 击败结界兽 | J98: 101 | K98: =IF(J98="","",VLOOKUP(J98,EventNPC!A:E,5,FALSE)) -> 蜩鸟 | L98: 5095 | M98: （轻轻飞下来..）又来...来吧来吧.. | O98: 10004 | P98: =IF(O98=O97,P97+1,1) -> 3 | T98: =IF(R98="","","-"&VLOOKUP(R98,EventConditionConfig!A:C,3,FALSE)&IF(S98="","",CHAR(10)&"-"&VLOOKUP(S98,EventConditionConfig!A:C,3,FALSE))) ->  | U98: 2 | V98: 100001 | W98: =_xlfn.TEXTJOIN(";",1,X98,AA98) ->  | AF98: 2 | AG98: 1000404;101 | AI98: 5095
A99: =O99*100+P99 -> 1000404 | B99: 5090 | C99: 原来它们就是镇守阵法的结界兽 | J99: 102 | K99: =IF(J99="","",VLOOKUP(J99,EventNPC!A:E,5,FALSE)) -> 小麻雀 | L99: 5096 | M99: 这么想过去，就去吧... | O99: 10004 | P99: =IF(O99=O98,P98+1,1) -> 4 | T99: =IF(R99="","","-"&VLOOKUP(R99,EventConditionConfig!A:C,3,FALSE)&IF(S99="","",CHAR(10)&"-"&VLOOKUP(S99,EventConditionConfig!A:C,3,FALSE))) ->  | W99: =_xlfn.TEXTJOIN(";",1,X99,AA99) ->  | AF99: =IF(A99="","",IF(U99=1,"",IF(A100="",3,1))) -> 3 | AG99: =IF(AF99=1,A100,IF(AF99=3,LEFT(A99,5)+1,"")) -> 10005 | AI99: 5096
T100: =IF(R100="","","-"&VLOOKUP(R100,EventConditionConfig!A:C,3,FALSE)&IF(S100="","",CHAR(10)&"-"&VLOOKUP(S100,EventConditionConfig!A:C,3,FALSE))) -> 
A101: =O101*100+P101 -> 1000501 | B101: 5097 | C101: 初见疯道人 | K101: =IF(J101="","",VLOOKUP(J101,EventNPC!A:E,5,FALSE)) ->  | L101: 5098 | M101: 你穿过古径结界，来到一片被风托起的浮空灵岛群。 | O101: 10005 | P101: =IF(O101=O100,P100+1,1) -> 1 | T101: =IF(R101="","","-"&VLOOKUP(R101,EventConditionConfig!A:C,3,FALSE)&IF(S101="","",CHAR(10)&"-"&VLOOKUP(S101,EventConditionConfig!A:C,3,FALSE))) ->  | W101: =_xlfn.TEXTJOIN(";",1,X101,AA101) ->  | AF101: =IF(A101="","",IF(U101=1,"",IF(A102="",3,1))) -> 1 | AG101: =IF(AF101=1,A102,IF(AF101=3,LEFT(A101,5)+1,"")) -> 1000502 | AI101: 5098
A102: =O102*100+P102 -> 1000502 | B102: 5097 | C102: 初见疯道人 | K102: =IF(J102="","",VLOOKUP(J102,EventNPC!A:E,5,FALSE)) ->  | L102: 5099 | M102: 风势强劲，岛与岛之间缝隙深不见底，无桥无梯。 | O102: 10005 | P102: =IF(O102=O101,P101+1,1) -> 2 | T102: =IF(R102="","","-"&VLOOKUP(R102,EventConditionConfig!A:C,3,FALSE)&IF(S102="","",CHAR(10)&"-"&VLOOKUP(S102,EventConditionConfig!A:C,3,FALSE))) ->  | AF102: =IF(A102="","",IF(U102=1,"",IF(A103="",3,1))) -> 1 | AG102: =IF(AF102=1,A103,IF(AF102=3,LEFT(A102,5)+1,"")) -> 1000503 | AI102: 5099
A103: =O103*100+P103 -> 1000503 | B103: 5097 | C103: 初见疯道人 | K103: =IF(J103="","",VLOOKUP(J103,EventNPC!A:E,5,FALSE)) ->  | L103: 5100 | M103: 此处盘踞一位神秘道人，常独自站在岛边望风，仿佛等待什么。 | O103: 10005 | P103: =IF(O103=O102,P102+1,1) -> 3 | T103: =IF(R103="","","-"&VLOOKUP(R103,EventConditionConfig!A:C,3,FALSE)&IF(S103="","",CHAR(10)&"-"&VLOOKUP(S103,EventConditionConfig!A:C,3,FALSE))) ->  | AF103: =IF(A103="","",IF(U103=1,"",IF(A104="",3,1))) -> 1 | AG103: =IF(AF103=1,A104,IF(AF103=3,LEFT(A103,5)+1,"")) -> 1000504 | AI103: 5100
A104: =O104*100+P104 -> 1000504 | B104: 5097 | C104: 初见疯道人 | K104: =IF(J104="","",VLOOKUP(J104,EventNPC!A:E,5,FALSE)) ->  | L104: 5101 | M104: （你尝试御剑，却在风中打转，被吹回原地） | O104: 10005 | P104: =IF(O104=O103,P103+1,1) -> 4 | T104: =IF(R104="","","-"&VLOOKUP(R104,EventConditionConfig!A:C,3,FALSE)&IF(S104="","",CHAR(10)&"-"&VLOOKUP(S104,EventConditionConfig!A:C,3,FALSE))) ->  | U104: 1 | V104: =A105 -> 1000505 | W104: 5102 | X104: 5102 | Y104: 前辈，这里的风太大，我无法飞行，请教如何才能通过？ | AF104: =IF(A104="","",IF(U104=1,"",IF(A105="",3,1))) ->  | AG104: =IF(AF104=1,A105,IF(AF104=3,LEFT(A104,5)+1,"")) ->  | AI104: 5102
A105: 1000505 | B105: 5097 | C105: 初见疯道人 | J105: 103 | K105: =IF(J105="","",VLOOKUP(J105,EventNPC!A:E,5,FALSE)) -> 疯道人 | L105: 5103 | M105: ...... | O105: 10005 | P105: 5 | T105: =IF(R105="","","-"&VLOOKUP(R105,EventConditionConfig!A:C,3,FALSE)&IF(S105="","",CHAR(10)&"-"&VLOOKUP(S105,EventConditionConfig!A:C,3,FALSE))) ->  | U105: 1 | V105: =A106 -> 1000506 | W105: 5104 | X105: 5104 | Y105: 前辈，我准备前往北海深处，寻鲲鹏。 | AI105: 5104
A106: 1000506 | B106: 5097 | C106: 初见疯道人 | J106: 103 | K106: =IF(J106="","",VLOOKUP(J106,EventNPC!A:E,5,FALSE)) -> 疯道人 | L106: 5105 | M106: 鲲鹏？……世间竟还有人记得它。 | O106: 10005 | P106: 6 | T106: =IF(R106="","","-"&VLOOKUP(R106,EventConditionConfig!A:C,3,FALSE)&IF(S106="","",CHAR(10)&"-"&VLOOKUP(S106,EventConditionConfig!A:C,3,FALSE))) ->  | AF106: 1 | AG106: 1000507 | AI106: 5105
A107: =O107*100+P107 -> 1000507 | B107: 5097 | C107: 初见疯道人 | J107: 103 | K107: =IF(J107="","",VLOOKUP(J107,EventNPC!A:E,5,FALSE)) -> 疯道人 | L107: 5106 | M107: （说着从手中掏出一个碎片，往空中一震，瞬间风停）过来吧。 | O107: 10005 | P107: =IF(O107=O106,P106+1,1) -> 7 | T107: =IF(R107="","","-"&VLOOKUP(R107,EventConditionConfig!A:C,3,FALSE)&IF(S107="","",CHAR(10)&"-"&VLOOKUP(S107,EventConditionConfig!A:C,3,FALSE))) ->  | AF107: =IF(A107="","",IF(U107=1,"",IF(A108="",3,1))) -> 1 | AG107: =IF(AF107=1,A108,IF(AF107=3,LEFT(A107,5)+1,"")) -> 1000508 | AI107: 5106
A108: =O108*100+P108 -> 1000508 | B108: 5097 | C108: 初见疯道人 | J108: 103 | K108: =IF(J108="","",VLOOKUP(J108,EventNPC!A:E,5,FALSE)) -> 疯道人 | L108: 5107 | M108: 说吧，为何寻那鲲鹏？ | O108: 10005 | P108: =IF(O108=O107,P107+1,1) -> 8 | T108: =IF(R108="","","-"&VLOOKUP(R108,EventConditionConfig!A:C,3,FALSE)&IF(S108="","",CHAR(10)&"-"&VLOOKUP(S108,EventConditionConfig!A:C,3,FALSE))) ->  | U108: 1 | V108: =IF(U108=1,_xlfn.TEXTJOIN(";",1,IF(Z108="",A108+1,Z108),IF(AND(AA108<>"",AC108=""),A108+1,AC108)),IF(U108=2,Y108,"")) -> 1000509;1000509 | W108: 5108;5109 | X108: 5108 | Y108: 冲虚真人让我去的 | AA108: 5109 | AB108: 我只是好奇.. | AF108: =IF(A108="","",IF(U108=1,"",IF(A109="",3,1))) ->  | AG108: =IF(AF108=1,A109,IF(AF108=3,LEFT(A108,5)+1,"")) ->  | AI108: 5109
A109: 1000509 | B109: 5097 | C109: 初见疯道人 | J109: 103 | K109: =IF(J109="","",VLOOKUP(J109,EventNPC!A:E,5,FALSE)) -> 疯道人 | L109: 5110 | M109: 你可知鹏飞九万里，需凭借龙卷风，才可达成？ | O109: 10005 | P109: 9 | T109: =IF(R109="","","-"&VLOOKUP(R109,EventConditionConfig!A:C,3,FALSE)&IF(S109="","",CHAR(10)&"-"&VLOOKUP(S109,EventConditionConfig!A:C,3,FALSE))) ->  | U109: 1 | V109: =A110 -> 1000510 | W109: 5111 | X109: 5111 | Y109: 请前辈赐教...... | AI109: 5111
A110: 1000510 | B110: 5097 | C110: 初见疯道人 | J110: 103 | K110: =IF(J110="","",VLOOKUP(J110,EventNPC!A:E,5,FALSE)) -> 疯道人 | L110: 5112 | M110: 看你修为尚浅，跟你说多了也无用。 | O110: 10005 | P110: 10 | T110: =IF(R110="","","-"&VLOOKUP(R110,EventConditionConfig!A:C,3,FALSE)&IF(S110="","",CHAR(10)&"-"&VLOOKUP(S110,EventConditionConfig!A:C,3,FALSE))) ->  | AF110: 1 | AG110: 1000511 | AI110: 5112
A111: =O111*100+P111 -> 1000511 | B111: 5097 | C111: 初见疯道人 | J111: 103 | K111: =IF(J111="","",VLOOKUP(J111,EventNPC!A:E,5,FALSE)) -> 疯道人 | L111: 5113 | M111: 再往前是我师弟的洞府了，他可不好说话。 | O111: 10005 | P111: =IF(O111=O110,P110+1,1) -> 11 | T111: =IF(R111="","","-"&VLOOKUP(R111,EventConditionConfig!A:C,3,FALSE)&IF(S111="","",CHAR(10)&"-"&VLOOKUP(S111,EventConditionConfig!A:C,3,FALSE))) ->  | AF111: =IF(A111="","",IF(U111=1,"",IF(A112="",3,1))) -> 1 | AG111: =IF(AF111=1,A112,IF(AF111=3,LEFT(A111,5)+1,"")) -> 1000512 | AI111: 5113
A112: =O112*100+P112 -> 1000512 | B112: 5097 | C112: 初见疯道人 | J112: 103 | K112: =IF(J112="","",VLOOKUP(J112,EventNPC!A:E,5,FALSE)) -> 疯道人 | L112: 5114 | M112: 就在我这附近好好修炼吧，至少提升至筑基修为。 | O112: 10005 | P112: =IF(O112=O111,P111+1,1) -> 12 | T112: =IF(R112="","","-"&VLOOKUP(R112,EventConditionConfig!A:C,3,FALSE)&IF(S112="","",CHAR(10)&"-"&VLOOKUP(S112,EventConditionConfig!A:C,3,FALSE))) ->  | U112: 1 | V112: =A113 -> 1000513 | W112: 5115 | X112: 5115 | Y112: 前辈为何如此助我？ | AF112: =IF(A112="","",IF(U112=1,"",IF(A113="",3,1))) ->  | AG112: =IF(AF112=1,A113,IF(AF112=3,LEFT(A112,5)+1,"")) ->  | AI112: 5115
A113: 1000513 | B113: 5097 | C113: 初见疯道人 | J113: 103 | K113: =IF(J113="","",VLOOKUP(J113,EventNPC!A:E,5,FALSE)) -> 疯道人 | L113: 5116 | M113: （疯道人望你一眼，没有回答，但丢过来一本功法）修到[筑基-中期]再来找我。 | O113: 10005 | P113: 13 | T113: =IF(R113="","","-"&VLOOKUP(R113,EventConditionConfig!A:C,3,FALSE)&IF(S113="","",CHAR(10)&"-"&VLOOKUP(S113,EventConditionConfig!A:C,3,FALSE))) ->  | AF113: 1 | AG113: 1000514 | AI113: 5116
A114: =O114*100+P114 -> 1000514 | B114: 5097 | C114: 初见疯道人 | K114: =IF(J114="","",VLOOKUP(J114,EventNPC!A:E,5,FALSE)) ->  | O114: 10005 | P114: =IF(O114=O113,P113+1,1) -> 14 | Q114: 2 | R114: 2 | T114: =IF(R114="","","-"&VLOOKUP(R114,EventConditionConfig!A:C,3,FALSE)&IF(S114="","",CHAR(10)&"-"&VLOOKUP(S114,EventConditionConfig!A:C,3,FALSE))) -> -达到境界：练气-中期 | AF114: =IF(A114="","",IF(U114=1,"",IF(A115="",3,1))) -> 3 | AG114: =IF(AF114=1,A115,IF(AF114=3,LEFT(A114,5)+1,"")) -> 10006 | AI114: 5116
T115: =IF(R115="","","-"&VLOOKUP(R115,EventConditionConfig!A:C,3,FALSE)&IF(S115="","",CHAR(10)&"-"&VLOOKUP(S115,EventConditionConfig!A:C,3,FALSE))) -> 
A116: =O116*100+P116 -> 1000601 | B116: 5117 | C116: 疯道人赠与一半风灵珠 | J116: 103 | K116: =IF(J116="","",VLOOKUP(J116,EventNPC!A:E,5,FALSE)) -> 疯道人 | L116: 5118 | M116: 你已突破筑基前期达到中期，灵力通畅，是时候去会一会我的师弟了。 | O116: 10006 | P116: =IF(O116=O115,P115+1,1) -> 1 | T116: =IF(R116="","","-"&VLOOKUP(R116,EventConditionConfig!A:C,3,FALSE)&IF(S116="","",CHAR(10)&"-"&VLOOKUP(S116,EventConditionConfig!A:C,3,FALSE))) ->  | U116: 1 | V116: 1000603;1000602 | W116: =_xlfn.TEXTJOIN(";",1,X116,AA116) -> 5119;5120 | X116: 5119 | Y116: 是的。鲲鹏之行，志在必达。 | AA116: 5120 | AB116: 看看风的尽头到底有什么。 | AF116: =IF(A116="","",IF(U116=1,"",IF(A117="",3,1))) ->  | AG116: =IF(AF116=1,A117,IF(AF116=3,LEFT(A116,5)+1,"")) ->  | AI116: 5120
A117: =O117*100+P117 -> 1000602 | B117: 5117 | C117: 疯道人赠与一半风灵珠 | J117: 103 | K117: =IF(J117="","",VLOOKUP(J117,EventNPC!A:E,5,FALSE)) -> 疯道人 | L117: 5121 | M117: （轻轻一笑）你说风的尽头……我也曾想看。 （他望向远处翻涌的云海） | O117: 10006 | P117: =IF(O117=O116,P116+1,1) -> 2 | T117: =IF(R117="","","-"&VLOOKUP(R117,EventConditionConfig!A:C,3,FALSE)&IF(S117="","",CHAR(10)&"-"&VLOOKUP(S117,EventConditionConfig!A:C,3,FALSE))) ->  | U117: 1 | V117: =A118 -> 1000603 | W117: 2140 | X117: 5122 | Y117: 是的。鲲鹏之行，志在必达。 | AF117: =IF(A117="","",IF(U117=1,"",IF(A118="",3,1))) ->  | AG117: =IF(AF117=1,A118,IF(AF117=3,LEFT(A117,5)+1,"")) ->  | AI117: 5122
A118: =O118*100+P118 -> 1000603 | B118: 5117 | C118: 疯道人赠与一半风灵珠 | J118: 103 | K118: =IF(J118="","",VLOOKUP(J118,EventNPC!A:E,5,FALSE)) -> 疯道人 | L118: 5123 | M118: 我和师弟，共守这处风眼多年。我想出去，他却偏要留。 | O118: 10006 | P118: =IF(O118=O117,P117+1,1) -> 3 | T118: =IF(R118="","","-"&VLOOKUP(R118,EventConditionConfig!A:C,3,FALSE)&IF(S118="","",CHAR(10)&"-"&VLOOKUP(S118,EventConditionConfig!A:C,3,FALSE))) ->  | AF118: =IF(A118="","",IF(U118=1,"",IF(A119="",3,1))) -> 1 | AG118: =IF(AF118=1,A119,IF(AF118=3,LEFT(A118,5)+1,"")) -> 1000604 | AI118: 5123
A119: =O119*100+P119 -> 1000604 | B119: 5117 | C119: 疯道人赠与一半风灵珠 | J119: 103 | K119: =IF(J119="","",VLOOKUP(J119,EventNPC!A:E,5,FALSE)) -> 疯道人 | L119: 5124 | M119: 风灵珠碎成两半，一半在我这里，另一半……在他洞府中。 | O119: 10006 | P119: =IF(O119=O118,P118+1,1) -> 4 | T119: =IF(R119="","","-"&VLOOKUP(R119,EventConditionConfig!A:C,3,FALSE)&IF(S119="","",CHAR(10)&"-"&VLOOKUP(S119,EventConditionConfig!A:C,3,FALSE))) ->  | AF119: =IF(A119="","",IF(U119=1,"",IF(A120="",3,1))) -> 1 | AG119: =IF(AF119=1,A120,IF(AF119=3,LEFT(A119,5)+1,"")) -> 1000605 | AI119: 5124
A120: =O120*100+P120 -> 1000605 | B120: 5117 | C120: 疯道人赠与一半风灵珠 | J120: 103 | K120: =IF(J120="","",VLOOKUP(J120,EventNPC!A:E,5,FALSE)) -> 疯道人 | L120: 5125 | M120: 你若想见鲲鹏，必须要集齐整个风灵珠。 | O120: 10006 | P120: =IF(O120=O119,P119+1,1) -> 5 | T120: =IF(R120="","","-"&VLOOKUP(R120,EventConditionConfig!A:C,3,FALSE)&IF(S120="","",CHAR(10)&"-"&VLOOKUP(S120,EventConditionConfig!A:C,3,FALSE))) ->  | AF120: =IF(A120="","",IF(U120=1,"",IF(A121="",3,1))) -> 1 | AG120: =IF(AF120=1,A121,IF(AF120=3,LEFT(A120,5)+1,"")) -> 1000606 | AI120: 5125
A121: =O121*100+P121 -> 1000606 | B121: 5117 | C121: 疯道人赠与一半风灵珠 | J121: 103 | K121: =IF(J121="","",VLOOKUP(J121,EventNPC!A:E,5,FALSE)) -> 疯道人 | L121: 5126 | M121: 我这一半给你，可助你在大风中，来去自如。 | O121: 10006 | P121: =IF(O121=O120,P120+1,1) -> 6 | T121: =IF(R121="","","-"&VLOOKUP(R121,EventConditionConfig!A:C,3,FALSE)&IF(S121="","",CHAR(10)&"-"&VLOOKUP(S121,EventConditionConfig!A:C,3,FALSE))) ->  | AF121: =IF(A121="","",IF(U121=1,"",IF(A122="",3,1))) -> 3 | AG121: =IF(AF121=1,A122,IF(AF121=3,LEFT(A121,5)+1,"")) -> 10007 | AI121: 5126
T122: =IF(R122="","","-"&VLOOKUP(R122,EventConditionConfig!A:C,3,FALSE)&IF(S122="","",CHAR(10)&"-"&VLOOKUP(S122,EventConditionConfig!A:C,3,FALSE))) -> 
A123: =O123*100+P123 -> 1000701 | B123: 5127 | C123: 没想到痴道人一来就要与你交手 | K123: =IF(J123="","",VLOOKUP(J123,EventNPC!A:E,5,FALSE)) ->  | L123: 5128 | M123: 你获得了疯道人的半颗风灵珠，在狂风中自由飞行，好不自在。 | O123: 10007 | P123: =IF(O123=O122,P122+1,1) -> 1 | T123: =IF(R123="","","-"&VLOOKUP(R123,EventConditionConfig!A:C,3,FALSE)&IF(S123="","",CHAR(10)&"-"&VLOOKUP(S123,EventConditionConfig!A:C,3,FALSE))) ->  | W123: =_xlfn.TEXTJOIN(";",1,X123,AA123) ->  | AF123: =IF(A123="","",IF(U123=1,"",IF(A124="",3,1))) -> 1 | AG123: =IF(AF123=1,A124,IF(AF123=3,LEFT(A123,5)+1,"")) -> 1000702 | AI123: 5128
A124: =O124*100+P124 -> 1000702 | B124: 5127 | C124: 没想到痴道人一来就要与你交手 | K124: =IF(J124="","",VLOOKUP(J124,EventNPC!A:E,5,FALSE)) ->  | L124: 5129 | M124: 这......就是逍遥游吗？ | O124: 10007 | P124: =IF(O124=O123,P123+1,1) -> 2 | T124: =IF(R124="","","-"&VLOOKUP(R124,EventConditionConfig!A:C,3,FALSE)&IF(S124="","",CHAR(10)&"-"&VLOOKUP(S124,EventConditionConfig!A:C,3,FALSE))) ->  | W124: =_xlfn.TEXTJOIN(";",1,X124,AA124) ->  | AF124: =IF(A124="","",IF(U124=1,"",IF(A125="",3,1))) -> 1 | AG124: =IF(AF124=1,A125,IF(AF124=3,LEFT(A124,5)+1,"")) -> 1000703 | AI124: 5129
A125: =O125*100+P125 -> 1000703 | B125: 5127 | C125: 没想到痴道人一来就要与你交手 | J125: 104 | K125: =IF(J125="","",VLOOKUP(J125,EventNPC!A:E,5,FALSE)) -> 痴道人 | L125: 5130 | M125: 你终于来了...... | O125: 10007 | P125: =IF(O125=O124,P124+1,1) -> 3 | T125: =IF(R125="","","-"&VLOOKUP(R125,EventConditionConfig!A:C,3,FALSE)&IF(S125="","",CHAR(10)&"-"&VLOOKUP(S125,EventConditionConfig!A:C,3,FALSE))) ->  | U125: 1 | V125: =A126 -> 1000704 | W125: =_xlfn.TEXTJOIN(";",1,X125,AA125) -> 5131 | X125: 5131 | Y125: 你知道我要来？ | AF125: =IF(A125="","",IF(U125=1,"",IF(A126="",3,1))) ->  | AG125: =IF(AF125=1,A126,IF(AF125=3,LEFT(A125,5)+1,"")) ->  | AI125: 5131
A126: =O126*100+P126 -> 1000704 | B126: 5127 | C126: 没想到痴道人一来就要与你交手 | J126: 104 | K126: =IF(J126="","",VLOOKUP(J126,EventNPC!A:E,5,FALSE)) -> 痴道人 | L126: 5132 | M126: 多说无益，我早已感应到你身上的半颗风灵珠。必是那疯老头让来的。出手吧！ | O126: 10007 | P126: =IF(O126=O125,P125+1,1) -> 4 | T126: =IF(R126="","","-"&VLOOKUP(R126,EventConditionConfig!A:C,3,FALSE)&IF(S126="","",CHAR(10)&"-"&VLOOKUP(S126,EventConditionConfig!A:C,3,FALSE))) ->  | U126: 2 | V126: 100004 | W126: =_xlfn.TEXTJOIN(";",1,X126,AA126) ->  | AF126: 2 | AG126: 1000705;101 | AI126: 5132
A127: 1000705 | B127: 5127 | C127: 没想到痴道人一来就要与你交手 | J127: 104 | K127: =IF(J127="","",VLOOKUP(J127,EventNPC!A:E,5,FALSE)) -> 痴道人 | L127: 5133 | M127: （被击倒在一边）够了！ | O127: 10007 | P127: 5 | T127: =IF(R127="","","-"&VLOOKUP(R127,EventConditionConfig!A:C,3,FALSE)&IF(S127="","",CHAR(10)&"-"&VLOOKUP(S127,EventConditionConfig!A:C,3,FALSE))) ->  | W127: =_xlfn.TEXTJOIN(";",1,X127,AA127) ->  | AF127: =IF(A127="","",IF(U127=1,"",IF(A128="",3,1))) -> 3 | AG127: =IF(AF127=1,A128,IF(AF127=3,LEFT(A127,5)+1,"")) -> 10008 | AI127: 5133
T128: =IF(R128="","","-"&VLOOKUP(R128,EventConditionConfig!A:C,3,FALSE)&IF(S128="","",CHAR(10)&"-"&VLOOKUP(S128,EventConditionConfig!A:C,3,FALSE))) -> 
A129: =O129*100+P129 -> 1000801 | B129: 5134 | C129: 疯痴相聚 | J129: 104 | K129: =IF(J129="","",VLOOKUP(J129,EventNPC!A:E,5,FALSE)) -> 痴道人 | L129: 5135 | M129: ...... | O129: 10008 | P129: =IF(O129=O128,P128+1,1) -> 1 | T129: =IF(R129="","","-"&VLOOKUP(R129,EventConditionConfig!A:C,3,FALSE)&IF(S129="","",CHAR(10)&"-"&VLOOKUP(S129,EventConditionConfig!A:C,3,FALSE))) ->  | U129: 1 | V129: =A130 -> 1000802 | W129: =_xlfn.TEXTJOIN(";",1,X129,AA129) -> 5136 | X129: 5136 | Y129: （你靠近痴道人）你真的想一直留在这里？你师兄说你不肯走。 | AF129: =IF(A129="","",IF(U129=1,"",IF(A130="",3,1))) ->  | AG129: =IF(AF129=1,A130,IF(AF129=3,LEFT(A129,5)+1,"")) ->  | AI129: 5136
A130: 1000802 | B130: 5134 | C130: 疯痴相聚 | J130: 104 | K130: =IF(J130="","",VLOOKUP(J130,EventNPC!A:E,5,FALSE)) -> 痴道人 | L130: 5137 | M130: 你修炼的时候，有没有过那种感觉——身边的人都在往前走，只有你还在原地。 | O130: 10008 | P130: 2 | T130: =IF(R130="","","-"&VLOOKUP(R130,EventConditionConfig!A:C,3,FALSE)&IF(S130="","",CHAR(10)&"-"&VLOOKUP(S130,EventConditionConfig!A:C,3,FALSE))) ->  | AF130: 1 | AG130: 1000803 | AI130: 5137
A131: =O131*100+P131 -> 1000803 | B131: 5134 | C131: 疯痴相聚 | J131: 104 | K131: =IF(J131="","",VLOOKUP(J131,EventNPC!A:E,5,FALSE)) -> 痴道人 | L131: 5138 | M131: 我师兄，他悟性极高，一年就能走我三年的路。我不服气，想努力赶上他。 | O131: 10008 | P131: =IF(O131=O130,P130+1,1) -> 3 | T131: =IF(R131="","","-"&VLOOKUP(R131,EventConditionConfig!A:C,3,FALSE)&IF(S131="","",CHAR(10)&"-"&VLOOKUP(S131,EventConditionConfig!A:C,3,FALSE))) ->  | U131: 1 | V131: =A132 -> 1000804 | W131: 5139 | X131: 5139 | Y131: 然后呢？ | AF131: =IF(A131="","",IF(U131=1,"",IF(A132="",3,1))) ->  | AG131: =IF(AF131=1,A132,IF(AF131=3,LEFT(A131,5)+1,"")) ->  | AI131: 5139
A132: =O132*100+P132 -> 1000804 | B132: 5134 | C132: 疯痴相聚 | J132: 104 | K132: =IF(J132="","",VLOOKUP(J132,EventNPC!A:E,5,FALSE)) -> 痴道人 | L132: 5140 | M132: 我一直苦心修炼，可人也困在这儿了……越修炼，越困难，修不动了。 | O132: 10008 | P132: =IF(O132=O131,P131+1,1) -> 4 | T132: =IF(R132="","","-"&VLOOKUP(R132,EventConditionConfig!A:C,3,FALSE)&IF(S132="","",CHAR(10)&"-"&VLOOKUP(S132,EventConditionConfig!A:C,3,FALSE))) ->  | AF132: =IF(A132="","",IF(U132=1,"",IF(A133="",3,1))) -> 1 | AG132: =IF(AF132=1,A133,IF(AF132=3,LEFT(A132,5)+1,"")) -> 1000805 | AI132: 5140
A133: =O133*100+P133 -> 1000805 | B133: 5134 | C133: 疯痴相聚 | K133: =IF(J133="","",VLOOKUP(J133,EventNPC!A:E,5,FALSE)) ->  | L133: 5141 | M133: [此时，疯道人踏风而至，就在几步之外] | O133: 10008 | P133: =IF(O133=O132,P132+1,1) -> 5 | T133: =IF(R133="","","-"&VLOOKUP(R133,EventConditionConfig!A:C,3,FALSE)&IF(S133="","",CHAR(10)&"-"&VLOOKUP(S133,EventConditionConfig!A:C,3,FALSE))) ->  | AF133: =IF(A133="","",IF(U133=1,"",IF(A134="",3,1))) -> 1 | AG133: =IF(AF133=1,A134,IF(AF133=3,LEFT(A133,5)+1,"")) -> 1000806 | AI133: 5141
A134: =O134*100+P134 -> 1000806 | B134: =IF(C134="","",IF(C134=C133,B133,MAX(AI133,AI132)+1)) -> 5134 | C134: 疯痴相聚 | D134: =IF(E134="","",IF(E134=E133,D133,MAX(AI133,AI132,B134)+1)) ->  | J134: 103 | K134: =IF(J134="","",VLOOKUP(J134,EventNPC!A:E,5,FALSE)) -> 疯道人 | L134: =IF(M134="","",MAX(AI133,AI132,B134,D134)+1) -> 5142 | M134: 师弟，你修着修着，就不记得一开始，是为了什么而修行。 | O134: 10008 | P134: =IF(O134=O133,P133+1,1) -> 6 | T134: =IF(R134="","","-"&VLOOKUP(R134,EventConditionConfig!A:C,3,FALSE)&IF(S134="","",CHAR(10)&"-"&VLOOKUP(S134,EventConditionConfig!A:C,3,FALSE))) ->  | X134: =IF(OR(ISNUMBER(Y134),Y134=""),"",MAX(AI133,AI132,B134,D134,L134)+1) ->  | AA134: =IF(OR(ISNUMBER(AB134),AB134=""),"",X134+1) ->  | AF134: =IF(A134="","",IF(U134=1,"",IF(A135="",3,1))) -> 1 | AG134: =IF(AF134=1,A135,IF(AF134=3,LEFT(A134,5)+1,"")) -> 1000807 | AI134: =IF(A134="","",MAX(B134,D134,L134,X134,AA134,AI133,AI132)) -> 5142
A135: =O135*100+P135 -> 1000807 | B135: 5134 | C135: 疯痴相聚 | J135: 104 | K135: =IF(J135="","",VLOOKUP(J135,EventNPC!A:E,5,FALSE)) -> 痴道人 | L135: 5143 | M135: （抬头）......我，我真的不记得了。 | O135: 10008 | P135: =IF(O135=O134,P134+1,1) -> 7 | T135: =IF(R135="","","-"&VLOOKUP(R135,EventConditionConfig!A:C,3,FALSE)&IF(S135="","",CHAR(10)&"-"&VLOOKUP(S135,EventConditionConfig!A:C,3,FALSE))) ->  | AF135: =IF(A135="","",IF(U135=1,"",IF(A136="",3,1))) -> 1 | AG135: =IF(AF135=1,A136,IF(AF135=3,LEFT(A135,5)+1,"")) -> 1000808 | AI135: 5143
A136: =O136*100+P136 -> 1000808 | B136: 5134 | C136: 疯痴相聚 | J136: 103 | K136: =IF(J136="","",VLOOKUP(J136,EventNPC!A:E,5,FALSE)) -> 疯道人 | L136: 5144 | M136: 那就放下风灵珠，和我出去走走。 | O136: 10008 | P136: =IF(O136=O135,P135+1,1) -> 8 | T136: =IF(R136="","","-"&VLOOKUP(R136,EventConditionConfig!A:C,3,FALSE)&IF(S136="","",CHAR(10)&"-"&VLOOKUP(S136,EventConditionConfig!A:C,3,FALSE))) ->  | AF136: =IF(A136="","",IF(U136=1,"",IF(A137="",3,1))) -> 1 | AG136: =IF(AF136=1,A137,IF(AF136=3,LEFT(A136,5)+1,"")) -> 1000809 | AI136: 5144
A137: =O137*100+P137 -> 1000809 | B137: 5134 | C137: 疯痴相聚 | J137: 103 | K137: =IF(J137="","",VLOOKUP(J137,EventNPC!A:E,5,FALSE)) -> 疯道人 | L137: 5145 | M137: [痴道人楞了一下，片刻后轻轻点头] | O137: 10008 | P137: =IF(O137=O136,P136+1,1) -> 9 | Q137: =_xlfn.TEXTJOIN(";",1,R137:S137) ->  | T137: =IF(R137="","","-"&VLOOKUP(R137,EventConditionConfig!A:C,3,FALSE)&IF(S137="","",CHAR(10)&"-"&VLOOKUP(S137,EventConditionConfig!A:C,3,FALSE))) ->  | AF137: =IF(A137="","",IF(U137=1,"",IF(A138="",3,1))) -> 1 | AG137: =IF(AF137=1,A138,IF(AF137=3,LEFT(A137,5)+1,"")) -> 1000810 | AI137: 5145
A138: =O138*100+P138 -> 1000810 | B138: 5134 | C138: 疯痴相聚 | K138: =IF(J138="","",VLOOKUP(J138,EventNPC!A:E,5,FALSE)) ->  | L138: 5146 | M138: [突然..洞府周围灵气汇聚，快速涌入痴道人的身体.] | O138: 10008 | P138: =IF(O138=O137,P137+1,1) -> 10 | T138: =IF(R138="","","-"&VLOOKUP(R138,EventConditionConfig!A:C,3,FALSE)&IF(S138="","",CHAR(10)&"-"&VLOOKUP(S138,EventConditionConfig!A:C,3,FALSE))) ->  | U138: 1 | V138: =A139 -> 1000811 | W138: 5147 | X138: 5147 | Y138: 前辈，为何灵气会动！ | AF138: =IF(A138="","",IF(U138=1,"",IF(A139="",3,1))) ->  | AG138: =IF(AF138=1,A139,IF(AF138=3,LEFT(A138,5)+1,"")) ->  | AI138: 5147
A139: =O139*100+P139 -> 1000811 | B139: 5134 | C139: 疯痴相聚 | J139: 103 | K139: =IF(J139="","",VLOOKUP(J139,EventNPC!A:E,5,FALSE)) -> 疯道人 | L139: 5148 | M139: 恭喜师弟，突破心魔。 | O139: 10008 | P139: =IF(O139=O138,P138+1,1) -> 11 | T139: =IF(R139="","","-"&VLOOKUP(R139,EventConditionConfig!A:C,3,FALSE)&IF(S139="","",CHAR(10)&"-"&VLOOKUP(S139,EventConditionConfig!A:C,3,FALSE))) ->  | AF139: =IF(A139="","",IF(U139=1,"",IF(A140="",3,1))) -> 1 | AG139: =IF(AF139=1,A140,IF(AF139=3,LEFT(A139,5)+1,"")) -> 1000812 | AI139: 5148
A140: =O140*100+P140 -> 1000812 | B140: 5134 | C140: 疯痴相聚 | J140: 104 | K140: =IF(J140="","",VLOOKUP(J140,EventNPC!A:E,5,FALSE)) -> 痴道人 | L140: 5149 | M140: 多谢师兄！ | O140: 10008 | P140: =IF(O140=O139,P139+1,1) -> 12 | T140: =IF(R140="","","-"&VLOOKUP(R140,EventConditionConfig!A:C,3,FALSE)&IF(S140="","",CHAR(10)&"-"&VLOOKUP(S140,EventConditionConfig!A:C,3,FALSE))) ->  | U140: 1 | V140: =IF(U140=1,_xlfn.TEXTJOIN(";",1,IF(Z140="",A140+1,Z140),IF(AND(AA140<>"",AC140=""),A140+1,AC140)),IF(U140=2,Y140,"")) -> 1000813;1000813 | W140: 5150;5151 | X140: 5150 | Y140: 原来如此… | AA140: 5151 | AB140: 请前辈赐我风灵珠。 | AF140: =IF(A140="","",IF(U140=1,"",IF(A141="",3,1))) ->  | AG140: =IF(AF140=1,A141,IF(AF140=3,LEFT(A140,5)+1,"")) ->  | AI140: 5151
A141: =O141*100+P141 -> 1000813 | B141: 5134 | C141: 疯痴相聚 | J141: 104 | K141: =IF(J141="","",VLOOKUP(J141,EventNPC!A:E,5,FALSE)) -> 痴道人 | L141: 5152 | M141: 小友莫急… (说罢，痴道人将风灵珠的碎片合成了一颗完整的风灵珠) | O141: 10008 | P141: =IF(O141=O140,P140+1,1) -> 13 | T141: =IF(R141="","","-"&VLOOKUP(R141,EventConditionConfig!A:C,3,FALSE)&IF(S141="","",CHAR(10)&"-"&VLOOKUP(S141,EventConditionConfig!A:C,3,FALSE))) ->  | AF141: =IF(A141="","",IF(U141=1,"",IF(A142="",3,1))) -> 1 | AG141: =IF(AF141=1,A142,IF(AF141=3,LEFT(A141,5)+1,"")) -> 1000814 | AI141: 5152
A142: =O142*100+P142 -> 1000814 | B142: 5134 | C142: 疯痴相聚 | J142: 104 | K142: =IF(J142="","",VLOOKUP(J142,EventNPC!A:E,5,FALSE)) -> 痴道人 | L142: 5153 | M142: 拿好了，这风啊……来一回，不容易。 | O142: 10008 | P142: =IF(O142=O141,P141+1,1) -> 14 | T142: =IF(R142="","","-"&VLOOKUP(R142,EventConditionConfig!A:C,3,FALSE)&IF(S142="","",CHAR(10)&"-"&VLOOKUP(S142,EventConditionConfig!A:C,3,FALSE))) ->  | AF142: =IF(A142="","",IF(U142=1,"",IF(A143="",3,1))) -> 3 | AG142: =IF(AF142=1,A143,IF(AF142=3,LEFT(A142,5)+1,"")) -> 10009 | AI142: 5153
T143: =IF(R143="","","-"&VLOOKUP(R143,EventConditionConfig!A:C,3,FALSE)&IF(S143="","",CHAR(10)&"-"&VLOOKUP(S143,EventConditionConfig!A:C,3,FALSE))) -> 
A144: =O144*100+P144 -> 1000901 | B144: 5154 | C144: 达到筑基后期 | J144: 100 | K144: =IF(J144="","",VLOOKUP(J144,EventNPC!A:E,5,FALSE)) -> 玩家 | L144: 5155 | M144: 完整的风灵珠果然不同凡响，我可以更大的狂风中穿行了。 | O144: =IF(O143="",O142+1,O143) -> 10009 | P144: =IF(O144=O143,P143+1,1) -> 1 | T144: =IF(R144="","","-"&VLOOKUP(R144,EventConditionConfig!A:C,3,FALSE)&IF(S144="","",CHAR(10)&"-"&VLOOKUP(S144,EventConditionConfig!A:C,3,FALSE))) ->  | W144: =_xlfn.TEXTJOIN(";",1,X144,AA144) ->  | AF144: =IF(A144="","",IF(U144=1,"",IF(A145="",3,1))) -> 1 | AG144: =IF(AF144=1,A145,IF(AF144=3,LEFT(A144,5)+1,"")) -> 1000902 | AI144: 5155
A145: =O145*100+P145 -> 1000902 | B145: 5154 | C145: 达到筑基后期 | J145: 100 | K145: =IF(J145="","",VLOOKUP(J145,EventNPC!A:E,5,FALSE)) -> 玩家 | L145: 5156 | M145: 前方似乎有不少高阶妖兽，我先在此地提升一些修为吧。 | O145: =IF(O144="",O143+1,O144) -> 10009 | P145: =IF(O145=O144,P144+1,1) -> 2 | T145: =IF(R145="","","-"&VLOOKUP(R145,EventConditionConfig!A:C,3,FALSE)&IF(S145="","",CHAR(10)&"-"&VLOOKUP(S145,EventConditionConfig!A:C,3,FALSE))) ->  | W145: =_xlfn.TEXTJOIN(";",1,X145,AA145) ->  | AF145: =IF(A145="","",IF(U145=1,"",IF(A146="",3,1))) -> 1 | AG145: =IF(AF145=1,A146,IF(AF145=3,LEFT(A145,5)+1,"")) -> 1000903 | AI145: 5156
A146: =O146*100+P146 -> 1000903 | B146: 5154 | C146: 达到筑基后期 | J146: 100 | K146: =IF(J146="","",VLOOKUP(J146,EventNPC!A:E,5,FALSE)) -> 玩家 | L146: 5157 | M146: 终于筑基后期了，继续寻找冲虚提到的“七道心境”吧，不知鲲鹏是否会给我答案。 | O146: 10009 | P146: =IF(O146=O145,P145+1,1) -> 3 | Q146: 8 | R146: 8 | T146: =IF(R146="","","-"&VLOOKUP(R146,EventConditionConfig!A:C,3,FALSE)&IF(S146="","",CHAR(10)&"-"&VLOOKUP(S146,EventConditionConfig!A:C,3,FALSE))) -> -达到境界：练气-后期 | W146: =_xlfn.TEXTJOIN(";",1,X146,AA146) ->  | AF146: =IF(A146="","",IF(U146=1,"",IF(A147="",3,1))) -> 3 | AG146: =IF(AF146=1,A147,IF(AF146=3,LEFT(A146,5)+1,"")) -> 10010 | AI146: 5157
T147: =IF(R147="","","-"&VLOOKUP(R147,EventConditionConfig!A:C,3,FALSE)&IF(S147="","",CHAR(10)&"-"&VLOOKUP(S147,EventConditionConfig!A:C,3,FALSE))) -> 
A148: =O148*100+P148 -> 1001001 | B148: 5158 | C148: 妖兽横行 | K148: =IF(J148="","",VLOOKUP(J148,EventNPC!A:E,5,FALSE)) ->  | O148: =IF(O147="",O146+1,O147) -> 10010 | P148: =IF(O148=O147,P147+1,1) -> 1 | Q148: 9 | R148: 9 | T148: =IF(R148="","","-"&VLOOKUP(R148,EventConditionConfig!A:C,3,FALSE)&IF(S148="","",CHAR(10)&"-"&VLOOKUP(S148,EventConditionConfig!A:C,3,FALSE))) -> -击杀妖兽 | W148: =_xlfn.TEXTJOIN(";",1,X148,AA148) ->  | AF148: =IF(A148="","",IF(U148=1,"",IF(A149="",3,1))) -> 3 | AG148: =IF(AF148=1,A149,IF(AF148=3,LEFT(A148,5)+1,"")) -> 10011 | AI148: 5158
T149: =IF(R149="","","-"&VLOOKUP(R149,EventConditionConfig!A:C,3,FALSE)&IF(S149="","",CHAR(10)&"-"&VLOOKUP(S149,EventConditionConfig!A:C,3,FALSE))) -> 
A150: =O150*100+P150 -> 1001101 | B150: 5159 | C150: 遇见鲲鹏 | K150: =IF(J150="","",VLOOKUP(J150,EventNPC!A:E,5,FALSE)) ->  | L150: 5160 | M150: 鲲鹏需要去南海最深处的天池，可缺少龙卷风，没有大风，大鹏无法飞起来 | O150: =IF(O149="",O148+1,O149) -> 10011 | P150: =IF(O150=O149,P149+1,1) -> 1 | Q150: 14 | R150: 14 | T150: =IF(R150="","","-"&VLOOKUP(R150,EventConditionConfig!A:C,3,FALSE)&IF(S150="","",CHAR(10)&"-"&VLOOKUP(S150,EventConditionConfig!A:C,3,FALSE))) -> -达到境界：筑基-前期 | W150: =_xlfn.TEXTJOIN(";",1,X150,AA150) ->  | AF150: =IF(A150="","",IF(U150=1,"",IF(A151="",3,1))) -> 3 | AG150: =IF(AF150=1,A151,IF(AF150=3,LEFT(A150,5)+1,"")) -> 10012 | AI150: 5160
O151: =IF(M151="","",IF(O150="",O149+1,O150)) ->  | T151: =IF(R151="","","-"&VLOOKUP(R151,EventConditionConfig!A:C,3,FALSE)&IF(S151="","",CHAR(10)&"-"&VLOOKUP(S151,EventConditionConfig!A:C,3,FALSE))) -> 
A152: =O152*100+P152 -> 1001201 | B152: 5161 | C152: 樗木之灵的幻影 | J152: 100 | K152: =IF(J152="","",VLOOKUP(J152,EventNPC!A:E,5,FALSE)) -> 玩家 | L152: 5162 | M152: 我的修仙之路，到底在何方啊？ | O152: 10012 | P152: =IF(O152=O151,P151+1,1) -> 1 | T152: =IF(R152="","","-"&VLOOKUP(R152,EventConditionConfig!A:C,3,FALSE)&IF(S152="","",CHAR(10)&"-"&VLOOKUP(S152,EventConditionConfig!A:C,3,FALSE))) ->  | U152: =IF(Y152="","",IF(ISTEXT(Y152),1,2)) ->  | V152: =IF(U152=1,_xlfn.TEXTJOIN(";",1,IF(Z152="",A152+1,Z152),IF(AND(AA152<>"",AC152=""),A152+1,AC152)),IF(U152=2,Y152,"")) ->  | W152: =_xlfn.TEXTJOIN(";",1,X152,AA152) ->  | AF152: =IF(ISNUMBER(Y152),2,IF(A154="",IF(OR(AH152>0,VLOOKUP(O152,EventConfig!A:C,3,FALSE)=4),3,""),1)) -> 1 | AG152: =IF(AF152="","",CHOOSE(AF152,IF(AH152="",A152+1,AH152),CONCATENATE(IF(AH152="",A152+1,AH152),";101"),IF(AH152="",O152+1,AH152))) -> 1001202 | AI152: 5162
A154: =O154*100+P154 -> 1001301 | B154: 5163 | C154: 尧让天下 | D154: 5164 | E154: 倾听尧帝的烦恼 | K154: =IF(J154="","",VLOOKUP(J154,EventNPC!A:E,5,FALSE)) ->  | L154: 5165 | M154: 你踏入帝尧治下的仙域——一片祥和之地，灵气充沛，民众安居，仿佛世外桃源。 | O154: =IF(M154="","",IF(O153="",O152+1,O153)) -> 10013 | P154: =IF(O154=O151,P151+1,1) -> 1 | T154: =IF(R154="","","-"&VLOOKUP(R154,EventConditionConfig!A:C,3,FALSE)&IF(S154="","",CHAR(10)&"-"&VLOOKUP(S154,EventConditionConfig!A:C,3,FALSE))) ->  | W154: =_xlfn.TEXTJOIN(";",1,X154,AA154) ->  | AF154: =IF(A154="","",IF(U154=1,"",IF(A155="",3,1))) -> 1 | AG154: =IF(AF154=1,A155,IF(AF154=3,LEFT(A154,5)+1,"")) -> 1001302 | AI154: 5165
A155: =O155*100+P155 -> 1001302 | B155: 5163 | C155: 尧让天下 | D155: 5164 | E155: 倾听尧帝的烦恼 | K155: =IF(J155="","",VLOOKUP(J155,EventNPC!A:E,5,FALSE)) ->  | L155: 5166 | M155: 然而，这位千年帝君，却眉宇间有难掩的忧色。 | O155: =IF(O154="",O153+1,O154) -> 10013 | P155: =IF(O155=O154,P154+1,1) -> 2 | T155: =IF(R155="","","-"&VLOOKUP(R155,EventConditionConfig!A:C,3,FALSE)&IF(S155="","",CHAR(10)&"-"&VLOOKUP(S155,EventConditionConfig!A:C,3,FALSE))) ->  | AF155: =IF(A155="","",IF(U155=1,"",IF(A156="",3,1))) -> 1 | AG155: =IF(AF155=1,A156,IF(AF155=3,LEFT(A155,5)+1,"")) -> 1001303 | AI155: 5166
A156: =O156*100+P156 -> 1001303 | B156: 5163 | C156: 尧让天下 | D156: 5164 | E156: 倾听尧帝的烦恼 | K156: =IF(J156="","",VLOOKUP(J156,EventNPC!A:E,5,FALSE)) ->  | L156: 5167 | M156: （你根据逍遥铃的指引，找到了尧） | O156: 10013 | P156: =IF(O156=O155,P155+1,1) -> 3 | T156: =IF(R156="","","-"&VLOOKUP(R156,EventConditionConfig!A:C,3,FALSE)&IF(S156="","",CHAR(10)&"-"&VLOOKUP(S156,EventConditionConfig!A:C,3,FALSE))) ->  | U156: 1 | V156: =A157 -> 1001304 | W156: 5168 | X156: 5168 | Y156: 拜见帝尧，晚辈受冲虚真人的指引，游历到此处。 | AF156: =IF(A156="","",IF(U156=1,"",IF(A157="",3,1))) ->  | AG156: =IF(AF156=1,A157,IF(AF156=3,LEFT(A156,5)+1,"")) ->  | AI156: 5168
A157: =O157*100+P157 -> 1001304 | B157: 5163 | C157: 尧让天下 | D157: 5164 | E157: 倾听尧帝的烦恼 | J157: 105 | K157: =IF(J157="","",VLOOKUP(J157,EventNPC!A:E,5,FALSE)) -> 尧帝 | L157: 5169 | M157: （缓缓回头，脸上带着淡淡忧虑）冲虚真人吗？我也许久没见了.. | O157: 10013 | P157: =IF(O157=O156,P156+1,1) -> 4 | T157: =IF(R157="","","-"&VLOOKUP(R157,EventConditionConfig!A:C,3,FALSE)&IF(S157="","",CHAR(10)&"-"&VLOOKUP(S157,EventConditionConfig!A:C,3,FALSE))) ->  | AF157: =IF(A157="","",IF(U157=1,"",IF(A158="",3,1))) -> 1 | AG157: =IF(AF157=1,A158,IF(AF157=3,LEFT(A157,5)+1,"")) -> 1001305 | AI157: 5169
A158: =O158*100+P158 -> 1001305 | B158: 5163 | C158: 尧让天下 | D158: 5164 | E158: 倾听尧帝的烦恼 | J158: 105 | K158: =IF(J158="","",VLOOKUP(J158,EventNPC!A:E,5,FALSE)) -> 尧帝 | L158: 5170 | M158: (尧帝邀你来到一高处) 小友，你看此处景致如何？ | O158: 10013 | P158: =IF(O158=O157,P157+1,1) -> 5 | T158: =IF(R158="","","-"&VLOOKUP(R158,EventConditionConfig!A:C,3,FALSE)&IF(S158="","",CHAR(10)&"-"&VLOOKUP(S158,EventConditionConfig!A:C,3,FALSE))) ->  | U158: 1 | V158: 1001206;1001206 | W158: 5171;5172 | X158: 5171 | Y158: 万象更新，灵气环绕，是修行的福地。 | AA158: 5172 | AB158: 国泰民安，仙人治理，世间罕见。 | AF158: =IF(A158="","",IF(U158=1,"",IF(A159="",3,1))) ->  | AG158: =IF(AF158=1,A159,IF(AF158=3,LEFT(A158,5)+1,"")) ->  | AI158: 5172
A159: =O159*100+P159 -> 1001306 | B159: 5163 | C159: 尧让天下 | D159: 5164 | E159: 倾听尧帝的烦恼 | J159: 105 | K159: =IF(J159="","",VLOOKUP(J159,EventNPC!A:E,5,FALSE)) -> 尧帝 | L159: 5173 | M159: （叹息）是啊，人人自在，唯我不自在。这些年来，我境界难以寸进，已有百年。 | O159: 10013 | P159: =IF(O159=O158,P158+1,1) -> 6 | T159: =IF(R159="","","-"&VLOOKUP(R159,EventConditionConfig!A:C,3,FALSE)&IF(S159="","",CHAR(10)&"-"&VLOOKUP(S159,EventConditionConfig!A:C,3,FALSE))) ->  | U159: 1 | V159: =A160 -> 1001307 | W159: 5174 | X159: 5174 | Y159: 帝尧何出此言？ | AF159: =IF(A159="","",IF(U159=1,"",IF(A160="",3,1))) ->  | AG159: =IF(AF159=1,A160,IF(AF159=3,LEFT(A159,5)+1,"")) ->  | AI159: 5174
A160: =O160*100+P160 -> 1001307 | B160: 5163 | C160: 尧让天下 | D160: 5164 | E160: 倾听尧帝的烦恼 | J160: 105 | K160: =IF(J160="","",VLOOKUP(J160,EventNPC!A:E,5,FALSE)) -> 尧帝 | L160: 5175 | M160: 你等散修，自由自在，来去如风，可曾体会过身负重任的滋味？ | O160: 10013 | P160: =IF(O160=O159,P159+1,1) -> 7 | T160: =IF(R160="","","-"&VLOOKUP(R160,EventConditionConfig!A:C,3,FALSE)&IF(S160="","",CHAR(10)&"-"&VLOOKUP(S160,EventConditionConfig!A:C,3,FALSE))) ->  | U160: 1 | V160: =A161 -> 1001308 | W160: 5176 | X160: 5176 | Y160: 也有重担，却未必如帝尧这样复杂。 | AF160: =IF(A160="","",IF(U160=1,"",IF(A161="",3,1))) ->  | AG160: =IF(AF160=1,A161,IF(AF160=3,LEFT(A160,5)+1,"")) ->  | AI160: 5176
A161: =O161*100+P161 -> 1001308 | B161: 5163 | C161: 尧让天下 | D161: 5164 | E161: 倾听尧帝的烦恼 | J161: 105 | K161: =IF(J161="","",VLOOKUP(J161,EventNPC!A:E,5,FALSE)) -> 尧帝 | L161: 5177 | M161: （微微一笑，摇头）天下如画卷，画卷再美，日夜背负，也终是负担。 | O161: 10013 | P161: =IF(O161=O160,P160+1,1) -> 8 | T161: =IF(R161="","","-"&VLOOKUP(R161,EventConditionConfig!A:C,3,FALSE)&IF(S161="","",CHAR(10)&"-"&VLOOKUP(S161,EventConditionConfig!A:C,3,FALSE))) ->  | U161: 1 | V161: =A162 -> 1001309 | W161: 5178 | X161: 5178 | Y161: ...... | AF161: =IF(A161="","",IF(U161=1,"",IF(A162="",3,1))) ->  | AG161: =IF(AF161=1,A162,IF(AF161=3,LEFT(A161,5)+1,"")) ->  | AI161: 5178
A162: =O162*100+P162 -> 1001309 | B162: 5163 | C162: 尧让天下 | D162: 5164 | E162: 倾听尧帝的烦恼 | J162: 105 | K162: =IF(J162="","",VLOOKUP(J162,EventNPC!A:E,5,FALSE)) -> 尧帝 | L162: 5179 | M162: （凝望远方云海）深山之中有位贤士，名为许由，素有盛名，我曾多次请他出山，但未成如愿。 | O162: 10013 | P162: =IF(O162=O161,P161+1,1) -> 9 | T162: =IF(R162="","","-"&VLOOKUP(R162,EventConditionConfig!A:C,3,FALSE)&IF(S162="","",CHAR(10)&"-"&VLOOKUP(S162,EventConditionConfig!A:C,3,FALSE))) ->  | AF162: =IF(A162="","",IF(U162=1,"",IF(A163="",3,1))) -> 1 | AG162: =IF(AF162=1,A163,IF(AF162=3,LEFT(A162,5)+1,"")) -> 1001310 | AI162: 5179
A163: =O163*100+P163 -> 1001310 | B163: 5163 | C163: 尧让天下 | D163: 5164 | E163: 倾听尧帝的烦恼 | J163: 105 | K163: =IF(J163="","",VLOOKUP(J163,EventNPC!A:E,5,FALSE)) -> 尧帝 | L163: 5180 | M163: 我甚至提出让天下于他，他也不为所动。 | O163: 10013 | P163: =IF(O163=O162,P162+1,1) -> 10 | T163: =IF(R163="","","-"&VLOOKUP(R163,EventConditionConfig!A:C,3,FALSE)&IF(S163="","",CHAR(10)&"-"&VLOOKUP(S163,EventConditionConfig!A:C,3,FALSE))) ->  | U163: 1 | V163: =A164 -> 1001311 | W163: 5181 | X163: 5181 | Y163: 世间竟然有此奇人？ | AF163: =IF(A163="","",IF(U163=1,"",IF(A164="",3,1))) ->  | AG163: =IF(AF163=1,A164,IF(AF163=3,LEFT(A163,5)+1,"")) ->  | AI163: 5181
A164: =O164*100+P164 -> 1001311 | B164: 5163 | C164: 尧让天下 | D164: 5164 | E164: 倾听尧帝的烦恼 | J164: 105 | K164: =IF(J164="","",VLOOKUP(J164,EventNPC!A:E,5,FALSE)) -> 尧帝 | L164: 5182 | M164: （凝望远方云海）若小友有空，帮我再请许由出山，我定当感谢。 | O164: 10013 | P164: =IF(O164=O163,P163+1,1) -> 11 | T164: =IF(R164="","","-"&VLOOKUP(R164,EventConditionConfig!A:C,3,FALSE)&IF(S164="","",CHAR(10)&"-"&VLOOKUP(S164,EventConditionConfig!A:C,3,FALSE))) ->  | U164: 1 | V164: =A165 -> 1001312 | W164: 5183 | X164: 5183 | Y164: 好的，既然来了，我就走一趟。 | AF164: =IF(A164="","",IF(U164=1,"",IF(A165="",3,1))) ->  | AG164: =IF(AF164=1,A165,IF(AF164=3,LEFT(A164,5)+1,"")) ->  | AI164: 5183
A165: =O165*100+P165 -> 1001312 | B165: 5163 | C165: 尧让天下 | D165: 5164 | E165: 倾听尧帝的烦恼 | K165: =IF(J165="","",VLOOKUP(J165,EventNPC!A:E,5,FALSE)) ->  | O165: 10013 | P165: =IF(O165=O164,P164+1,1) -> 12 | T165: =IF(R165="","","-"&VLOOKUP(R165,EventConditionConfig!A:C,3,FALSE)&IF(S165="","",CHAR(10)&"-"&VLOOKUP(S165,EventConditionConfig!A:C,3,FALSE))) ->  | AF165: =IF(A165="","",IF(U165=1,"",IF(A166="",3,1))) -> 3 | AG165: =IF(AF165=1,A166,IF(AF165=3,LEFT(A165,5)+1,"")) -> 10014 | AI165: 5183
T166: =IF(R166="","","-"&VLOOKUP(R166,EventConditionConfig!A:C,3,FALSE)&IF(S166="","",CHAR(10)&"-"&VLOOKUP(S166,EventConditionConfig!A:C,3,FALSE))) -> 
A167: =O167*100+P167 -> 1001401 | B167: 5184 | C167: 访贤许由 | D167: 5185 | E167: 听一听这位尧帝口中的贤士有何说法 | K167: =IF(J167="","",VLOOKUP(J167,EventNPC!A:E,5,FALSE)) ->  | L167: 5186 | M167: 你循帝尧所言，御剑前往幽山秘境。此处灵气绵长，古木参天，溪水潺潺。 | O167: 10014 | P167: =IF(O167=O166,P166+1,1) -> 1 | T167: =IF(R167="","","-"&VLOOKUP(R167,EventConditionConfig!A:C,3,FALSE)&IF(S167="","",CHAR(10)&"-"&VLOOKUP(S167,EventConditionConfig!A:C,3,FALSE))) ->  | W167: =_xlfn.TEXTJOIN(";",1,X167,AA167) ->  | AF167: =IF(A167="","",IF(U167=1,"",IF(A168="",3,1))) -> 1 | AG167: =IF(AF167=1,A168,IF(AF167=3,LEFT(A167,5)+1,"")) -> 1001402 | AI167: 5186
A168: =O168*100+P168 -> 1001402 | B168: 5184 | C168: 访贤许由 | D168: 5185 | E168: 听一听这位尧帝口中的贤士有何说法 | K168: =IF(J168="","",VLOOKUP(J168,EventNPC!A:E,5,FALSE)) ->  | L168: 5187 | M168: 据说，许由栖身于此，绝迹尘世，已有数百年。 | O168: 10014 | P168: =IF(O168=O167,P167+1,1) -> 2 | T168: =IF(R168="","","-"&VLOOKUP(R168,EventConditionConfig!A:C,3,FALSE)&IF(S168="","",CHAR(10)&"-"&VLOOKUP(S168,EventConditionConfig!A:C,3,FALSE))) ->  | AF168: =IF(A168="","",IF(U168=1,"",IF(A169="",3,1))) -> 1 | AG168: =IF(AF168=1,A169,IF(AF168=3,LEFT(A168,5)+1,"")) -> 1001403 | AI168: 5187
A169: =O169*100+P169 -> 1001403 | B169: 5184 | C169: 访贤许由 | D169: 5185 | E169: 听一听这位尧帝口中的贤士有何说法 | K169: =IF(J169="","",VLOOKUP(J169,EventNPC!A:E,5,FALSE)) ->  | L169: 5188 | M169: 山风徐徐，水声如琴，你踏过青石小径，看见一位白衣道人正倚石观水。 | O169: 10014 | P169: =IF(O169=O168,P168+1,1) -> 3 | T169: =IF(R169="","","-"&VLOOKUP(R169,EventConditionConfig!A:C,3,FALSE)&IF(S169="","",CHAR(10)&"-"&VLOOKUP(S169,EventConditionConfig!A:C,3,FALSE))) ->  | U169: 1 | V169: =A170 -> 1001404 | W169: 5189 | X169: 5189 | Y169: 前辈可是许由？ | AF169: =IF(A169="","",IF(U169=1,"",IF(A170="",3,1))) ->  | AG169: =IF(AF169=1,A170,IF(AF169=3,LEFT(A169,5)+1,"")) ->  | AI169: 5189
A170: =O170*100+P170 -> 1001404 | B170: 5184 | C170: 访贤许由 | D170: 5185 | E170: 听一听这位尧帝口中的贤士有何说法 | J170: 106 | K170: =IF(J170="","",VLOOKUP(J170,EventNPC!A:E,5,FALSE)) -> 许由 | L170: 5190 | M170: 正是，小友何事？ | O170: 10014 | P170: =IF(O170=O169,P169+1,1) -> 4 | T170: =IF(R170="","","-"&VLOOKUP(R170,EventConditionConfig!A:C,3,FALSE)&IF(S170="","",CHAR(10)&"-"&VLOOKUP(S170,EventConditionConfig!A:C,3,FALSE))) ->  | AF170: =IF(A170="","",IF(U170=1,"",IF(A171="",3,1))) -> 1 | AG170: =IF(AF170=1,A171,IF(AF170=3,LEFT(A170,5)+1,"")) -> 1001405 | AI170: 5190
A171: =O171*100+P171 -> 1001405 | B171: 5184 | C171: 访贤许由 | D171: 5185 | E171: 听一听这位尧帝口中的贤士有何说法 | J171: 100 | K171: =IF(J171="","",VLOOKUP(J171,EventNPC!A:E,5,FALSE)) -> 玩家 | L171: 5191 | M171: 帝尧欲专心修行，求道问玄，又怕耽误世事，特托我前来相请，欲让天下于你。 | O171: 10014 | P171: =IF(O171=O170,P170+1,1) -> 5 | T171: =IF(R171="","","-"&VLOOKUP(R171,EventConditionConfig!A:C,3,FALSE)&IF(S171="","",CHAR(10)&"-"&VLOOKUP(S171,EventConditionConfig!A:C,3,FALSE))) ->  | AF171: =IF(A171="","",IF(U171=1,"",IF(A172="",3,1))) -> 1 | AG171: =IF(AF171=1,A172,IF(AF171=3,LEFT(A171,5)+1,"")) -> 1001406 | AI171: 5191
A172: =O172*100+P172 -> 1001406 | B172: 5184 | C172: 访贤许由 | D172: 5185 | E172: 听一听这位尧帝口中的贤士有何说法 | J172: 106 | K172: =IF(J172="","",VLOOKUP(J172,EventNPC!A:E,5,FALSE)) -> 许由 | L172: 5192 | M172: （静默片刻）昔日帝尧就提过此事，我已辞之。 | O172: 10014 | P172: =IF(O172=O171,P171+1,1) -> 6 | T172: =IF(R172="","","-"&VLOOKUP(R172,EventConditionConfig!A:C,3,FALSE)&IF(S172="","",CHAR(10)&"-"&VLOOKUP(S172,EventConditionConfig!A:C,3,FALSE))) ->  | AF172: =IF(A172="","",IF(U172=1,"",IF(A173="",3,1))) -> 1 | AG172: =IF(AF172=1,A173,IF(AF172=3,LEFT(A172,5)+1,"")) -> 1001407 | AI172: 5192
A173: =O173*100+P173 -> 1001407 | B173: 5184 | C173: 访贤许由 | D173: 5185 | E173: 听一听这位尧帝口中的贤士有何说法 | J173: 106 | K173: =IF(J173="","",VLOOKUP(J173,EventNPC!A:E,5,FALSE)) -> 许由 | L173: 5193 | M173: 今日又来，想是道心不定，执念未除。 | O173: 10014 | P173: =IF(O173=O172,P172+1,1) -> 7 | T173: =IF(R173="","","-"&VLOOKUP(R173,EventConditionConfig!A:C,3,FALSE)&IF(S173="","",CHAR(10)&"-"&VLOOKUP(S173,EventConditionConfig!A:C,3,FALSE))) ->  | U173: 1 | V173: =A174 -> 1001408 | W173: 5194 | X173: 5194 | Y173: 请前辈出山。 | AF173: =IF(A173="","",IF(U173=1,"",IF(A174="",3,1))) ->  | AG173: =IF(AF173=1,A174,IF(AF173=3,LEFT(A173,5)+1,"")) ->  | AI173: 5194
A174: 1001408 | B174: 5184 | C174: 访贤许由 | D174: 5185 | E174: 听一听这位尧帝口中的贤士有何说法 | J174: 106 | K174: =IF(J174="","",VLOOKUP(J174,EventNPC!A:E,5,FALSE)) -> 许由 | L174: 5195 | M174: 哼，让我去？ | O174: 10014 | P174: 8 | T174: =IF(R174="","","-"&VLOOKUP(R174,EventConditionConfig!A:C,3,FALSE)&IF(S174="","",CHAR(10)&"-"&VLOOKUP(S174,EventConditionConfig!A:C,3,FALSE))) ->  | AF174: 1 | AG174: 1001409 | AI174: 5195
A175: =O175*100+P175 -> 1001409 | B175: 5184 | C175: 访贤许由 | D175: 5185 | E175: 听一听这位尧帝口中的贤士有何说法 | J175: 106 | K175: =IF(J175="","",VLOOKUP(J175,EventNPC!A:E,5,FALSE)) -> 许由 | L175: 5196 | M175: 那我问你，日月升天，照耀四方。若这时有人手举火把照路，岂不徒劳？ | O175: 10014 | P175: =IF(O175=O174,P174+1,1) -> 9 | T175: =IF(R175="","","-"&VLOOKUP(R175,EventConditionConfig!A:C,3,FALSE)&IF(S175="","",CHAR(10)&"-"&VLOOKUP(S175,EventConditionConfig!A:C,3,FALSE))) ->  | AF175: =IF(A175="","",IF(U175=1,"",IF(A176="",3,1))) -> 1 | AG175: =IF(AF175=1,A176,IF(AF175=3,LEFT(A175,5)+1,"")) -> 1001410 | AI175: 5196
A176: =O176*100+P176 -> 1001410 | B176: 5184 | C176: 访贤许由 | D176: 5185 | E176: 听一听这位尧帝口中的贤士有何说法 | J176: 106 | K176: =IF(J176="","",VLOOKUP(J176,EventNPC!A:E,5,FALSE)) -> 许由 | L176: 5197 | M176: 那我再问你，斜风细雨，滋养万物。若这时有人用水桶来灌溉，岂不可笑？ | O176: 10014 | P176: =IF(O176=O175,P175+1,1) -> 10 | T176: =IF(R176="","","-"&VLOOKUP(R176,EventConditionConfig!A:C,3,FALSE)&IF(S176="","",CHAR(10)&"-"&VLOOKUP(S176,EventConditionConfig!A:C,3,FALSE))) ->  | AF176: =IF(A176="","",IF(U176=1,"",IF(A177="",3,1))) -> 1 | AG176: =IF(AF176=1,A177,IF(AF176=3,LEFT(A176,5)+1,"")) -> 1001411 | AI176: 5197
A177: =O177*100+P177 -> 1001411 | B177: 5184 | C177: 访贤许由 | D177: 5185 | E177: 听一听这位尧帝口中的贤士有何说法 | J177: 106 | K177: =IF(J177="","",VLOOKUP(J177,EventNPC!A:E,5,FALSE)) -> 许由 | L177: 5198 | M177: 天下在尧的带领下，已经治理得很好了，又何必要我，我是要去混个功成名就吗？ | O177: 10014 | P177: =IF(O177=O176,P176+1,1) -> 11 | T177: =IF(R177="","","-"&VLOOKUP(R177,EventConditionConfig!A:C,3,FALSE)&IF(S177="","",CHAR(10)&"-"&VLOOKUP(S177,EventConditionConfig!A:C,3,FALSE))) ->  | AF177: =IF(A177="","",IF(U177=1,"",IF(A178="",3,1))) -> 1 | AG177: =IF(AF177=1,A178,IF(AF177=3,LEFT(A177,5)+1,"")) -> 1001412 | AI177: 5198
A178: =O178*100+P178 -> 1001412 | B178: 5184 | C178: 访贤许由 | D178: 5185 | E178: 听一听这位尧帝口中的贤士有何说法 | J178: 106 | K178: =IF(J178="","",VLOOKUP(J178,EventNPC!A:E,5,FALSE)) -> 许由 | L178: 5199 | M178: 回答我？ | O178: 10014 | P178: =IF(O178=O177,P177+1,1) -> 12 | T178: =IF(R178="","","-"&VLOOKUP(R178,EventConditionConfig!A:C,3,FALSE)&IF(S178="","",CHAR(10)&"-"&VLOOKUP(S178,EventConditionConfig!A:C,3,FALSE))) ->  | U178: 1 | V178: =A179 -> 1001413 | W178: 5200 | X178: 5200 | Y178: 就算只得功成名就也不错。 | AF178: =IF(A178="","",IF(U178=1,"",IF(A179="",3,1))) ->  | AG178: =IF(AF178=1,A179,IF(AF178=3,LEFT(A178,5)+1,"")) ->  | AI178: 5200
A179: 1001413 | B179: 5184 | C179: 访贤许由 | D179: 5185 | E179: 听一听这位尧帝口中的贤士有何说法 | J179: 106 | K179: =IF(J179="","",VLOOKUP(J179,EventNPC!A:E,5,FALSE)) -> 许由 | L179: 5201 | M179: 小友，名就像宾客一样，难道我们的一生是为了宾客吗？ | O179: 10014 | P179: 13 | T179: =IF(R179="","","-"&VLOOKUP(R179,EventConditionConfig!A:C,3,FALSE)&IF(S179="","",CHAR(10)&"-"&VLOOKUP(S179,EventConditionConfig!A:C,3,FALSE))) ->  | U179: 1 | V179: =A180 -> 1001414 | W179: 5202 | X179: 5202 | Y179: （愣住）...... | AI179: 5202
A180: =O180*100+P180 -> 1001414 | B180: 5184 | C180: 访贤许由 | D180: 5185 | E180: 听一听这位尧帝口中的贤士有何说法 | J180: 106 | K180: =IF(J180="","",VLOOKUP(J180,EventNPC!A:E,5,FALSE)) -> 许由 | L180: 5203 | M180: 他若真想修道，便该知“道不碍政，心自碍道”。 | O180: 10014 | P180: =IF(O180=O179,P179+1,1) -> 14 | T180: =IF(R180="","","-"&VLOOKUP(R180,EventConditionConfig!A:C,3,FALSE)&IF(S180="","",CHAR(10)&"-"&VLOOKUP(S180,EventConditionConfig!A:C,3,FALSE))) ->  | AF180: =IF(A180="","",IF(U180=1,"",IF(A181="",3,1))) -> 1 | AG180: =IF(AF180=1,A181,IF(AF180=3,LEFT(A180,5)+1,"")) -> 1001415 | AI180: 5203
A181: 1001415 | B181: 5184 | C181: 访贤许由 | D181: 5185 | E181: 听一听这位尧帝口中的贤士有何说法 | J181: 106 | K181: =IF(J181="","",VLOOKUP(J181,EventNPC!A:E,5,FALSE)) -> 许由 | L181: 5204 | M181: 若心不净，纵避千山万水，又有何用。 | O181: 10014 | P181: 15 | T181: =IF(R181="","","-"&VLOOKUP(R181,EventConditionConfig!A:C,3,FALSE)&IF(S181="","",CHAR(10)&"-"&VLOOKUP(S181,EventConditionConfig!A:C,3,FALSE))) ->  | U181: 1 | V181: =A182 -> 1001416 | W181: =_xlfn.TEXTJOIN(";",1,X181,AA181) -> 5205 | X181: 5205 | Y181: （愣住）...... | AI181: 5205
A182: 1001416 | B182: 5184 | C182: 访贤许由 | D182: 5185 | E182: 听一听这位尧帝口中的贤士有何说法 | K182: =IF(J182="","",VLOOKUP(J182,EventNPC!A:E,5,FALSE)) ->  | O182: 10014 | P182: 16 | Q182: 21 | R182: 21 | T182: =IF(R182="","","-"&VLOOKUP(R182,EventConditionConfig!A:C,3,FALSE)&IF(S182="","",CHAR(10)&"-"&VLOOKUP(S182,EventConditionConfig!A:C,3,FALSE))) -> -达到境界：筑基-中期 | W182: =_xlfn.TEXTJOIN(";",1,X182,AA182) ->  | AF182: 3 | AG182: 10015 | AI182: 5205
T183: =IF(R183="","","-"&VLOOKUP(R183,EventConditionConfig!A:C,3,FALSE)&IF(S183="","",CHAR(10)&"-"&VLOOKUP(S183,EventConditionConfig!A:C,3,FALSE))) -> 
A184: =O184*100+P184 -> 1001501 | B184: 5206 | C184: 割草喝茶 | J184: 106 | K184: =IF(J184="","",VLOOKUP(J184,EventNPC!A:E,5,FALSE)) -> 许由 | L184: 5207 | M184: （转身望向屋后的山坡）你来得也巧，我正想在开辟一块新药田。 | O184: 10015 | P184: =IF(O184=O183,P183+1,1) -> 1 | T184: =IF(R184="","","-"&VLOOKUP(R184,EventConditionConfig!A:C,3,FALSE)&IF(S184="","",CHAR(10)&"-"&VLOOKUP(S184,EventConditionConfig!A:C,3,FALSE))) ->  | W184: =_xlfn.TEXTJOIN(";",1,X184,AA184) ->  | AF184: =IF(A184="","",IF(U184=1,"",IF(A185="",3,1))) -> 1 | AG184: =IF(AF184=1,A185,IF(AF184=3,LEFT(A184,5)+1,"")) -> 1001502 | AI184: 5207
A185: =O185*100+P185 -> 1001502 | B185: 5206 | C185: 割草喝茶 | J185: 106 | K185: =IF(J185="","",VLOOKUP(J185,EventNPC!A:E,5,FALSE)) -> 许由 | L185: 5208 | M185: 后山有一块不错的地，离家有一点远平时我也懒得去打理，正好你来了帮我开辟出来吧。 | O185: 10015 | P185: =IF(O185=O184,P184+1,1) -> 2 | T185: =IF(R185="","","-"&VLOOKUP(R185,EventConditionConfig!A:C,3,FALSE)&IF(S185="","",CHAR(10)&"-"&VLOOKUP(S185,EventConditionConfig!A:C,3,FALSE))) ->  | U185: 1 | V185: =A186 -> 1001503 | W185: 5209 | X185: 5209 | Y185: ……前辈是让我干农活吗 | AF185: =IF(A185="","",IF(U185=1,"",IF(A186="",3,1))) ->  | AG185: =IF(AF185=1,A186,IF(AF185=3,LEFT(A185,5)+1,"")) ->  | AI185: 5209
A186: 1001503 | B186: 5206 | C186: 割草喝茶 | J186: 106 | K186: =IF(J186="","",VLOOKUP(J186,EventNPC!A:E,5,FALSE)) -> 许由 | L186: 5210 | M186: （笑）哈哈，正是，帮我清理一下灵田，回来请你喝茶。 | O186: 10015 | P186: 3 | Q186: =_xlfn.TEXTJOIN(";",1,R186:S186) ->  | T186: =IF(R186="","","-"&VLOOKUP(R186,EventConditionConfig!A:C,3,FALSE)&IF(S186="","",CHAR(10)&"-"&VLOOKUP(S186,EventConditionConfig!A:C,3,FALSE))) ->  | AF186: 1 | AG186: 1001504 | AI186: 5210
A187: =O187*100+P187 -> 1001504 | B187: 5206 | C187: 割草喝茶 | J187: 106 | K187: =IF(J187="","",VLOOKUP(J187,EventNPC!A:E,5,FALSE)) -> 许由 | L187: 5211 | M187: 对了，在哪些杂草中不也会生长着一些药效不错的药草，这些药草在杂草中没有更好的成长起来，如果发现了药草帮我收集一些药草的种子回来。 | O187: 10015 | P187: =IF(O187=O186,P186+1,1) -> 4 | Q187: =_xlfn.TEXTJOIN(";",1,R187:S187) ->  | T187: =IF(R187="","","-"&VLOOKUP(R187,EventConditionConfig!A:C,3,FALSE)&IF(S187="","",CHAR(10)&"-"&VLOOKUP(S187,EventConditionConfig!A:C,3,FALSE))) ->  | AF187: =IF(A187="","",IF(U187=1,"",IF(A188="",3,1))) -> 1 | AG187: =IF(AF187=1,A188,IF(AF187=3,LEFT(A187,5)+1,"")) -> 1001505 | AI187: 5211
A188: =O188*100+P188 -> 1001505 | B188: 5206 | C188: 割草喝茶 | J188: 106 | K188: =IF(J188="","",VLOOKUP(J188,EventNPC!A:E,5,FALSE)) -> 许由 | L188: 5212 | M188: 在开辟的过程中也请小心一点，后山也经常有妖怪出没。 | O188: 10015 | P188: =IF(O188=O187,P187+1,1) -> 5 | Q188: =_xlfn.TEXTJOIN(";",1,R188:S188) -> 10;11 | R188: 10 | S188: 11 | T188: =IF(R188="","","-"&VLOOKUP(R188,EventConditionConfig!A:C,3,FALSE)&IF(S188="","",CHAR(10)&"-"&VLOOKUP(S188,EventConditionConfig!A:C,3,FALSE))) -> -击败后山小妖 -收集灵草种子 | AF188: =IF(A188="","",IF(U188=1,"",IF(A189="",3,1))) -> 1 | AG188: =IF(AF188=1,A189,IF(AF188=3,LEFT(A188,5)+1,"")) -> 1001506 | AI188: 5212
A189: 1001506 | B189: 5206 | C189: 割草喝茶 | K189: =IF(J189="","",VLOOKUP(J189,EventNPC!A:E,5,FALSE)) ->  | L189: 5213 | M189: （你回到屋前，满身草屑与泥土，许由在烧水，煮茶） | O189: 10015 | P189: 6 | T189: =IF(R189="","","-"&VLOOKUP(R189,EventConditionConfig!A:C,3,FALSE)&IF(S189="","",CHAR(10)&"-"&VLOOKUP(S189,EventConditionConfig!A:C,3,FALSE))) ->  | AF189: 1 | AG189: 1001507 | AI189: 5213
A190: =O190*100+P190 -> 1001507 | B190: 5206 | C190: 割草喝茶 | J190: 106 | K190: =IF(J190="","",VLOOKUP(J190,EventNPC!A:E,5,FALSE)) -> 许由 | L190: 5214 | M190: 动得挺快。坐，喝口茶。 | O190: 10015 | P190: =IF(O190=O189,P189+1,1) -> 7 | Q190: =_xlfn.TEXTJOIN(";",1,R190:S190) ->  | T190: =IF(R190="","","-"&VLOOKUP(R190,EventConditionConfig!A:C,3,FALSE)&IF(S190="","",CHAR(10)&"-"&VLOOKUP(S190,EventConditionConfig!A:C,3,FALSE))) ->  | U190: =IF(Y190="","",1) -> 1 | V190: =IF(U190=1,A191,"") -> 1001508 | W190: 5215 | X190: 5215 | Y190: 多谢前辈。 | AF190: =IF(A190="","",IF(U190=1,"",IF(A191="",3,1))) ->  | AG190: =IF(AF190=1,A191,IF(AF190=3,LEFT(A190,5)+1,"")) ->  | AI190: 5215
A191: =O191*100+P191 -> 1001508 | B191: 5206 | C191: 割草喝茶 | K191: =IF(J191="","",VLOOKUP(J191,EventNPC!A:E,5,FALSE)) ->  | L191: 5216 | M191: （你获得了永久属性提升）（此处需要进一步处理） | O191: 10015 | P191: =IF(O191=O190,P190+1,1) -> 8 | Q191: =_xlfn.TEXTJOIN(";",1,R191:S191) ->  | T191: =IF(R191="","","-"&VLOOKUP(R191,EventConditionConfig!A:C,3,FALSE)&IF(S191="","",CHAR(10)&"-"&VLOOKUP(S191,EventConditionConfig!A:C,3,FALSE))) ->  | U191: =IF(Y191="","",1) ->  | V191: =IF(U191=1,A192,"") ->  | AF191: =IF(A191="","",IF(U191=1,"",IF(A192="",3,1))) -> 3 | AG191: =IF(AF191=1,A192,IF(AF191=3,LEFT(A191,5)+1,"")) -> 10016 | AI191: 5216
A193: =O193*100+P193 -> 1001601 | B193: 5217 | C193: 再来一杯 | J193: 106 | K193: =IF(J193="","",VLOOKUP(J193,EventNPC!A:E,5,FALSE)) -> 许由 | L193: 5218 | M193: 今天的风有点不对，开来昨日你在后山的动静不小呀，山那头怕是要来些不速之客。 | O193: 10016 | P193: =IF(O193=O192,P192+1,1) -> 1 | Q193: =_xlfn.TEXTJOIN(";",1,R193:S193) ->  | T193: =IF(R193="","","-"&VLOOKUP(R193,EventConditionConfig!A:C,3,FALSE)&IF(S193="","",CHAR(10)&"-"&VLOOKUP(S193,EventConditionConfig!A:C,3,FALSE))) ->  | U193: =IF(Y193="","",1) ->  | V193: =IF(U193=1,A194,"") ->  | W193: =_xlfn.TEXTJOIN(";",1,X193,AA193) ->  | AF193: =IF(A193="","",IF(U193=1,"",IF(A194="",3,1))) -> 1 | AG193: =IF(AF193=1,A194,IF(AF193=3,LEFT(A193,5)+1,"")) -> 1001602 | AI193: 5218
A194: =O194*100+P194 -> 1001602 | B194: 5217 | C194: 再来一杯 | J194: 106 | K194: =IF(J194="","",VLOOKUP(J194,EventNPC!A:E,5,FALSE)) -> 许由 | L194: 5219 | M194: 你才帮我弄好灵草种子和灵田，别让妖兽给毁了。 | O194: 10016 | P194: =IF(O194=O193,P193+1,1) -> 2 | Q194: =_xlfn.TEXTJOIN(";",1,R194:S194) ->  | T194: =IF(R194="","","-"&VLOOKUP(R194,EventConditionConfig!A:C,3,FALSE)&IF(S194="","",CHAR(10)&"-"&VLOOKUP(S194,EventConditionConfig!A:C,3,FALSE))) ->  | AF194: =IF(A194="","",IF(U194=1,"",IF(A195="",3,1))) -> 1 | AG194: =IF(AF194=1,A195,IF(AF194=3,LEFT(A194,5)+1,"")) -> 1001603 | AI194: 5219
A195: =O195*100+P195 -> 1001603 | B195: 5217 | C195: 再来一杯 | J195: 106 | K195: =IF(J195="","",VLOOKUP(J195,EventNPC!A:E,5,FALSE)) -> 许由 | L195: 5220 | M195: 你去走一趟。 | O195: 10016 | P195: =IF(O195=O194,P194+1,1) -> 3 | Q195: =_xlfn.TEXTJOIN(";",1,R195:S195) ->  | T195: =IF(R195="","","-"&VLOOKUP(R195,EventConditionConfig!A:C,3,FALSE)&IF(S195="","",CHAR(10)&"-"&VLOOKUP(S195,EventConditionConfig!A:C,3,FALSE))) ->  | U195: 1 | V195: 1001604 | W195: 5221 | X195: 5221 | Y195: 好的...... | AF195: =IF(A195="","",IF(U195=1,"",IF(A196="",3,1))) ->  | AG195: =IF(AF195=1,A196,IF(AF195=3,LEFT(A195,5)+1,"")) ->  | AI195: 5221
A196: 1001604 | B196: 5217 | C196: 再来一杯 | K196: =IF(J196="","",VLOOKUP(J196,EventNPC!A:E,5,FALSE)) ->  | O196: 10016 | P196: 4 | Q196: 12 | R196: 12 | T196: =IF(R196="","","-"&VLOOKUP(R196,EventConditionConfig!A:C,3,FALSE)&IF(S196="","",CHAR(10)&"-"&VLOOKUP(S196,EventConditionConfig!A:C,3,FALSE))) -> -击败夜袭的妖兽 | AF196: 1 | AG196: 1001605 | AI196: 5221
A197: 1001605 | B197: 5217 | C197: 再来一杯 | K197: =IF(J197="","",VLOOKUP(J197,EventNPC!A:E,5,FALSE)) ->  | L197: 5222 | M197: （回到屋前，看到许由又在烧水，煮茶，和上次一样） | O197: 10016 | P197: 5 | T197: =IF(R197="","","-"&VLOOKUP(R197,EventConditionConfig!A:C,3,FALSE)&IF(S197="","",CHAR(10)&"-"&VLOOKUP(S197,EventConditionConfig!A:C,3,FALSE))) ->  | AF197: 1 | AG197: 1001606 | AI197: 5222
A198: =O198*100+P198 -> 1001606 | B198: =IF(C198="","",IF(C198=C197,B197,MAX(AI197,AI196)+1)) -> 5217 | C198: 再来一杯 | D198: =IF(E198="","",IF(E198=E197,D197,MAX(AI197,AI196,B198)+1)) ->  | J198: 106 | K198: =IF(J198="","",VLOOKUP(J198,EventNPC!A:E,5,FALSE)) -> 许由 | L198: =IF(M198="","",MAX(AI197,AI196,B198,D198)+1) -> 5223 | M198: 来，喝茶。 | O198: 10016 | P198: =IF(O198=O197,P197+1,1) -> 6 | Q198: =_xlfn.TEXTJOIN(";",1,R198:S198) ->  | T198: =IF(R198="","","-"&VLOOKUP(R198,EventConditionConfig!A:C,3,FALSE)&IF(S198="","",CHAR(10)&"-"&VLOOKUP(S198,EventConditionConfig!A:C,3,FALSE))) ->  | X198: =IF(OR(ISNUMBER(Y198),Y198=""),"",MAX(AI197,AI196,B198,D198,L198)+1) ->  | AA198: =IF(OR(ISNUMBER(AB198),AB198=""),"",X198+1) ->  | AF198: =IF(A198="","",IF(U198=1,"",IF(A199="",3,1))) -> 1 | AG198: =IF(AF198=1,A199,IF(AF198=3,LEFT(A198,5)+1,"")) -> 1001607 | AI198: =IF(A198="","",MAX(B198,D198,L198,X198,AA198,AI197,AI196)) -> 5223
A199: =O199*100+P199 -> 1001607 | B199: 5217 | C199: 再来一杯 | J199: 100 | K199: =IF(J199="","",VLOOKUP(J199,EventNPC!A:E,5,FALSE)) -> 玩家 | L199: 5224 | M199: （心中默念...这个精英妖兽，可费我一些功夫，怎么又是茶？） | O199: 10016 | P199: =IF(O199=O198,P198+1,1) -> 7 | Q199: =_xlfn.TEXTJOIN(";",1,R199:S199) ->  | T199: =IF(R199="","","-"&VLOOKUP(R199,EventConditionConfig!A:C,3,FALSE)&IF(S199="","",CHAR(10)&"-"&VLOOKUP(S199,EventConditionConfig!A:C,3,FALSE))) ->  | U199: 1 | V199: 1001608 | W199: 5225 | X199: 5225 | Y199: （你没说话，默默喝下） | AF199: =IF(A199="","",IF(U199=1,"",IF(A200="",3,1))) ->  | AG199: =IF(AF199=1,A200,IF(AF199=3,LEFT(A199,5)+1,"")) ->  | AI199: 5225
A200: 1001608 | B200: 5217 | C200: 再来一杯 | K200: =IF(J200="","",VLOOKUP(J200,EventNPC!A:E,5,FALSE)) ->  | L200: 5226 | M200: （你获得了永久属性提升）（此处需要进一步处理） | O200: 10016 | P200: 8 | Q200: 22 | R200: 22 | T200: =IF(R200="","","-"&VLOOKUP(R200,EventConditionConfig!A:C,3,FALSE)&IF(S200="","",CHAR(10)&"-"&VLOOKUP(S200,EventConditionConfig!A:C,3,FALSE))) -> -达到境界：筑基-后期 | AF200: 3 | AG200: 10017 | AI200: 5226
A202: =O202*100+P202 -> 1001701 | B202: 5227 | C202: 战胜妖王 | K202: =IF(J202="","",VLOOKUP(J202,EventNPC!A:E,5,FALSE)) ->  | L202: 5228 | M202: （次日清晨，山顶云气升腾，许由站在灵田边，看着远山） | O202: 10017 | P202: =IF(O202=O201,P201+1,1) -> 1 | Q202: =_xlfn.TEXTJOIN(";",1,R202:S202) ->  | T202: =IF(R202="","","-"&VLOOKUP(R202,EventConditionConfig!A:C,3,FALSE)&IF(S202="","",CHAR(10)&"-"&VLOOKUP(S202,EventConditionConfig!A:C,3,FALSE))) ->  | U202: =IF(Y202="","",1) ->  | V202: =IF(U202=1,A203,"") ->  | W202: =_xlfn.TEXTJOIN(";",1,X202,AA202) ->  | AF202: =IF(A202="","",IF(U202=1,"",IF(A203="",3,1))) -> 1 | AG202: =IF(AF202=1,A203,IF(AF202=3,LEFT(A202,5)+1,"")) -> 1001702 | AI202: 5228
A203: =O203*100+P203 -> 1001702 | B203: 5227 | C203: 战胜妖王 | K203: =IF(J203="","",VLOOKUP(J203,EventNPC!A:E,5,FALSE)) ->  | L203: 5229 | M203: 先前的妖兽，被你压了下去。可峰顶还有一头老家伙，脾气大。 | O203: 10017 | P203: =IF(O203=O202,P202+1,1) -> 2 | Q203: =_xlfn.TEXTJOIN(";",1,R203:S203) ->  | T203: =IF(R203="","","-"&VLOOKUP(R203,EventConditionConfig!A:C,3,FALSE)&IF(S203="","",CHAR(10)&"-"&VLOOKUP(S203,EventConditionConfig!A:C,3,FALSE))) ->  | U203: 1 | V203: 1001703 | W203: 5230 | X203: 5230 | Y203: 前辈可是希望我去处理？ | AF203: =IF(A203="","",IF(U203=1,"",IF(A204="",3,1))) ->  | AG203: =IF(AF203=1,A204,IF(AF203=3,LEFT(A203,5)+1,"")) ->  | AI203: 5230
A204: 1001703 | B204: 5227 | C204: 战胜妖王 | J204: 106 | K204: =IF(J204="","",VLOOKUP(J204,EventNPC!A:E,5,FALSE)) -> 许由 | L204: 5231 | M204: （淡笑）去吧，你可以应付的。 | O204: 10017 | P204: 3 | T204: =IF(R204="","","-"&VLOOKUP(R204,EventConditionConfig!A:C,3,FALSE)&IF(S204="","",CHAR(10)&"-"&VLOOKUP(S204,EventConditionConfig!A:C,3,FALSE))) ->  | AF204: 1 | AG204: 1001704 | AI204: 5231
A205: 1001704 | B205: 5227 | C205: 战胜妖王 | K205: =IF(J205="","",VLOOKUP(J205,EventNPC!A:E,5,FALSE)) ->  | O205: 10017 | P205: =IF(O205=O204,P204+1,1) -> 4 | Q205: =_xlfn.TEXTJOIN(";",1,R205:S205) -> 13 | R205: 13 | T205: =IF(R205="","","-"&VLOOKUP(R205,EventConditionConfig!A:C,3,FALSE)&IF(S205="","",CHAR(10)&"-"&VLOOKUP(S205,EventConditionConfig!A:C,3,FALSE))) -> -击败峰顶的妖王 | AF205: =IF(A205="","",IF(U205=1,"",IF(A206="",3,1))) -> 1 | AG205: =IF(AF205=1,A206,IF(AF205=3,LEFT(A205,5)+1,"")) -> 1001705 | AI205: 5231
A206: =O206*100+P206 -> 1001705 | B206: 5227 | C206: 战胜妖王 | K206: =IF(J206="","",VLOOKUP(J206,EventNPC!A:E,5,FALSE)) ->  | L206: 5232 | M206: （你回到屋前，略显疲惫，许由依然在烧水，煮茶） | O206: 10017 | P206: 5 | T206: =IF(R206="","","-"&VLOOKUP(R206,EventConditionConfig!A:C,3,FALSE)&IF(S206="","",CHAR(10)&"-"&VLOOKUP(S206,EventConditionConfig!A:C,3,FALSE))) ->  | AF206: 1 | AG206: 1001706 | AI206: 5232
... 318 more rows

Sheet EventConditionConfig
A1: ID | B1: message | E1: Operation | G1: ConditionType | H1: ConditionPara | I1: finishCount | J1: RelatedEvents | L1: SkiptoIds
A2: int | B2: int | E2: int | G2: int | H2: int[] | I2: int | J2: int[] | L2: int[]
A4: ID | B4: 描述 | E4: 与0 或1 | G4: 条件判断类型 | H4: 条件判断值 | I4: 条件完成次数or数量 | J4: 关联的事件Id | K4: 提示 | L4: 跳转Id
A5: 1 | B5: 9001 | C5: 拥有金币 | D5: =CONCATENATE("- ",C5,"{0}/{1}") -> - 拥有金币{0}/{1} | G5: 1 | H5: 1001 | I5: 10 | L5: 1;2;3;4
A6: 2 | B6: 9002 | C6: =CONCATENATE("达到境界：",M6,"-",N6) -> 达到境界：练气-中期 | D6: =CONCATENATE("- ",C6,"{0}/{1}") -> - 达到境界：练气-中期{0}/{1} | G6: 3 | H6: 11 | I6: 1 | L6: 1;2;3;4 | M6: 练气 | N6: 中期 | O6: 11 | P6: =CONCATENATE(M6,"-",N6) -> 练气-中期
A7: 3 | B7: 9003 | C7: 击杀魔休 | D7: - 击杀魔休{0}/{1} | G7: 5 | H7: 1001 | I7: 5 | J7: 9031 | L7: 1;2;3;4
A8: 4 | B8: 9004 | C8: 获得钻石 | D8: - 获得钻石{0}/{1} | G8: 6 | H8: 1002 | I8: 10 | L8: 1;2;3;4
A9: 5 | B9: 9005 | C9: 使用神识 | D9: - 使用神识{0}/{1} | G9: 8 | I9: 1 | L9: 1;2;3;4
A10: 6 | B10: 9006 | C10: 继续飞行一段时间 | D10: - 继续飞行一段时间{0}/{1} | G10: 9 | I10: 6 | L10: 1;2;3;4
A11: 7 | B11: 9007 | C11: 击败结界兽 | D11: - 击败结界兽{0}/{1} | G11: 5 | H11: 1002 | I11: 1 | L11: 1;2;3;4
A12: 8 | B12: 9008 | C12: =CONCATENATE("达到境界：",M12,"-",N12) -> 达到境界：练气-后期 | D12: - 达到境界：练气-后期{0}/{1} | G12: 3 | H12: 21 | I12: 1 | L12: 1;2;3;4 | M12: 练气 | N12: 后期 | O12: 21 | P12: =CONCATENATE(M12,"-",N12) -> 练气-后期
A13: 9 | B13: 9009 | C13: 击杀妖兽 | D13: - 击杀妖兽{0}/{1} | G13: 5 | H13: 1003 | I13: 1 | J13: 30003 | L13: 1;2;3;4
A14: 10 | B14: 9010 | C14: 击败后山小妖 | D14: - 击败后山小妖{0}/{1} | G14: 5 | H14: 1004 | I14: 3 | J14: 30004 | L14: 1;2;3;4
A15: 11 | B15: 9011 | C15: 收集灵草种子 | D15: - 收集灵草种子{0}/{1} | G15: 6 | H15: 20003 | I15: 3 | J15: 30011 | L15: 1;2;3;4
A16: 12 | B16: 9012 | C16: 击败夜袭的妖兽 | D16: - 击败夜袭的妖兽{0}/{1} | G16: 5 | H16: 1005 | I16: 1 | J16: 30005 | L16: 1;2;3;4
A17: 13 | B17: 9013 | C17: 击败峰顶的妖王 | D17: - 击败峰顶的妖王{0}/{1} | G17: 5 | H17: 1006 | I17: 1 | J17: 30006 | L17: 1;2;3;4
A18: 14 | B18: 9014 | C18: =CONCATENATE("达到境界：",M18,"-",N18) -> 达到境界：筑基-前期 | D18: - 达到境界：筑基-前期{0}/{1} | G18: 3 | H18: 31 | I18: 1 | L18: 1;2;3;4 | M18: 筑基 | N18: 前期 | O18: 31 | P18: =CONCATENATE(M18,"-",N18) -> 筑基-前期
A19: 15 | B19: 9015 | C19: 击败仙山的阵眼妖兽 | D19: - 击败仙山的阵眼妖兽{0}/{1} | G19: 5 | H19: 1007 | I19: 1 | J19: 30007 | L19: 1;2;3;4
A20: 17 | B20: 9016 | C20: 击杀灵兽获得天肥 | D20: =CONCATENATE("- ",C20,"{0}/{1}") -> - 击杀灵兽获得天肥{0}/{1} | G20: 5 | H20: 1008 | I20: 1 | J20: 30008 | L20: 1;2;3;4
A21: 18 | B21: 9017 | C21: 获得一件袈裟 | D21: - 获得一件袈裟{0}/{1} | G21: 6 | H21: 1301 | I21: 1 | J21: 30009 | L21: 1;2;3;4
A22: 19 | B22: 9018 | C22: 夺回琉璃盏 | D22: - 夺回琉璃盏{0}/{1} | G22: 6 | H22: 1001 | I22: 1 | J22: 30010 | L22: 1;2;3;4
A23: 20 | B23: 9019 | C23: 给予渡劫丹 | D23: - 给予渡劫丹{0}/{1} | G23: 1 | H23: 1001 | I23: 1 | L23: 1;2;3;4
A24: 21 | B24: 9020 | C24: =CONCATENATE("达到境界：",M24,"-",N24) -> 达到境界：筑基-中期 | D24: - 达到境界：筑基-中期{0}/{1} | G24: 3 | H24: 41 | I24: 1 | L24: 1;2;3;4 | M24: 筑基 | N24: 中期 | O24: 41 | P24: =CONCATENATE(M24,"-",N24) -> 筑基-中期
A25: 22 | B25: 9021 | C25: =CONCATENATE("达到境界：",M25,"-",N25) -> 达到境界：筑基-后期 | D25: =CONCATENATE("- ",C25,"{0}/{1}") -> - 达到境界：筑基-后期{0}/{1} | G25: 3 | H25: 51 | I25: 1 | L25: 1;2;3;4 | M25: 筑基 | N25: 后期 | O25: 51 | P25: =CONCATENATE(M25,"-",N25) -> 筑基-后期
A26: 23 | B26: 9022 | C26: 达到境界：结丹-前期 | D26: =CONCATENATE("- ",C26,"{0}/{1}") -> - 达到境界：结丹-前期{0}/{1} | G26: 3 | H26: 61 | I26: 1 | L26: 1;2;3;4 | M26: 结丹 | N26: 前期 | O26: 61 | P26: 结丹-前期
A27: 24 | B27: 9023 | C27: 达到境界：结丹-中期 | D27: - 达到境界：结丹-中期{0}/{1} | G27: 3 | H27: 71 | I27: 1 | L27: 1;2;3;4 | M27: 结丹 | N27: 中期 | O27: 71 | P27: 结丹-中期
A28: 25 | B28: 9024 | C28: 达到境界：结丹-后期 | D28: - 达到境界：结丹-后期{0}/{1} | G28: 3 | H28: 81 | I28: 1 | L28: 1;2;3;4 | M28: 结丹 | N28: 后期 | O28: 81 | P28: 结丹-后期
A29: 26 | B29: 9025 | C29: 达到境界：元婴-前期 | D29: =CONCATENATE("- ",C29,"{0}/{1}") -> - 达到境界：元婴-前期{0}/{1} | G29: 3 | H29: 91 | I29: 1 | L29: 1;2;3;4 | M29: 元婴 | N29: 前期 | O29: 91 | P29: 元婴-前期
A30: 27 | B30: 9026 | C30: 收集并饮用甘露 | D30: =CONCATENATE("- ",C30,"{0}/{1}") -> - 收集并饮用甘露{0}/{1} | G30: 6 | H30: 20004 | I30: 3 | L30: 1;2;3;4
A31: 28 | B31: 9027 | C31: 击败心魔 | D31: =CONCATENATE("- ",C31,"{0}/{1}") -> - 击败心魔{0}/{1} | G31: 5 | H31: 1013 | I31: 1 | L31: 1;2;3;4
A32: 29 | B32: 9028 | C32: 击败北海妖兽 | D32: =CONCATENATE("- ",C32,"{0}/{1}") -> - 击败北海妖兽{0}/{1} | G32: 5 | H32: 1014 | I32: 5 | L32: 1;2;3;4
A33: 30 | B33: 9029 | C33: =CONCATENATE("达到境界：",M33,"-",N33) -> 达到境界：元婴-中期 | D33: - 达到境界：元婴-中期{0}/{1} | G33: 3 | H33: 101 | I33: 1 | L33: 1;2;3;4 | M33: 元婴 | N33: 中期 | O33: 101 | P33: =CONCATENATE(M33,"-",N33) -> 元婴-中期
A34: 31 | B34: 9030 | C34: =CONCATENATE("达到境界：",M34,"-",N34) -> 达到境界：元婴-后期 | D34: - 达到境界：元婴-后期{0}/{1} | G34: 3 | H34: 111 | I34: 1 | L34: 1;2;3;4 | M34: 元婴 | N34: 后期 | O34: 111 | P34: =CONCATENATE(M34,"-",N34) -> 元婴-后期
A35: 32 | B35: 9031 | C35: 达到境界：化神-前期 | D35: - 达到境界：化神-前期{0}/{1} | G35: 3 | H35: 121 | I35: 1 | L35: 1;2;3;4 | M35: 化神 | N35: 前期 | O35: 121 | P35: 化神-前期
A36: 33 | B36: 9032 | C36: 达到境界：化神-中期 | D36: =CONCATENATE("- ",C36,"{0}/{1}") -> - 达到境界：化神-中期{0}/{1} | G36: 3 | H36: 131 | I36: 1 | L36: 1;2;3;4 | M36: 化神 | N36: 中期 | O36: 131 | P36: 化神-中期
A37: 34 | B37: 9033 | C37: 达到境界：化神-后期 | D37: - 达到境界：化神-后期{0}/{1} | G37: 3 | H37: 141 | I37: 1 | L37: 1;2;3;4 | M37: 化神 | N37: 后期 | O37: 141 | P37: 化神-后期
A38: 35 | B38: 9034 | C38: 达到境界：炼虚-前期 | D38: - 达到境界：炼虚-前期{0}/{1} | G38: 3 | H38: 151 | I38: 1 | L38: 1;2;3;4 | M38: 炼虚 | N38: 前期 | O38: 151 | P38: 炼虚-前期

Sheet 条件类型查询
A1: ID | B1: 条件判断类型 | C1: 条件判断值 | D1: 条件完成次数or数量 | E1: 额外文本 | F1: 不可用 | G1: 是否可用于事件
A2: 1 | B2: 拥有特定道具 | C2: 道具ID | D2: 数量≥ | E2: 检测背包道具 | G2: 1
A3: 2 | B3: 灵根判定 | C3: 哪个灵根 | D3: 灵根值≥ | F3: 1
A4: 3 | B4: 境界判断 | C4: 境界id | G4: 1
A5: 5 | B5: 战斗胜利 | C5: 战斗组ID | D5: 胜利次数≥
A6: 6 | B6: 获得道具 | C6: 道具的ID | D6: 数量≥ | E6: 探测出事件才开始检测
A7: 7 | B7: 触发概率 | C7: 概率值 1000=100% | G7: 1
A8: 8 | B8: 使用神识 | D8: 数量≥
A9: 9 | B9: 游戏在线多少时长（秒） | D9: 时间≥（秒） | G9: 1
A10: 10 | B10: 前置事件 | C10: 事件ID | G10: 1

Sheet 产出tag查询
A1: 产出TAG | B1: 产出类型
A2: 1 | B2: 金币
A3: 2 | B3: 修为
A4: 3 | B4: 功法灵气
A5: 4 | B5: 法宝灵韵
A6: 5 | B6: 功法碎片
A7: 6 | B7: 法宝碎片
A8: 7 | B8: 修为丹
A9: 8 | B9: 天材地宝
A10: 9 | B10: 渡劫丹
A11: 10 | B11: 好感度礼物
A12: 11 | B12: 心情礼物
A13: 12
A14: 13
A15: 14
A16: 15
A17: 16
A18: 17
A19: 18
A20: 19
A21: 20
A22: 21
A23: 22

Sheet EventNPC
A1: ID | B1: name | C1: ID | D1: DaoyouID
A2: int | B2: int | C2: int | D2: int
A4: ID | B4: 名字 | C4: 半身像icon | D4: 道友ID | E4: 名称
A5: 1 | E5: 玩家
A6: 2 | D6: 1 | E6: 道友1
A7: 3 | D7: 2 | E7: 道友2
A8: 4 | D8: 3 | E8: 道友3
A9: 5 | D9: 4 | E9: 道友4
A10: 6 | D10: 5 | E10: 道友5
A11: 7 | D11: 6 | E11: 道友6
A12: 8 | D12: 7 | E12: 道友7
A13: 9 | D13: 8 | E13: 道友8
A14: 10 | D14: 9 | E14: 道友9
A15: 11 | D15: 10 | E15: 道友10
A17: 100 | B17: 3000 | E17: 玩家
A18: 101 | B18: 3001 | E18: 蜩鸟
A19: 102 | B19: 3002 | E19: 小麻雀
A20: 103 | B20: 3003 | E20: 疯道人
A21: 104 | B21: 3004 | E21: 痴道人
A22: 105 | B22: 3005 | E22: 尧帝
A23: 106 | B23: 3006 | E23: 许由
A24: 107 | B24: 3007 | E24: 村名甲
A25: 108 | B25: 3008 | E25: 村名乙
A26: 109 | B26: 3009 | E26: 村名丙
A27: 110 | B27: 3010 | E27: 樗木之灵
A28: 111 | E28: 惠子
A29: 112 | B29: 3021 | E29: 风无咎
A30: 113 | B30: 3034 | E30: 北海剑妖
A31: 114 | B31: 3067 | E31: 拦路妖兽
A32: 115 | E32: 小麻雀幻影
A33: 116 | E33: 痴道人幻影
A34: 117 | E34: 樗木之灵幻影
A35: 118 | E35: 神人
A36: 119 | E36: 鲲鹏

Sheet XianTuLogConfig
A1: ID | B1: EventType | C1: Title | D1: Desc | E1: BigMapID
A2: int | B2: int | C2: int | D2: int | E2: int
A4: ID | B4: 1主线 2事件 | C4: 名称 | D4: 描述 | E4: 属于哪个章节
A5: 1 | B5: 1 | C5: 2087 | D5: 2089 | E5: 1 | F5: 第一章.逍遥游 | G5: 多次渡劫失败的你，误入“无何有之乡”，在这里受到了列子的指引，踏上了寻找七道心境的修仙之路。
A6: 2 | B6: 2 | C6: 2088 | D6: 2090 | E6: 1 | F6: 无用的大葫芦 | G6: 惠子种出了巨大葫芦，他觉得毫无用处，非常生气！
A7: 3 | B7: 2 | C7: 2088 | D7: 2090 | E7: 2 | F7: 无用的大葫芦 | G7: 惠子种出了巨大葫芦，他觉得毫无用处，非常生气！
A8: 4 | B8: 2 | C8: 2088 | D8: 2090 | E8: 3 | F8: 无用的大葫芦 | G8: 惠子种出了巨大葫芦，他觉得毫无用处，非常生气！
